Workbook

Sheet Payment comparison
B1: PAYMENT COMPARISON
B2: LOAN AMOUNT
B3: LOAN DETAILS | C3: AGGRESSIVE | D3: CONSERVATIVE | E3: MODERATE
B4: $150,000.00 | C4: SCENARIO 1 | D4: SCENARIO 2 | E4: SCENARIO 3
B5: LOAN PERIOD IN YEARS | C5: 20 | D5: 30 | E5: 20
B6: PAYMENT FREQUENCY | C6: Monthly | D6: Bi-monthly | E6: Monthly
B7: ANNUAL INTEREST RATE | C7: 5.00% | D7: 5.00% | E7: 4.00%
B8: SCHEDULED PAYMENT | C8: =IFERROR(-PMT(S1Interest/VLOOKUP(S1PaymentFrequency,LoanLookup[],5,FALSE),S1LoanPeriod*VLOOKUP(S1PaymentFrequency,LoanLookup[],5,FALSE),LoanAmount),"") -> $989.93 | D8: =IFERROR(-PMT(S2Interest/VLOOKUP(S2PaymentFrequency,LoanLookup[],5,FALSE),S2LoanPeriod*VLOOKUP(S2PaymentFrequency,LoanLookup[],5,FALSE),LoanAmount),"") -> $402.44 | E8: =IFERROR(-PMT(S3Interest/VLOOKUP(S3PaymentFrequency,LoanLookup[],5,FALSE),S3LoanPeriod*VLOOKUP(S3PaymentFrequency,LoanLookup[],5,FALSE),LoanAmount),"") -> $908.97
B9: TOTAL PAYMENTS | C9: =IFERROR(S1LoanPeriod*VLOOKUP(S1PaymentFrequency,LoanLookup[],5,FALSE),"") -> 240 | D9: =IFERROR(S2LoanPeriod*VLOOKUP(S2PaymentFrequency,LoanLookup[],5,FALSE),"") -> 720 | E9: =IFERROR(S3LoanPeriod*VLOOKUP(S3PaymentFrequency,LoanLookup[],5,FALSE),"") -> 240
B10: TOTAL INTEREST | C10: =IFERROR((S1ScheduledPayment*S1TotalPayments)-LoanAmount,"") -> $87,584.07 | D10: =IFERROR((S2ScheduledPayment*S2TotalPayments)-LoanAmount,"") -> $139,753.76 | E10: =IFERROR((S3ScheduledPayment*S3TotalPayments)-LoanAmount,"") -> $68,152.92
B11: COST OF LOAN | C11: =IFERROR(LoanAmount+S1TotalInterest,"") -> $237,584.07 | D11: =IFERROR(LoanAmount+S2TotalInterest,"") -> $289,753.76 | E11: =IFERROR(LoanAmount+S3TotalInterest,"") -> $218,152.92

Sheet Payment schedule
B1: PAYMENT SCHEDULE
F2: Select a scenario
E3: SCENARIO 2
B5: LOAN SCENARIO | G5: LOAN SUMMARY
B6: START DATE OF LOAN | E6: =TODAY() -> 2023-02-02 | G6: SCHEDULED PAYMENT | J6: =IFERROR(IF(Values_Entered,-PMT(Interest_Rate/VLOOKUP(Interval,LoanLookup[],5,FALSE),Loan_Years*VLOOKUP(Interval,LoanLookup[],5,FALSE),Loan_Amount),""),"") -> $402.44
B7: OPTIONAL EXTRA PAYMENT | E7: $100.00 | G7: SCHEDULED # OF PAYMENTS | J7: =IFERROR(IF(Values_Entered,Loan_Years*VLOOKUP(Interval,LoanLookup[],5,FALSE),""),"") -> 720
B8: LOAN AMOUNT | E8: =LoanAmount -> $150,000.00 | G8: ACTUAL # OF PAYMENTS | J8: =IFERROR(IF(Values_Entered,Number_of_Payments,""),"") -> 468
B9: LOAN PERIOD IN YEARS | E9: =IFERROR(HLOOKUP(E3,LoanComparisonInfo[],2,FALSE),0) -> 30 | G9: TOTAL EARLY PAYMENTS | J9: =IFERROR(IF(Values_Entered,SUMIF(Beg_Bal,">0",Extra_Pay),""),"") -> $46,700.00
B10: PAYMENT FREQUENCY | E10: =IFERROR(HLOOKUP(E3,LoanComparisonInfo[],3,FALSE),0) -> Bi-monthly | G10: TOTAL INTEREST | J10: =IFERROR(IF(Values_Entered,SUMIF(Beg_Bal,">0",Int),""),"") -> $84,849.41
B11: ANNUAL INTEREST | E11: =IFERROR(HLOOKUP(E3,LoanComparisonInfo[],4,FALSE),0) -> 5.00% | G11: COST OF LOAN | J11: =IFERROR(IF(Values_Entered,Scheduled_Monthly_Payment*Number_of_Payments,""),"") -> $188,339.95
B13: PMT # | C13: PAYMENT DATE | D13: BEGINNING BAL | E13: SCHEDULED PMT | F13: EXTRA PMT | G13: TOTAL PMT | H13: PRINCIPAL | I13: INTEREST | J13: ENDING BAL | K13: CUMULATIVE INT
B14: =IF(Values_Entered,1,"") -> 1 | C14: =IF(Pay_Num<>"",Loan_Start,"") -> 2023-02-02 | D14: =IF(Values_Entered,Loan_Amount,"") -> $150,000.00 | E14: =IF(Pay_Num<>"",Scheduled_Monthly_Payment,"") -> $402.44 | F14: =IF(AND(Pay_Num<>"",Sched_Pay+Scheduled_Extra_Payments<Beg_Bal),Scheduled_Extra_Payments,IF(AND(Pay_Num<>"",Beg_Bal-Sched_Pay>0),Beg_Bal-Sched_Pay,IF(Pay_Num<>"",0,""))) -> $100.00 | G14: =IF(AND(Pay_Num<>"",Sched_Pay+Extra_Pay<Beg_Bal),Sched_Pay+Extra_Pay,IF(AND(Pay_Num<>"",scheduled_no_payments=1),Sched_Pay,IF(Pay_Num<>"",Beg_Bal,""))) -> $502.44 | H14: =IF(Pay_Num<>"",Total_Pay-Int,"") -> $189.94 | I14: =IF(Pay_Num<>"",Beg_Bal*(Interest_Rate/VLOOKUP(Interval,LoanLookup[],5,FALSE)),"") -> $312.50 | J14: =IF(AND(Pay_Num<>"",Sched_Pay+Extra_Pay<Beg_Bal),Beg_Bal-Princ,IF(Pay_Num<>"",0,"")) -> $149,810.06 | K14: =SUM($I$14:$I14) -> $312.50
B15: =IF(AND(Values_Entered,scheduled_no_payments<>1),B14+1,"") -> 2 | C15: =IF(Pay_Num<>"",DATE(YEAR(C14)+VLOOKUP(Interval,LoanLookup[],4,FALSE),MONTH(C14)+VLOOKUP(Interval,LoanLookup[],2,FALSE),DAY(C14)+VLOOKUP(Interval,LoanLookup[],3,FALSE)),"") -> 2023-02-17 | D15: =IF(Pay_Num<>"",J14,"") -> $149,810.06 | E15: $402.44 | F15: =IF(scheduled_no_payments=1,"",IF(Sched_Pay+Scheduled_Extra_Payments<Beg_Bal,Scheduled_Extra_Payments,IF(AND(Pay_Num<>"",Beg_Bal-Sched_Pay>0),Beg_Bal-Sched_Pay,IF(Pay_Num<>"",0,"")))) -> $100.00 | G15: =IF(scheduled_no_payments=1,"",IF(Sched_Pay+Extra_Pay<Beg_Bal,Sched_Pay+Extra_Pay,IF(Pay_Num<>"",Beg_Bal,""))) -> $502.44 | H15: $190.33 | I15: =IF(Pay_Num<>"",Beg_Bal*(Interest_Rate/VLOOKUP(Interval,LoanLookup[],5,FALSE)),"") -> $312.10 | J15: =IF(scheduled_no_payments=1,"",IF(AND(Pay_Num<>"",Sched_Pay+Extra_Pay<Beg_Bal),Beg_Bal-Princ,IF(Pay_Num<>"",0,""))) -> $149,619.73 | K15: =IF(scheduled_no_payments=1,"",SUM($I$14:$I15)) -> $624.60
B16: =IF(AND(Values_Entered,scheduled_no_payments<>1),B15+1,"") -> 3 | C16: =IF(Pay_Num<>"",DATE(YEAR(C15)+VLOOKUP(Interval,LoanLookup[],4,FALSE),MONTH(C15)+VLOOKUP(Interval,LoanLookup[],2,FALSE),DAY(C15)+VLOOKUP(Interval,LoanLookup[],3,FALSE)),"") -> 2023-03-04 | D16: $149,619.73 | E16: $402.44 | F16: =IF(scheduled_no_payments=1,"",IF(Sched_Pay+Scheduled_Extra_Payments<Beg_Bal,Scheduled_Extra_Payments,IF(AND(Pay_Num<>"",Beg_Bal-Sched_Pay>0),Beg_Bal-Sched_Pay,IF(Pay_Num<>"",0,"")))) -> $100.00 | G16: =IF(scheduled_no_payments=1,"",IF(Sched_Pay+Extra_Pay<Beg_Bal,Sched_Pay+Extra_Pay,IF(Pay_Num<>"",Beg_Bal,""))) -> $502.44 | H16: $190.73 | I16: =IF(Pay_Num<>"",Beg_Bal*(Interest_Rate/VLOOKUP(Interval,LoanLookup[],5,FALSE)),"") -> $311.71 | J16: =IF(scheduled_no_payments=1,"",IF(AND(Pay_Num<>"",Sched_Pay+Extra_Pay<Beg_Bal),Beg_Bal-Princ,IF(Pay_Num<>"",0,""))) -> $149,429.00 | K16: =IF(scheduled_no_payments=1,"",SUM($I$14:$I16)) -> $936.31
B17: =IF(AND(Values_Entered,scheduled_no_payments<>1),B16+1,"") -> 4 | C17: =IF(Pay_Num<>"",DATE(YEAR(C16)+VLOOKUP(Interval,LoanLookup[],4,FALSE),MONTH(C16)+VLOOKUP(Interval,LoanLookup[],2,FALSE),DAY(C16)+VLOOKUP(Interval,LoanLookup[],3,FALSE)),"") -> 2023-03-19 | D17: $149,429.00 | E17: $402.44 | F17: =IF(scheduled_no_payments=1,"",IF(Sched_Pay+Scheduled_Extra_Payments<Beg_Bal,Scheduled_Extra_Payments,IF(AND(Pay_Num<>"",Beg_Bal-Sched_Pay>0),Beg_Bal-Sched_Pay,IF(Pay_Num<>"",0,"")))) -> $100.00 | G17: =IF(scheduled_no_payments=1,"",IF(Sched_Pay+Extra_Pay<Beg_Bal,Sched_Pay+Extra_Pay,IF(Pay_Num<>"",Beg_Bal,""))) -> $502.44 | H17: $191.13 | I17: =IF(Pay_Num<>"",Beg_Bal*(Interest_Rate/VLOOKUP(Interval,LoanLookup[],5,FALSE)),"") -> $311.31 | J17: =IF(scheduled_no_payments=1,"",IF(AND(Pay_Num<>"",Sched_Pay+Extra_Pay<Beg_Bal),Beg_Bal-Princ,IF(Pay_Num<>"",0,""))) -> $149,237.88 | K17: =IF(scheduled_no_payments=1,"",SUM($I$14:$I17)) -> $1,247.62
B18: =IF(AND(Values_Entered,scheduled_no_payments<>1),B17+1,"") -> 5 | C18: =IF(Pay_Num<>"",DATE(YEAR(C17)+VLOOKUP(Interval,LoanLookup[],4,FALSE),MONTH(C17)+VLOOKUP(Interval,LoanLookup[],2,FALSE),DAY(C17)+VLOOKUP(Interval,LoanLookup[],3,FALSE)),"") -> 2023-04-03 | D18: $149,237.88 | E18: $402.44 | F18: =IF(scheduled_no_payments=1,"",IF(Sched_Pay+Scheduled_Extra_Payments<Beg_Bal,Scheduled_Extra_Payments,IF(AND(Pay_Num<>"",Beg_Bal-Sched_Pay>0),Beg_Bal-Sched_Pay,IF(Pay_Num<>"",0,"")))) -> $100.00 | G18: =IF(scheduled_no_payments=1,"",IF(Sched_Pay+Extra_Pay<Beg_Bal,Sched_Pay+Extra_Pay,IF(Pay_Num<>"",Beg_Bal,""))) -> $502.44 | H18: $191.52 | I18: =IF(Pay_Num<>"",Beg_Bal*(Interest_Rate/VLOOKUP(Interval,LoanLookup[],5,FALSE)),"") -> $310.91 | J18: =IF(scheduled_no_payments=1,"",IF(AND(Pay_Num<>"",Sched_Pay+Extra_Pay<Beg_Bal),Beg_Bal-Princ,IF(Pay_Num<>"",0,""))) -> $149,046.36 | K18: =IF(scheduled_no_payments=1,"",SUM($I$14:$I18)) -> $1,558.53
B19: =IF(AND(Values_Entered,scheduled_no_payments<>1),B18+1,"") -> 6 | C19: =IF(Pay_Num<>"",DATE(YEAR(C18)+VLOOKUP(Interval,LoanLookup[],4,FALSE),MONTH(C18)+VLOOKUP(Interval,LoanLookup[],2,FALSE),DAY(C18)+VLOOKUP(Interval,LoanLookup[],3,FALSE)),"") -> 2023-04-18 | D19: $149,046.36 | E19: $402.44 | F19: =IF(scheduled_no_payments=1,"",IF(Sched_Pay+Scheduled_Extra_Payments<Beg_Bal,Scheduled_Extra_Payments,IF(AND(Pay_Num<>"",Beg_Bal-Sched_Pay>0),Beg_Bal-Sched_Pay,IF(Pay_Num<>"",0,"")))) -> $100.00 | G19: =IF(scheduled_no_payments=1,"",IF(Sched_Pay+Extra_Pay<Beg_Bal,Sched_Pay+Extra_Pay,IF(Pay_Num<>"",Beg_Bal,""))) -> $502.44 | H19: $191.92 | I19: =IF(Pay_Num<>"",Beg_Bal*(Interest_Rate/VLOOKUP(Interval,LoanLookup[],5,FALSE)),"") -> $310.51 | J19: =IF(scheduled_no_payments=1,"",IF(AND(Pay_Num<>"",Sched_Pay+Extra_Pay<Beg_Bal),Beg_Bal-Princ,IF(Pay_Num<>"",0,""))) -> $148,854.43 | K19: =IF(scheduled_no_payments=1,"",SUM($I$14:$I19)) -> $1,869.05
B20: =IF(AND(Values_Entered,scheduled_no_payments<>1),B19+1,"") -> 7 | C20: =IF(Pay_Num<>"",DATE(YEAR(C19)+VLOOKUP(Interval,LoanLookup[],4,FALSE),MONTH(C19)+VLOOKUP(Interval,LoanLookup[],2,FALSE),DAY(C19)+VLOOKUP(Interval,LoanLookup[],3,FALSE)),"") -> 2023-05-03 | D20: $148,854.43 | E20: $402.44 | F20: =IF(scheduled_no_payments=1,"",IF(Sched_Pay+Scheduled_Extra_Payments<Beg_Bal,Scheduled_Extra_Payments,IF(AND(Pay_Num<>"",Beg_Bal-Sched_Pay>0),Beg_Bal-Sched_Pay,IF(Pay_Num<>"",0,"")))) -> $100.00 | G20: =IF(scheduled_no_payments=1,"",IF(Sched_Pay+Extra_Pay<Beg_Bal,Sched_Pay+Extra_Pay,IF(Pay_Num<>"",Beg_Bal,""))) -> $502.44 | H20: $192.32 | I20: =IF(Pay_Num<>"",Beg_Bal*(Interest_Rate/VLOOKUP(Interval,LoanLookup[],5,FALSE)),"") -> $310.11 | J20: =IF(scheduled_no_payments=1,"",IF(AND(Pay_Num<>"",Sched_Pay+Extra_Pay<Beg_Bal),Beg_Bal-Princ,IF(Pay_Num<>"",0,""))) -> $148,662.11 | K20: =IF(scheduled_no_payments=1,"",SUM($I$14:$I20)) -> $2,179.16
B21: =IF(AND(Values_Entered,scheduled_no_payments<>1),B20+1,"") -> 8 | C21: =IF(Pay_Num<>"",DATE(YEAR(C20)+VLOOKUP(Interval,LoanLookup[],4,FALSE),MONTH(C20)+VLOOKUP(Interval,LoanLookup[],2,FALSE),DAY(C20)+VLOOKUP(Interval,LoanLookup[],3,FALSE)),"") -> 2023-05-18 | D21: $148,662.11 | E21: $402.44 | F21: =IF(scheduled_no_payments=1,"",IF(Sched_Pay+Scheduled_Extra_Payments<Beg_Bal,Scheduled_Extra_Payments,IF(AND(Pay_Num<>"",Beg_Bal-Sched_Pay>0),Beg_Bal-Sched_Pay,IF(Pay_Num<>"",0,"")))) -> $100.00 | G21: =IF(scheduled_no_payments=1,"",IF(Sched_Pay+Extra_Pay<Beg_Bal,Sched_Pay+Extra_Pay,IF(Pay_Num<>"",Beg_Bal,""))) -> $502.44 | H21: $192.72 | I21: =IF(Pay_Num<>"",Beg_Bal*(Interest_Rate/VLOOKUP(Interval,LoanLookup[],5,FALSE)),"") -> $309.71 | J21: =IF(scheduled_no_payments=1,"",IF(AND(Pay_Num<>"",Sched_Pay+Extra_Pay<Beg_Bal),Beg_Bal-Princ,IF(Pay_Num<>"",0,""))) -> $148,469.39 | K21: =IF(scheduled_no_payments=1,"",SUM($I$14:$I21)) -> $2,488.87
B22: =IF(AND(Values_Entered,scheduled_no_payments<>1),B21+1,"") -> 9 | C22: =IF(Pay_Num<>"",DATE(YEAR(C21)+VLOOKUP(Interval,LoanLookup[],4,FALSE),MONTH(C21)+VLOOKUP(Interval,LoanLookup[],2,FALSE),DAY(C21)+VLOOKUP(Interval,LoanLookup[],3,FALSE)),"") -> 2023-06-02 | D22: $148,469.39 | E22: $402.44 | F22: =IF(scheduled_no_payments=1,"",IF(Sched_Pay+Scheduled_Extra_Payments<Beg_Bal,Scheduled_Extra_Payments,IF(AND(Pay_Num<>"",Beg_Bal-Sched_Pay>0),Beg_Bal-Sched_Pay,IF(Pay_Num<>"",0,"")))) -> $100.00 | G22: =IF(scheduled_no_payments=1,"",IF(Sched_Pay+Extra_Pay<Beg_Bal,Sched_Pay+Extra_Pay,IF(Pay_Num<>"",Beg_Bal,""))) -> $502.44 | H22: $193.12 | I22: =IF(Pay_Num<>"",Beg_Bal*(Interest_Rate/VLOOKUP(Interval,LoanLookup[],5,FALSE)),"") -> $309.31 | J22: =IF(scheduled_no_payments=1,"",IF(AND(Pay_Num<>"",Sched_Pay+Extra_Pay<Beg_Bal),Beg_Bal-Princ,IF(Pay_Num<>"",0,""))) -> $148,276.26 | K22: =IF(scheduled_no_payments=1,"",SUM($I$14:$I22)) -> $2,798.19
B23: =IF(AND(Values_Entered,scheduled_no_payments<>1),B22+1,"") -> 10 | C23: =IF(Pay_Num<>"",DATE(YEAR(C22)+VLOOKUP(Interval,LoanLookup[],4,FALSE),MONTH(C22)+VLOOKUP(Interval,LoanLookup[],2,FALSE),DAY(C22)+VLOOKUP(Interval,LoanLookup[],3,FALSE)),"") -> 2023-06-17 | D23: $148,276.26 | E23: $402.44 | F23: =IF(scheduled_no_payments=1,"",IF(Sched_Pay+Scheduled_Extra_Payments<Beg_Bal,Scheduled_Extra_Payments,IF(AND(Pay_Num<>"",Beg_Bal-Sched_Pay>0),Beg_Bal-Sched_Pay,IF(Pay_Num<>"",0,"")))) -> $100.00 | G23: =IF(scheduled_no_payments=1,"",IF(Sched_Pay+Extra_Pay<Beg_Bal,Sched_Pay+Extra_Pay,IF(Pay_Num<>"",Beg_Bal,""))) -> $502.44 | H23: $193.53 | I23: =IF(Pay_Num<>"",Beg_Bal*(Interest_Rate/VLOOKUP(Interval,LoanLookup[],5,FALSE)),"") -> $308.91 | J23: =IF(scheduled_no_payments=1,"",IF(AND(Pay_Num<>"",Sched_Pay+Extra_Pay<Beg_Bal),Beg_Bal-Princ,IF(Pay_Num<>"",0,""))) -> $148,082.74 | K23: =IF(scheduled_no_payments=1,"",SUM($I$14:$I23)) -> $3,107.09
B24: =IF(AND(Values_Entered,scheduled_no_payments<>1),B23+1,"") -> 11 | C24: =IF(Pay_Num<>"",DATE(YEAR(C23)+VLOOKUP(Interval,LoanLookup[],4,FALSE),MONTH(C23)+VLOOKUP(Interval,LoanLookup[],2,FALSE),DAY(C23)+VLOOKUP(Interval,LoanLookup[],3,FALSE)),"") -> 2023-07-02 | D24: $148,082.74 | E24: $402.44 | F24: =IF(scheduled_no_payments=1,"",IF(Sched_Pay+Scheduled_Extra_Payments<Beg_Bal,Scheduled_Extra_Payments,IF(AND(Pay_Num<>"",Beg_Bal-Sched_Pay>0),Beg_Bal-Sched_Pay,IF(Pay_Num<>"",0,"")))) -> $100.00 | G24: =IF(scheduled_no_payments=1,"",IF(Sched_Pay+Extra_Pay<Beg_Bal,Sched_Pay+Extra_Pay,IF(Pay_Num<>"",Beg_Bal,""))) -> $502.44 | H24: $193.93 | I24: =IF(Pay_Num<>"",Beg_Bal*(Interest_Rate/VLOOKUP(Interval,LoanLookup[],5,FALSE)),"") -> $308.51 | J24: =IF(scheduled_no_payments=1,"",IF(AND(Pay_Num<>"",Sched_Pay+Extra_Pay<Beg_Bal),Beg_Bal-Princ,IF(Pay_Num<>"",0,""))) -> $147,888.81 | K24: =IF(scheduled_no_payments=1,"",SUM($I$14:$I24)) -> $3,415.60
B25: =IF(AND(Values_Entered,scheduled_no_payments<>1),B24+1,"") -> 12 | C25: =IF(Pay_Num<>"",DATE(YEAR(C24)+VLOOKUP(Interval,LoanLookup[],4,FALSE),MONTH(C24)+VLOOKUP(Interval,LoanLookup[],2,FALSE),DAY(C24)+VLOOKUP(Interval,LoanLookup[],3,FALSE)),"") -> 2023-07-17 | D25: $147,888.81 | E25: $402.44 | F25: =IF(scheduled_no_payments=1,"",IF(Sched_Pay+Scheduled_Extra_Payments<Beg_Bal,Scheduled_Extra_Payments,IF(AND(Pay_Num<>"",Beg_Bal-Sched_Pay>0),Beg_Bal-Sched_Pay,IF(Pay_Num<>"",0,"")))) -> $100.00 | G25: =IF(scheduled_no_payments=1,"",IF(Sched_Pay+Extra_Pay<Beg_Bal,Sched_Pay+Extra_Pay,IF(Pay_Num<>"",Beg_Bal,""))) -> $502.44 | H25: $194.33 | I25: =IF(Pay_Num<>"",Beg_Bal*(Interest_Rate/VLOOKUP(Interval,LoanLookup[],5,FALSE)),"") -> $308.10 | J25: =IF(scheduled_no_payments=1,"",IF(AND(Pay_Num<>"",Sched_Pay+Extra_Pay<Beg_Bal),Beg_Bal-Princ,IF(Pay_Num<>"",0,""))) -> $147,694.47 | K25: =IF(scheduled_no_payments=1,"",SUM($I$14:$I25)) -> $3,723.70
B26: =IF(AND(Values_Entered,scheduled_no_payments<>1),B25+1,"") -> 13 | C26: =IF(Pay_Num<>"",DATE(YEAR(C25)+VLOOKUP(Interval,LoanLookup[],4,FALSE),MONTH(C25)+VLOOKUP(Interval,LoanLookup[],2,FALSE),DAY(C25)+VLOOKUP(Interval,LoanLookup[],3,FALSE)),"") -> 2023-08-01 | D26: $147,694.47 | E26: $402.44 | F26: =IF(scheduled_no_payments=1,"",IF(Sched_Pay+Scheduled_Extra_Payments<Beg_Bal,Scheduled_Extra_Payments,IF(AND(Pay_Num<>"",Beg_Bal-Sched_Pay>0),Beg_Bal-Sched_Pay,IF(Pay_Num<>"",0,"")))) -> $100.00 | G26: =IF(scheduled_no_payments=1,"",IF(Sched_Pay+Extra_Pay<Beg_Bal,Sched_Pay+Extra_Pay,IF(Pay_Num<>"",Beg_Bal,""))) -> $502.44 | H26: $194.74 | I26: =IF(Pay_Num<>"",Beg_Bal*(Interest_Rate/VLOOKUP(Interval,LoanLookup[],5,FALSE)),"") -> $307.70 | J26: =IF(scheduled_no_payments=1,"",IF(AND(Pay_Num<>"",Sched_Pay+Extra_Pay<Beg_Bal),Beg_Bal-Princ,IF(Pay_Num<>"",0,""))) -> $147,499.73 | K26: =IF(scheduled_no_payments=1,"",SUM($I$14:$I26)) -> $4,031.40
B27: =IF(AND(Values_Entered,scheduled_no_payments<>1),B26+1,"") -> 14 | C27: =IF(Pay_Num<>"",DATE(YEAR(C26)+VLOOKUP(Interval,LoanLookup[],4,FALSE),MONTH(C26)+VLOOKUP(Interval,LoanLookup[],2,FALSE),DAY(C26)+VLOOKUP(Interval,LoanLookup[],3,FALSE)),"") -> 2023-08-16 | D27: $147,499.73 | E27: $402.44 | F27: =IF(scheduled_no_payments=1,"",IF(Sched_Pay+Scheduled_Extra_Payments<Beg_Bal,Scheduled_Extra_Payments,IF(AND(Pay_Num<>"",Beg_Bal-Sched_Pay>0),Beg_Bal-Sched_Pay,IF(Pay_Num<>"",0,"")))) -> $100.00 | G27: =IF(scheduled_no_payments=1,"",IF(Sched_Pay+Extra_Pay<Beg_Bal,Sched_Pay+Extra_Pay,IF(Pay_Num<>"",Beg_Bal,""))) -> $502.44 | H27: $195.14 | I27: =IF(Pay_Num<>"",Beg_Bal*(Interest_Rate/VLOOKUP(Interval,LoanLookup[],5,FALSE)),"") -> $307.29 | J27: =IF(scheduled_no_payments=1,"",IF(AND(Pay_Num<>"",Sched_Pay+Extra_Pay<Beg_Bal),Beg_Bal-Princ,IF(Pay_Num<>"",0,""))) -> $147,304.59 | K27: =IF(scheduled_no_payments=1,"",SUM($I$14:$I27)) -> $4,338.69
B28: =IF(AND(Values_Entered,scheduled_no_payments<>1),B27+1,"") -> 15 | C28: =IF(Pay_Num<>"",DATE(YEAR(C27)+VLOOKUP(Interval,LoanLookup[],4,FALSE),MONTH(C27)+VLOOKUP(Interval,LoanLookup[],2,FALSE),DAY(C27)+VLOOKUP(Interval,LoanLookup[],3,FALSE)),"") -> 2023-08-31 | D28: $147,304.59 | E28: $402.44 | F28: =IF(scheduled_no_payments=1,"",IF(Sched_Pay+Scheduled_Extra_Payments<Beg_Bal,Scheduled_Extra_Payments,IF(AND(Pay_Num<>"",Beg_Bal-Sched_Pay>0),Beg_Bal-Sched_Pay,IF(Pay_Num<>"",0,"")))) -> $100.00 | G28: =IF(scheduled_no_payments=1,"",IF(Sched_Pay+Extra_Pay<Beg_Bal,Sched_Pay+Extra_Pay,IF(Pay_Num<>"",Beg_Bal,""))) -> $502.44 | H28: $195.55 | I28: =IF(Pay_Num<>"",Beg_Bal*(Interest_Rate/VLOOKUP(Interval,LoanLookup[],5,FALSE)),"") -> $306.88 | J28: =IF(scheduled_no_payments=1,"",IF(AND(Pay_Num<>"",Sched_Pay+Extra_Pay<Beg_Bal),Beg_Bal-Princ,IF(Pay_Num<>"",0,""))) -> $147,109.04 | K28: =IF(scheduled_no_payments=1,"",SUM($I$14:$I28)) -> $4,645.57
B29: =IF(AND(Values_Entered,scheduled_no_payments<>1),B28+1,"") -> 16 | C29: =IF(Pay_Num<>"",DATE(YEAR(C28)+VLOOKUP(Interval,LoanLookup[],4,FALSE),MONTH(C28)+VLOOKUP(Interval,LoanLookup[],2,FALSE),DAY(C28)+VLOOKUP(Interval,LoanLookup[],3,FALSE)),"") -> 2023-09-15 | D29: $147,109.04 | E29: $402.44 | F29: =IF(scheduled_no_payments=1,"",IF(Sched_Pay+Scheduled_Extra_Payments<Beg_Bal,Scheduled_Extra_Payments,IF(AND(Pay_Num<>"",Beg_Bal-Sched_Pay>0),Beg_Bal-Sched_Pay,IF(Pay_Num<>"",0,"")))) -> $100.00 | G29: =IF(scheduled_no_payments=1,"",IF(Sched_Pay+Extra_Pay<Beg_Bal,Sched_Pay+Extra_Pay,IF(Pay_Num<>"",Beg_Bal,""))) -> $502.44 | H29: $195.96 | I29: =IF(Pay_Num<>"",Beg_Bal*(Interest_Rate/VLOOKUP(Interval,LoanLookup[],5,FALSE)),"") -> $306.48 | J29: =IF(scheduled_no_payments=1,"",IF(AND(Pay_Num<>"",Sched_Pay+Extra_Pay<Beg_Bal),Beg_Bal-Princ,IF(Pay_Num<>"",0,""))) -> $146,913.08 | K29: =IF(scheduled_no_payments=1,"",SUM($I$14:$I29)) -> $4,952.05
B30: =IF(AND(Values_Entered,scheduled_no_payments<>1),B29+1,"") -> 17 | C30: =IF(Pay_Num<>"",DATE(YEAR(C29)+VLOOKUP(Interval,LoanLookup[],4,FALSE),MONTH(C29)+VLOOKUP(Interval,LoanLookup[],2,FALSE),DAY(C29)+VLOOKUP(Interval,LoanLookup[],3,FALSE)),"") -> 2023-09-30 | D30: $146,913.08 | E30: $402.44 | F30: =IF(scheduled_no_payments=1,"",IF(Sched_Pay+Scheduled_Extra_Payments<Beg_Bal,Scheduled_Extra_Payments,IF(AND(Pay_Num<>"",Beg_Bal-Sched_Pay>0),Beg_Bal-Sched_Pay,IF(Pay_Num<>"",0,"")))) -> $100.00 | G30: =IF(scheduled_no_payments=1,"",IF(Sched_Pay+Extra_Pay<Beg_Bal,Sched_Pay+Extra_Pay,IF(Pay_Num<>"",Beg_Bal,""))) -> $502.44 | H30: $196.37 | I30: =IF(Pay_Num<>"",Beg_Bal*(Interest_Rate/VLOOKUP(Interval,LoanLookup[],5,FALSE)),"") -> $306.07 | J30: =IF(scheduled_no_payments=1,"",IF(AND(Pay_Num<>"",Sched_Pay+Extra_Pay<Beg_Bal),Beg_Bal-Princ,IF(Pay_Num<>"",0,""))) -> $146,716.71 | K30: =IF(scheduled_no_payments=1,"",SUM($I$14:$I30)) -> $5,258.12
B31: =IF(AND(Values_Entered,scheduled_no_payments<>1),B30+1,"") -> 18 | C31: =IF(Pay_Num<>"",DATE(YEAR(C30)+VLOOKUP(Interval,LoanLookup[],4,FALSE),MONTH(C30)+VLOOKUP(Interval,LoanLookup[],2,FALSE),DAY(C30)+VLOOKUP(Interval,LoanLookup[],3,FALSE)),"") -> 2023-10-15 | D31: $146,716.71 | E31: $402.44 | F31: =IF(scheduled_no_payments=1,"",IF(Sched_Pay+Scheduled_Extra_Payments<Beg_Bal,Scheduled_Extra_Payments,IF(AND(Pay_Num<>"",Beg_Bal-Sched_Pay>0),Beg_Bal-Sched_Pay,IF(Pay_Num<>"",0,"")))) -> $100.00 | G31: =IF(scheduled_no_payments=1,"",IF(Sched_Pay+Extra_Pay<Beg_Bal,Sched_Pay+Extra_Pay,IF(Pay_Num<>"",Beg_Bal,""))) -> $502.44 | H31: $196.78 | I31: =IF(Pay_Num<>"",Beg_Bal*(Interest_Rate/VLOOKUP(Interval,LoanLookup[],5,FALSE)),"") -> $305.66 | J31: =IF(scheduled_no_payments=1,"",IF(AND(Pay_Num<>"",Sched_Pay+Extra_Pay<Beg_Bal),Beg_Bal-Princ,IF(Pay_Num<>"",0,""))) -> $146,519.94 | K31: =IF(scheduled_no_payments=1,"",SUM($I$14:$I31)) -> $5,563.78
B32: =IF(AND(Values_Entered,scheduled_no_payments<>1),B31+1,"") -> 19 | C32: =IF(Pay_Num<>"",DATE(YEAR(C31)+VLOOKUP(Interval,LoanLookup[],4,FALSE),MONTH(C31)+VLOOKUP(Interval,LoanLookup[],2,FALSE),DAY(C31)+VLOOKUP(Interval,LoanLookup[],3,FALSE)),"") -> 2023-10-30 | D32: $146,519.94 | E32: $402.44 | F32: =IF(scheduled_no_payments=1,"",IF(Sched_Pay+Scheduled_Extra_Payments<Beg_Bal,Scheduled_Extra_Payments,IF(AND(Pay_Num<>"",Beg_Bal-Sched_Pay>0),Beg_Bal-Sched_Pay,IF(Pay_Num<>"",0,"")))) -> $100.00 | G32: =IF(scheduled_no_payments=1,"",IF(Sched_Pay+Extra_Pay<Beg_Bal,Sched_Pay+Extra_Pay,IF(Pay_Num<>"",Beg_Bal,""))) -> $502.44 | H32: $197.19 | I32: =IF(Pay_Num<>"",Beg_Bal*(Interest_Rate/VLOOKUP(Interval,LoanLookup[],5,FALSE)),"") -> $305.25 | J32: =IF(scheduled_no_payments=1,"",IF(AND(Pay_Num<>"",Sched_Pay+Extra_Pay<Beg_Bal),Beg_Bal-Princ,IF(Pay_Num<>"",0,""))) -> $146,322.75 | K32: =IF(scheduled_no_payments=1,"",SUM($I$14:$I32)) -> $5,869.03
B33: =IF(AND(Values_Entered,scheduled_no_payments<>1),B32+1,"") -> 20 | C33: =IF(Pay_Num<>"",DATE(YEAR(C32)+VLOOKUP(Interval,LoanLookup[],4,FALSE),MONTH(C32)+VLOOKUP(Interval,LoanLookup[],2,FALSE),DAY(C32)+VLOOKUP(Interval,LoanLookup[],3,FALSE)),"") -> 2023-11-14 | D33: $146,322.75 | E33: $402.44 | F33: =IF(scheduled_no_payments=1,"",IF(Sched_Pay+Scheduled_Extra_Payments<Beg_Bal,Scheduled_Extra_Payments,IF(AND(Pay_Num<>"",Beg_Bal-Sched_Pay>0),Beg_Bal-Sched_Pay,IF(Pay_Num<>"",0,"")))) -> $100.00 | G33: =IF(scheduled_no_payments=1,"",IF(Sched_Pay+Extra_Pay<Beg_Bal,Sched_Pay+Extra_Pay,IF(Pay_Num<>"",Beg_Bal,""))) -> $502.44 | H33: $197.60 | I33: =IF(Pay_Num<>"",Beg_Bal*(Interest_Rate/VLOOKUP(Interval,LoanLookup[],5,FALSE)),"") -> $304.84 | J33: =IF(scheduled_no_payments=1,"",IF(AND(Pay_Num<>"",Sched_Pay+Extra_Pay<Beg_Bal),Beg_Bal-Princ,IF(Pay_Num<>"",0,""))) -> $146,125.15 | K33: =IF(scheduled_no_payments=1,"",SUM($I$14:$I33)) -> $6,173.87
B34: =IF(AND(Values_Entered,scheduled_no_payments<>1),B33+1,"") -> 21 | C34: =IF(Pay_Num<>"",DATE(YEAR(C33)+VLOOKUP(Interval,LoanLookup[],4,FALSE),MONTH(C33)+VLOOKUP(Interval,LoanLookup[],2,FALSE),DAY(C33)+VLOOKUP(Interval,LoanLookup[],3,FALSE)),"") -> 2023-11-29 | D34: $146,125.15 | E34: $402.44 | F34: =IF(scheduled_no_payments=1,"",IF(Sched_Pay+Scheduled_Extra_Payments<Beg_Bal,Scheduled_Extra_Payments,IF(AND(Pay_Num<>"",Beg_Bal-Sched_Pay>0),Beg_Bal-Sched_Pay,IF(Pay_Num<>"",0,"")))) -> $100.00 | G34: =IF(scheduled_no_payments=1,"",IF(Sched_Pay+Extra_Pay<Beg_Bal,Sched_Pay+Extra_Pay,IF(Pay_Num<>"",Beg_Bal,""))) -> $502.44 | H34: $198.01 | I34: =IF(Pay_Num<>"",Beg_Bal*(Interest_Rate/VLOOKUP(Interval,LoanLookup[],5,FALSE)),"") -> $304.43 | J34: =IF(scheduled_no_payments=1,"",IF(AND(Pay_Num<>"",Sched_Pay+Extra_Pay<Beg_Bal),Beg_Bal-Princ,IF(Pay_Num<>"",0,""))) -> $145,927.14 | K34: =IF(scheduled_no_payments=1,"",SUM($I$14:$I34)) -> $6,478.30
B35: =IF(AND(Values_Entered,scheduled_no_payments<>1),B34+1,"") -> 22 | C35: =IF(Pay_Num<>"",DATE(YEAR(C34)+VLOOKUP(Interval,LoanLookup[],4,FALSE),MONTH(C34)+VLOOKUP(Interval,LoanLookup[],2,FALSE),DAY(C34)+VLOOKUP(Interval,LoanLookup[],3,FALSE)),"") -> 2023-12-14 | D35: =IF(Pay_Num<>"",J34,"") -> $145,927.14 | E35: =IF(Pay_Num<>"",Scheduled_Monthly_Payment,"") -> $402.44 | F35: =IF(scheduled_no_payments=1,"",IF(Sched_Pay+Scheduled_Extra_Payments<Beg_Bal,Scheduled_Extra_Payments,IF(AND(Pay_Num<>"",Beg_Bal-Sched_Pay>0),Beg_Bal-Sched_Pay,IF(Pay_Num<>"",0,"")))) -> $100.00 | G35: =IF(scheduled_no_payments=1,"",IF(Sched_Pay+Extra_Pay<Beg_Bal,Sched_Pay+Extra_Pay,IF(Pay_Num<>"",Beg_Bal,""))) -> $502.44 | H35: =IF(Pay_Num<>"",Total_Pay-Int,"") -> $198.42 | I35: =IF(Pay_Num<>"",Beg_Bal*(Interest_Rate/VLOOKUP(Interval,LoanLookup[],5,FALSE)),"") -> $304.01 | J35: =IF(scheduled_no_payments=1,"",IF(AND(Pay_Num<>"",Sched_Pay+Extra_Pay<Beg_Bal),Beg_Bal-Princ,IF(Pay_Num<>"",0,""))) -> $145,728.72 | K35: =IF(scheduled_no_payments=1,"",SUM($I$14:$I35)) -> $6,782.31
B36: =IF(AND(Values_Entered,scheduled_no_payments<>1),B35+1,"") -> 23 | C36: =IF(Pay_Num<>"",DATE(YEAR(C35)+VLOOKUP(Interval,LoanLookup[],4,FALSE),MONTH(C35)+VLOOKUP(Interval,LoanLookup[],2,FALSE),DAY(C35)+VLOOKUP(Interval,LoanLookup[],3,FALSE)),"") -> 2023-12-29 | D36: $145,728.72 | E36: $402.44 | F36: =IF(scheduled_no_payments=1,"",IF(Sched_Pay+Scheduled_Extra_Payments<Beg_Bal,Scheduled_Extra_Payments,IF(AND(Pay_Num<>"",Beg_Bal-Sched_Pay>0),Beg_Bal-Sched_Pay,IF(Pay_Num<>"",0,"")))) -> $100.00 | G36: =IF(scheduled_no_payments=1,"",IF(Sched_Pay+Extra_Pay<Beg_Bal,Sched_Pay+Extra_Pay,IF(Pay_Num<>"",Beg_Bal,""))) -> $502.44 | H36: $198.83 | I36: =IF(Pay_Num<>"",Beg_Bal*(Interest_Rate/VLOOKUP(Interval,LoanLookup[],5,FALSE)),"") -> $303.60 | J36: =IF(scheduled_no_payments=1,"",IF(AND(Pay_Num<>"",Sched_Pay+Extra_Pay<Beg_Bal),Beg_Bal-Princ,IF(Pay_Num<>"",0,""))) -> $145,529.89 | K36: =IF(scheduled_no_payments=1,"",SUM($I$14:$I36)) -> $7,085.91
B37: =IF(AND(Values_Entered,scheduled_no_payments<>1),B36+1,"") -> 24 | C37: =IF(Pay_Num<>"",DATE(YEAR(C36)+VLOOKUP(Interval,LoanLookup[],4,FALSE),MONTH(C36)+VLOOKUP(Interval,LoanLookup[],2,FALSE),DAY(C36)+VLOOKUP(Interval,LoanLookup[],3,FALSE)),"") -> 2024-01-13 | D37: $145,529.89 | E37: $402.44 | F37: =IF(scheduled_no_payments=1,"",IF(Sched_Pay+Scheduled_Extra_Payments<Beg_Bal,Scheduled_Extra_Payments,IF(AND(Pay_Num<>"",Beg_Bal-Sched_Pay>0),Beg_Bal-Sched_Pay,IF(Pay_Num<>"",0,"")))) -> $100.00 | G37: =IF(scheduled_no_payments=1,"",IF(Sched_Pay+Extra_Pay<Beg_Bal,Sched_Pay+Extra_Pay,IF(Pay_Num<>"",Beg_Bal,""))) -> $502.44 | H37: $199.25 | I37: =IF(Pay_Num<>"",Beg_Bal*(Interest_Rate/VLOOKUP(Interval,LoanLookup[],5,FALSE)),"") -> $303.19 | J37: =IF(scheduled_no_payments=1,"",IF(AND(Pay_Num<>"",Sched_Pay+Extra_Pay<Beg_Bal),Beg_Bal-Princ,IF(Pay_Num<>"",0,""))) -> $145,330.64 | K37: =IF(scheduled_no_payments=1,"",SUM($I$14:$I37)) -> $7,389.10
B38: =IF(AND(Values_Entered,scheduled_no_payments<>1),B37+1,"") -> 25 | C38: =IF(Pay_Num<>"",DATE(YEAR(C37)+VLOOKUP(Interval,LoanLookup[],4,FALSE),MONTH(C37)+VLOOKUP(Interval,LoanLookup[],2,FALSE),DAY(C37)+VLOOKUP(Interval,LoanLookup[],3,FALSE)),"") -> 2024-01-28 | D38: $145,330.64 | E38: $402.44 | F38: =IF(scheduled_no_payments=1,"",IF(Sched_Pay+Scheduled_Extra_Payments<Beg_Bal,Scheduled_Extra_Payments,IF(AND(Pay_Num<>"",Beg_Bal-Sched_Pay>0),Beg_Bal-Sched_Pay,IF(Pay_Num<>"",0,"")))) -> $100.00 | G38: =IF(scheduled_no_payments=1,"",IF(Sched_Pay+Extra_Pay<Beg_Bal,Sched_Pay+Extra_Pay,IF(Pay_Num<>"",Beg_Bal,""))) -> $502.44 | H38: $199.66 | I38: =IF(Pay_Num<>"",Beg_Bal*(Interest_Rate/VLOOKUP(Interval,LoanLookup[],5,FALSE)),"") -> $302.77 | J38: =IF(scheduled_no_payments=1,"",IF(AND(Pay_Num<>"",Sched_Pay+Extra_Pay<Beg_Bal),Beg_Bal-Princ,IF(Pay_Num<>"",0,""))) -> $145,130.98 | K38: =IF(scheduled_no_payments=1,"",SUM($I$14:$I38)) -> $7,691.87
B39: =IF(AND(Values_Entered,scheduled_no_payments<>1),B38+1,"") -> 26 | C39: =IF(Pay_Num<>"",DATE(YEAR(C38)+VLOOKUP(Interval,LoanLookup[],4,FALSE),MONTH(C38)+VLOOKUP(Interval,LoanLookup[],2,FALSE),DAY(C38)+VLOOKUP(Interval,LoanLookup[],3,FALSE)),"") -> 2024-02-12 | D39: $145,130.98 | E39: $402.44 | F39: =IF(scheduled_no_payments=1,"",IF(Sched_Pay+Scheduled_Extra_Payments<Beg_Bal,Scheduled_Extra_Payments,IF(AND(Pay_Num<>"",Beg_Bal-Sched_Pay>0),Beg_Bal-Sched_Pay,IF(Pay_Num<>"",0,"")))) -> $100.00 | G39: =IF(scheduled_no_payments=1,"",IF(Sched_Pay+Extra_Pay<Beg_Bal,Sched_Pay+Extra_Pay,IF(Pay_Num<>"",Beg_Bal,""))) -> $502.44 | H39: $200.08 | I39: =IF(Pay_Num<>"",Beg_Bal*(Interest_Rate/VLOOKUP(Interval,LoanLookup[],5,FALSE)),"") -> $302.36 | J39: =IF(scheduled_no_payments=1,"",IF(AND(Pay_Num<>"",Sched_Pay+Extra_Pay<Beg_Bal),Beg_Bal-Princ,IF(Pay_Num<>"",0,""))) -> $144,930.90 | K39: =IF(scheduled_no_payments=1,"",SUM($I$14:$I39)) -> $7,994.23
B40: =IF(AND(Values_Entered,scheduled_no_payments<>1),B39+1,"") -> 27 | C40: =IF(Pay_Num<>"",DATE(YEAR(C39)+VLOOKUP(Interval,LoanLookup[],4,FALSE),MONTH(C39)+VLOOKUP(Interval,LoanLookup[],2,FALSE),DAY(C39)+VLOOKUP(Interval,LoanLookup[],3,FALSE)),"") -> 2024-02-27 | D40: $144,930.90 | E40: $402.44 | F40: =IF(scheduled_no_payments=1,"",IF(Sched_Pay+Scheduled_Extra_Payments<Beg_Bal,Scheduled_Extra_Payments,IF(AND(Pay_Num<>"",Beg_Bal-Sched_Pay>0),Beg_Bal-Sched_Pay,IF(Pay_Num<>"",0,"")))) -> $100.00 | G40: =IF(scheduled_no_payments=1,"",IF(Sched_Pay+Extra_Pay<Beg_Bal,Sched_Pay+Extra_Pay,IF(Pay_Num<>"",Beg_Bal,""))) -> $502.44 | H40: $200.50 | I40: =IF(Pay_Num<>"",Beg_Bal*(Interest_Rate/VLOOKUP(Interval,LoanLookup[],5,FALSE)),"") -> $301.94 | J40: =IF(scheduled_no_payments=1,"",IF(AND(Pay_Num<>"",Sched_Pay+Extra_Pay<Beg_Bal),Beg_Bal-Princ,IF(Pay_Num<>"",0,""))) -> $144,730.40 | K40: =IF(scheduled_no_payments=1,"",SUM($I$14:$I40)) -> $8,296.17
B41: =IF(AND(Values_Entered,scheduled_no_payments<>1),B40+1,"") -> 28 | C41: =IF(Pay_Num<>"",DATE(YEAR(C40)+VLOOKUP(Interval,LoanLookup[],4,FALSE),MONTH(C40)+VLOOKUP(Interval,LoanLookup[],2,FALSE),DAY(C40)+VLOOKUP(Interval,LoanLookup[],3,FALSE)),"") -> 2024-03-13 | D41: $144,730.40 | E41: $402.44 | F41: =IF(scheduled_no_payments=1,"",IF(Sched_Pay+Scheduled_Extra_Payments<Beg_Bal,Scheduled_Extra_Payments,IF(AND(Pay_Num<>"",Beg_Bal-Sched_Pay>0),Beg_Bal-Sched_Pay,IF(Pay_Num<>"",0,"")))) -> $100.00 | G41: =IF(scheduled_no_payments=1,"",IF(Sched_Pay+Extra_Pay<Beg_Bal,Sched_Pay+Extra_Pay,IF(Pay_Num<>"",Beg_Bal,""))) -> $502.44 | H41: $200.91 | I41: =IF(Pay_Num<>"",Beg_Bal*(Interest_Rate/VLOOKUP(Interval,LoanLookup[],5,FALSE)),"") -> $301.52 | J41: =IF(scheduled_no_payments=1,"",IF(AND(Pay_Num<>"",Sched_Pay+Extra_Pay<Beg_Bal),Beg_Bal-Princ,IF(Pay_Num<>"",0,""))) -> $144,529.49 | K41: =IF(scheduled_no_payments=1,"",SUM($I$14:$I41)) -> $8,597.69
B42: =IF(AND(Values_Entered,scheduled_no_payments<>1),B41+1,"") -> 29 | C42: =IF(Pay_Num<>"",DATE(YEAR(C41)+VLOOKUP(Interval,LoanLookup[],4,FALSE),MONTH(C41)+VLOOKUP(Interval,LoanLookup[],2,FALSE),DAY(C41)+VLOOKUP(Interval,LoanLookup[],3,FALSE)),"") -> 2024-03-28 | D42: $144,529.49 | E42: $402.44 | F42: =IF(scheduled_no_payments=1,"",IF(Sched_Pay+Scheduled_Extra_Payments<Beg_Bal,Scheduled_Extra_Payments,IF(AND(Pay_Num<>"",Beg_Bal-Sched_Pay>0),Beg_Bal-Sched_Pay,IF(Pay_Num<>"",0,"")))) -> $100.00 | G42: =IF(scheduled_no_payments=1,"",IF(Sched_Pay+Extra_Pay<Beg_Bal,Sched_Pay+Extra_Pay,IF(Pay_Num<>"",Beg_Bal,""))) -> $502.44 | H42: $201.33 | I42: =IF(Pay_Num<>"",Beg_Bal*(Interest_Rate/VLOOKUP(Interval,LoanLookup[],5,FALSE)),"") -> $301.10 | J42: =IF(scheduled_no_payments=1,"",IF(AND(Pay_Num<>"",Sched_Pay+Extra_Pay<Beg_Bal),Beg_Bal-Princ,IF(Pay_Num<>"",0,""))) -> $144,328.15 | K42: =IF(scheduled_no_payments=1,"",SUM($I$14:$I42)) -> $8,898.79
B43: =IF(AND(Values_Entered,scheduled_no_payments<>1),B42+1,"") -> 30 | C43: =IF(Pay_Num<>"",DATE(YEAR(C42)+VLOOKUP(Interval,LoanLookup[],4,FALSE),MONTH(C42)+VLOOKUP(Interval,LoanLookup[],2,FALSE),DAY(C42)+VLOOKUP(Interval,LoanLookup[],3,FALSE)),"") -> 2024-04-12 | D43: $144,328.15 | E43: $402.44 | F43: =IF(scheduled_no_payments=1,"",IF(Sched_Pay+Scheduled_Extra_Payments<Beg_Bal,Scheduled_Extra_Payments,IF(AND(Pay_Num<>"",Beg_Bal-Sched_Pay>0),Beg_Bal-Sched_Pay,IF(Pay_Num<>"",0,"")))) -> $100.00 | G43: =IF(scheduled_no_payments=1,"",IF(Sched_Pay+Extra_Pay<Beg_Bal,Sched_Pay+Extra_Pay,IF(Pay_Num<>"",Beg_Bal,""))) -> $502.44 | H43: $201.75 | I43: =IF(Pay_Num<>"",Beg_Bal*(Interest_Rate/VLOOKUP(Interval,LoanLookup[],5,FALSE)),"") -> $300.68 | J43: =IF(scheduled_no_payments=1,"",IF(AND(Pay_Num<>"",Sched_Pay+Extra_Pay<Beg_Bal),Beg_Bal-Princ,IF(Pay_Num<>"",0,""))) -> $144,126.40 | K43: =IF(scheduled_no_payments=1,"",SUM($I$14:$I43)) -> $9,199.48
B44: =IF(AND(Values_Entered,scheduled_no_payments<>1),B43+1,"") -> 31 | C44: =IF(Pay_Num<>"",DATE(YEAR(C43)+VLOOKUP(Interval,LoanLookup[],4,FALSE),MONTH(C43)+VLOOKUP(Interval,LoanLookup[],2,FALSE),DAY(C43)+VLOOKUP(Interval,LoanLookup[],3,FALSE)),"") -> 2024-04-27 | D44: $144,126.40 | E44: $402.44 | F44: =IF(scheduled_no_payments=1,"",IF(Sched_Pay+Scheduled_Extra_Payments<Beg_Bal,Scheduled_Extra_Payments,IF(AND(Pay_Num<>"",Beg_Bal-Sched_Pay>0),Beg_Bal-Sched_Pay,IF(Pay_Num<>"",0,"")))) -> $100.00 | G44: =IF(scheduled_no_payments=1,"",IF(Sched_Pay+Extra_Pay<Beg_Bal,Sched_Pay+Extra_Pay,IF(Pay_Num<>"",Beg_Bal,""))) -> $502.44 | H44: $202.17 | I44: =IF(Pay_Num<>"",Beg_Bal*(Interest_Rate/VLOOKUP(Interval,LoanLookup[],5,FALSE)),"") -> $300.26 | J44: =IF(scheduled_no_payments=1,"",IF(AND(Pay_Num<>"",Sched_Pay+Extra_Pay<Beg_Bal),Beg_Bal-Princ,IF(Pay_Num<>"",0,""))) -> $143,924.23 | K44: =IF(scheduled_no_payments=1,"",SUM($I$14:$I44)) -> $9,499.74
B45: =IF(AND(Values_Entered,scheduled_no_payments<>1),B44+1,"") -> 32 | C45: =IF(Pay_Num<>"",DATE(YEAR(C44)+VLOOKUP(Interval,LoanLookup[],4,FALSE),MONTH(C44)+VLOOKUP(Interval,LoanLookup[],2,FALSE),DAY(C44)+VLOOKUP(Interval,LoanLookup[],3,FALSE)),"") -> 2024-05-12 | D45: $143,924.23 | E45: $402.44 | F45: =IF(scheduled_no_payments=1,"",IF(Sched_Pay+Scheduled_Extra_Payments<Beg_Bal,Scheduled_Extra_Payments,IF(AND(Pay_Num<>"",Beg_Bal-Sched_Pay>0),Beg_Bal-Sched_Pay,IF(Pay_Num<>"",0,"")))) -> $100.00 | G45: =IF(scheduled_no_payments=1,"",IF(Sched_Pay+Extra_Pay<Beg_Bal,Sched_Pay+Extra_Pay,IF(Pay_Num<>"",Beg_Bal,""))) -> $502.44 | H45: $202.59 | I45: =IF(Pay_Num<>"",Beg_Bal*(Interest_Rate/VLOOKUP(Interval,LoanLookup[],5,FALSE)),"") -> $299.84 | J45: =IF(scheduled_no_payments=1,"",IF(AND(Pay_Num<>"",Sched_Pay+Extra_Pay<Beg_Bal),Beg_Bal-Princ,IF(Pay_Num<>"",0,""))) -> $143,721.64 | K45: =IF(scheduled_no_payments=1,"",SUM($I$14:$I45)) -> $9,799.58
B46: =IF(AND(Values_Entered,scheduled_no_payments<>1),B45+1,"") -> 33 | C46: =IF(Pay_Num<>"",DATE(YEAR(C45)+VLOOKUP(Interval,LoanLookup[],4,FALSE),MONTH(C45)+VLOOKUP(Interval,LoanLookup[],2,FALSE),DAY(C45)+VLOOKUP(Interval,LoanLookup[],3,FALSE)),"") -> 2024-05-27 | D46: $143,721.64 | E46: $402.44 | F46: =IF(scheduled_no_payments=1,"",IF(Sched_Pay+Scheduled_Extra_Payments<Beg_Bal,Scheduled_Extra_Payments,IF(AND(Pay_Num<>"",Beg_Bal-Sched_Pay>0),Beg_Bal-Sched_Pay,IF(Pay_Num<>"",0,"")))) -> $100.00 | G46: =IF(scheduled_no_payments=1,"",IF(Sched_Pay+Extra_Pay<Beg_Bal,Sched_Pay+Extra_Pay,IF(Pay_Num<>"",Beg_Bal,""))) -> $502.44 | H46: $203.02 | I46: =IF(Pay_Num<>"",Beg_Bal*(Interest_Rate/VLOOKUP(Interval,LoanLookup[],5,FALSE)),"") -> $299.42 | J46: =IF(scheduled_no_payments=1,"",IF(AND(Pay_Num<>"",Sched_Pay+Extra_Pay<Beg_Bal),Beg_Bal-Princ,IF(Pay_Num<>"",0,""))) -> $143,518.62 | K46: =IF(scheduled_no_payments=1,"",SUM($I$14:$I46)) -> $10,099.00
B47: =IF(AND(Values_Entered,scheduled_no_payments<>1),B46+1,"") -> 34 | C47: =IF(Pay_Num<>"",DATE(YEAR(C46)+VLOOKUP(Interval,LoanLookup[],4,FALSE),MONTH(C46)+VLOOKUP(Interval,LoanLookup[],2,FALSE),DAY(C46)+VLOOKUP(Interval,LoanLookup[],3,FALSE)),"") -> 2024-06-11 | D47: $143,518.62 | E47: $402.44 | F47: =IF(scheduled_no_payments=1,"",IF(Sched_Pay+Scheduled_Extra_Payments<Beg_Bal,Scheduled_Extra_Payments,IF(AND(Pay_Num<>"",Beg_Bal-Sched_Pay>0),Beg_Bal-Sched_Pay,IF(Pay_Num<>"",0,"")))) -> $100.00 | G47: =IF(scheduled_no_payments=1,"",IF(Sched_Pay+Extra_Pay<Beg_Bal,Sched_Pay+Extra_Pay,IF(Pay_Num<>"",Beg_Bal,""))) -> $502.44 | H47: $203.44 | I47: =IF(Pay_Num<>"",Beg_Bal*(Interest_Rate/VLOOKUP(Interval,LoanLookup[],5,FALSE)),"") -> $299.00 | J47: =IF(scheduled_no_payments=1,"",IF(AND(Pay_Num<>"",Sched_Pay+Extra_Pay<Beg_Bal),Beg_Bal-Princ,IF(Pay_Num<>"",0,""))) -> $143,315.18 | K47: =IF(scheduled_no_payments=1,"",SUM($I$14:$I47)) -> $10,398.00
B48: =IF(AND(Values_Entered,scheduled_no_payments<>1),B47+1,"") -> 35 | C48: =IF(Pay_Num<>"",DATE(YEAR(C47)+VLOOKUP(Interval,LoanLookup[],4,FALSE),MONTH(C47)+VLOOKUP(Interval,LoanLookup[],2,FALSE),DAY(C47)+VLOOKUP(Interval,LoanLookup[],3,FALSE)),"") -> 2024-06-26 | D48: $143,315.18 | E48: $402.44 | F48: =IF(scheduled_no_payments=1,"",IF(Sched_Pay+Scheduled_Extra_Payments<Beg_Bal,Scheduled_Extra_Payments,IF(AND(Pay_Num<>"",Beg_Bal-Sched_Pay>0),Beg_Bal-Sched_Pay,IF(Pay_Num<>"",0,"")))) -> $100.00 | G48: =IF(scheduled_no_payments=1,"",IF(Sched_Pay+Extra_Pay<Beg_Bal,Sched_Pay+Extra_Pay,IF(Pay_Num<>"",Beg_Bal,""))) -> $502.44 | H48: $203.86 | I48: =IF(Pay_Num<>"",Beg_Bal*(Interest_Rate/VLOOKUP(Interval,LoanLookup[],5,FALSE)),"") -> $298.57 | J48: =IF(scheduled_no_payments=1,"",IF(AND(Pay_Num<>"",Sched_Pay+Extra_Pay<Beg_Bal),Beg_Bal-Princ,IF(Pay_Num<>"",0,""))) -> $143,111.32 | K48: =IF(scheduled_no_payments=1,"",SUM($I$14:$I48)) -> $10,696.57
B49: =IF(AND(Values_Entered,scheduled_no_payments<>1),B48+1,"") -> 36 | C49: =IF(Pay_Num<>"",DATE(YEAR(C48)+VLOOKUP(Interval,LoanLookup[],4,FALSE),MONTH(C48)+VLOOKUP(Interval,LoanLookup[],2,FALSE),DAY(C48)+VLOOKUP(Interval,LoanLookup[],3,FALSE)),"") -> 2024-07-11 | D49: $143,111.32 | E49: $402.44 | F49: =IF(scheduled_no_payments=1,"",IF(Sched_Pay+Scheduled_Extra_Payments<Beg_Bal,Scheduled_Extra_Payments,IF(AND(Pay_Num<>"",Beg_Bal-Sched_Pay>0),Beg_Bal-Sched_Pay,IF(Pay_Num<>"",0,"")))) -> $100.00 | G49: =IF(scheduled_no_payments=1,"",IF(Sched_Pay+Extra_Pay<Beg_Bal,Sched_Pay+Extra_Pay,IF(Pay_Num<>"",Beg_Bal,""))) -> $502.44 | H49: $204.29 | I49: =IF(Pay_Num<>"",Beg_Bal*(Interest_Rate/VLOOKUP(Interval,LoanLookup[],5,FALSE)),"") -> $298.15 | J49: =IF(scheduled_no_payments=1,"",IF(AND(Pay_Num<>"",Sched_Pay+Extra_Pay<Beg_Bal),Beg_Bal-Princ,IF(Pay_Num<>"",0,""))) -> $142,907.03 | K49: =IF(scheduled_no_payments=1,"",SUM($I$14:$I49)) -> $10,994.72
B50: =IF(AND(Values_Entered,scheduled_no_payments<>1),B49+1,"") -> 37 | C50: =IF(Pay_Num<>"",DATE(YEAR(C49)+VLOOKUP(Interval,LoanLookup[],4,FALSE),MONTH(C49)+VLOOKUP(Interval,LoanLookup[],2,FALSE),DAY(C49)+VLOOKUP(Interval,LoanLookup[],3,FALSE)),"") -> 2024-07-26 | D50: $142,907.03 | E50: $402.44 | F50: =IF(scheduled_no_payments=1,"",IF(Sched_Pay+Scheduled_Extra_Payments<Beg_Bal,Scheduled_Extra_Payments,IF(AND(Pay_Num<>"",Beg_Bal-Sched_Pay>0),Beg_Bal-Sched_Pay,IF(Pay_Num<>"",0,"")))) -> $100.00 | G50: =IF(scheduled_no_payments=1,"",IF(Sched_Pay+Extra_Pay<Beg_Bal,Sched_Pay+Extra_Pay,IF(Pay_Num<>"",Beg_Bal,""))) -> $502.44 | H50: $204.71 | I50: =IF(Pay_Num<>"",Beg_Bal*(Interest_Rate/VLOOKUP(Interval,LoanLookup[],5,FALSE)),"") -> $297.72 | J50: =IF(scheduled_no_payments=1,"",IF(AND(Pay_Num<>"",Sched_Pay+Extra_Pay<Beg_Bal),Beg_Bal-Princ,IF(Pay_Num<>"",0,""))) -> $142,702.32 | K50: =IF(scheduled_no_payments=1,"",SUM($I$14:$I50)) -> $11,292.44
B51: =IF(AND(Values_Entered,scheduled_no_payments<>1),B50+1,"") -> 38 | C51: =IF(Pay_Num<>"",DATE(YEAR(C50)+VLOOKUP(Interval,LoanLookup[],4,FALSE),MONTH(C50)+VLOOKUP(Interval,LoanLookup[],2,FALSE),DAY(C50)+VLOOKUP(Interval,LoanLookup[],3,FALSE)),"") -> 2024-08-10 | D51: $142,702.32 | E51: $402.44 | F51: =IF(scheduled_no_payments=1,"",IF(Sched_Pay+Scheduled_Extra_Payments<Beg_Bal,Scheduled_Extra_Payments,IF(AND(Pay_Num<>"",Beg_Bal-Sched_Pay>0),Beg_Bal-Sched_Pay,IF(Pay_Num<>"",0,"")))) -> $100.00 | G51: =IF(scheduled_no_payments=1,"",IF(Sched_Pay+Extra_Pay<Beg_Bal,Sched_Pay+Extra_Pay,IF(Pay_Num<>"",Beg_Bal,""))) -> $502.44 | H51: $205.14 | I51: =IF(Pay_Num<>"",Beg_Bal*(Interest_Rate/VLOOKUP(Interval,LoanLookup[],5,FALSE)),"") -> $297.30 | J51: =IF(scheduled_no_payments=1,"",IF(AND(Pay_Num<>"",Sched_Pay+Extra_Pay<Beg_Bal),Beg_Bal-Princ,IF(Pay_Num<>"",0,""))) -> $142,497.18 | K51: =IF(scheduled_no_payments=1,"",SUM($I$14:$I51)) -> $11,589.74
B52: =IF(AND(Values_Entered,scheduled_no_payments<>1),B51+1,"") -> 39 | C52: =IF(Pay_Num<>"",DATE(YEAR(C51)+VLOOKUP(Interval,LoanLookup[],4,FALSE),MONTH(C51)+VLOOKUP(Interval,LoanLookup[],2,FALSE),DAY(C51)+VLOOKUP(Interval,LoanLookup[],3,FALSE)),"") -> 2024-08-25 | D52: $142,497.18 | E52: $402.44 | F52: =IF(scheduled_no_payments=1,"",IF(Sched_Pay+Scheduled_Extra_Payments<Beg_Bal,Scheduled_Extra_Payments,IF(AND(Pay_Num<>"",Beg_Bal-Sched_Pay>0),Beg_Bal-Sched_Pay,IF(Pay_Num<>"",0,"")))) -> $100.00 | G52: =IF(scheduled_no_payments=1,"",IF(Sched_Pay+Extra_Pay<Beg_Bal,Sched_Pay+Extra_Pay,IF(Pay_Num<>"",Beg_Bal,""))) -> $502.44 | H52: $205.57 | I52: =IF(Pay_Num<>"",Beg_Bal*(Interest_Rate/VLOOKUP(Interval,LoanLookup[],5,FALSE)),"") -> $296.87 | J52: =IF(scheduled_no_payments=1,"",IF(AND(Pay_Num<>"",Sched_Pay+Extra_Pay<Beg_Bal),Beg_Bal-Princ,IF(Pay_Num<>"",0,""))) -> $142,291.61 | K52: =IF(scheduled_no_payments=1,"",SUM($I$14:$I52)) -> $11,886.61
B53: =IF(AND(Values_Entered,scheduled_no_payments<>1),B52+1,"") -> 40 | C53: =IF(Pay_Num<>"",DATE(YEAR(C52)+VLOOKUP(Interval,LoanLookup[],4,FALSE),MONTH(C52)+VLOOKUP(Interval,LoanLookup[],2,FALSE),DAY(C52)+VLOOKUP(Interval,LoanLookup[],3,FALSE)),"") -> 2024-09-09 | D53: $142,291.61 | E53: $402.44 | F53: =IF(scheduled_no_payments=1,"",IF(Sched_Pay+Scheduled_Extra_Payments<Beg_Bal,Scheduled_Extra_Payments,IF(AND(Pay_Num<>"",Beg_Bal-Sched_Pay>0),Beg_Bal-Sched_Pay,IF(Pay_Num<>"",0,"")))) -> $100.00 | G53: =IF(scheduled_no_payments=1,"",IF(Sched_Pay+Extra_Pay<Beg_Bal,Sched_Pay+Extra_Pay,IF(Pay_Num<>"",Beg_Bal,""))) -> $502.44 | H53: $205.99 | I53: =IF(Pay_Num<>"",Beg_Bal*(Interest_Rate/VLOOKUP(Interval,LoanLookup[],5,FALSE)),"") -> $296.44 | J53: =IF(scheduled_no_payments=1,"",IF(AND(Pay_Num<>"",Sched_Pay+Extra_Pay<Beg_Bal),Beg_Bal-Princ,IF(Pay_Num<>"",0,""))) -> $142,085.62 | K53: =IF(scheduled_no_payments=1,"",SUM($I$14:$I53)) -> $12,183.05
B54: =IF(AND(Values_Entered,scheduled_no_payments<>1),B53+1,"") -> 41 | C54: =IF(Pay_Num<>"",DATE(YEAR(C53)+VLOOKUP(Interval,LoanLookup[],4,FALSE),MONTH(C53)+VLOOKUP(Interval,LoanLookup[],2,FALSE),DAY(C53)+VLOOKUP(Interval,LoanLookup[],3,FALSE)),"") -> 2024-09-24 | D54: $142,085.62 | E54: $402.44 | F54: =IF(scheduled_no_payments=1,"",IF(Sched_Pay+Scheduled_Extra_Payments<Beg_Bal,Scheduled_Extra_Payments,IF(AND(Pay_Num<>"",Beg_Bal-Sched_Pay>0),Beg_Bal-Sched_Pay,IF(Pay_Num<>"",0,"")))) -> $100.00 | G54: =IF(scheduled_no_payments=1,"",IF(Sched_Pay+Extra_Pay<Beg_Bal,Sched_Pay+Extra_Pay,IF(Pay_Num<>"",Beg_Bal,""))) -> $502.44 | H54: $206.42 | I54: =IF(Pay_Num<>"",Beg_Bal*(Interest_Rate/VLOOKUP(Interval,LoanLookup[],5,FALSE)),"") -> $296.01 | J54: =IF(scheduled_no_payments=1,"",IF(AND(Pay_Num<>"",Sched_Pay+Extra_Pay<Beg_Bal),Beg_Bal-Princ,IF(Pay_Num<>"",0,""))) -> $141,879.19 | K54: =IF(scheduled_no_payments=1,"",SUM($I$14:$I54)) -> $12,479.06
B55: =IF(AND(Values_Entered,scheduled_no_payments<>1),B54+1,"") -> 42 | C55: =IF(Pay_Num<>"",DATE(YEAR(C54)+VLOOKUP(Interval,LoanLookup[],4,FALSE),MONTH(C54)+VLOOKUP(Interval,LoanLookup[],2,FALSE),DAY(C54)+VLOOKUP(Interval,LoanLookup[],3,FALSE)),"") -> 2024-10-09 | D55: $141,879.19 | E55: $402.44 | F55: =IF(scheduled_no_payments=1,"",IF(Sched_Pay+Scheduled_Extra_Payments<Beg_Bal,Scheduled_Extra_Payments,IF(AND(Pay_Num<>"",Beg_Bal-Sched_Pay>0),Beg_Bal-Sched_Pay,IF(Pay_Num<>"",0,"")))) -> $100.00 | G55: =IF(scheduled_no_payments=1,"",IF(Sched_Pay+Extra_Pay<Beg_Bal,Sched_Pay+Extra_Pay,IF(Pay_Num<>"",Beg_Bal,""))) -> $502.44 | H55: $206.85 | I55: =IF(Pay_Num<>"",Beg_Bal*(Interest_Rate/VLOOKUP(Interval,LoanLookup[],5,FALSE)),"") -> $295.58 | J55: =IF(scheduled_no_payments=1,"",IF(AND(Pay_Num<>"",Sched_Pay+Extra_Pay<Beg_Bal),Beg_Bal-Princ,IF(Pay_Num<>"",0,""))) -> $141,672.34 | K55: =IF(scheduled_no_payments=1,"",SUM($I$14:$I55)) -> $12,774.64
B56: =IF(AND(Values_Entered,scheduled_no_payments<>1),B55+1,"") -> 43 | C56: =IF(Pay_Num<>"",DATE(YEAR(C55)+VLOOKUP(Interval,LoanLookup[],4,FALSE),MONTH(C55)+VLOOKUP(Interval,LoanLookup[],2,FALSE),DAY(C55)+VLOOKUP(Interval,LoanLookup[],3,FALSE)),"") -> 2024-10-24 | D56: $141,672.34 | E56: $402.44 | F56: =IF(scheduled_no_payments=1,"",IF(Sched_Pay+Scheduled_Extra_Payments<Beg_Bal,Scheduled_Extra_Payments,IF(AND(Pay_Num<>"",Beg_Bal-Sched_Pay>0),Beg_Bal-Sched_Pay,IF(Pay_Num<>"",0,"")))) -> $100.00 | G56: =IF(scheduled_no_payments=1,"",IF(Sched_Pay+Extra_Pay<Beg_Bal,Sched_Pay+Extra_Pay,IF(Pay_Num<>"",Beg_Bal,""))) -> $502.44 | H56: $207.29 | I56: =IF(Pay_Num<>"",Beg_Bal*(Interest_Rate/VLOOKUP(Interval,LoanLookup[],5,FALSE)),"") -> $295.15 | J56: =IF(scheduled_no_payments=1,"",IF(AND(Pay_Num<>"",Sched_Pay+Extra_Pay<Beg_Bal),Beg_Bal-Princ,IF(Pay_Num<>"",0,""))) -> $141,465.06 | K56: =IF(scheduled_no_payments=1,"",SUM($I$14:$I56)) -> $13,069.79
B57: =IF(AND(Values_Entered,scheduled_no_payments<>1),B56+1,"") -> 44 | C57: =IF(Pay_Num<>"",DATE(YEAR(C56)+VLOOKUP(Interval,LoanLookup[],4,FALSE),MONTH(C56)+VLOOKUP(Interval,LoanLookup[],2,FALSE),DAY(C56)+VLOOKUP(Interval,LoanLookup[],3,FALSE)),"") -> 2024-11-08 | D57: $141,465.06 | E57: $402.44 | F57: =IF(scheduled_no_payments=1,"",IF(Sched_Pay+Scheduled_Extra_Payments<Beg_Bal,Scheduled_Extra_Payments,IF(AND(Pay_Num<>"",Beg_Bal-Sched_Pay>0),Beg_Bal-Sched_Pay,IF(Pay_Num<>"",0,"")))) -> $100.00 | G57: =IF(scheduled_no_payments=1,"",IF(Sched_Pay+Extra_Pay<Beg_Bal,Sched_Pay+Extra_Pay,IF(Pay_Num<>"",Beg_Bal,""))) -> $502.44 | H57: $207.72 | I57: =IF(Pay_Num<>"",Beg_Bal*(Interest_Rate/VLOOKUP(Interval,LoanLookup[],5,FALSE)),"") -> $294.72 | J57: =IF(scheduled_no_payments=1,"",IF(AND(Pay_Num<>"",Sched_Pay+Extra_Pay<Beg_Bal),Beg_Bal-Princ,IF(Pay_Num<>"",0,""))) -> $141,257.34 | K57: =IF(scheduled_no_payments=1,"",SUM($I$14:$I57)) -> $13,364.51
B58: =IF(AND(Values_Entered,scheduled_no_payments<>1),B57+1,"") -> 45 | C58: =IF(Pay_Num<>"",DATE(YEAR(C57)+VLOOKUP(Interval,LoanLookup[],4,FALSE),MONTH(C57)+VLOOKUP(Interval,LoanLookup[],2,FALSE),DAY(C57)+VLOOKUP(Interval,LoanLookup[],3,FALSE)),"") -> 2024-11-23 | D58: $141,257.34 | E58: $402.44 | F58: =IF(scheduled_no_payments=1,"",IF(Sched_Pay+Scheduled_Extra_Payments<Beg_Bal,Scheduled_Extra_Payments,IF(AND(Pay_Num<>"",Beg_Bal-Sched_Pay>0),Beg_Bal-Sched_Pay,IF(Pay_Num<>"",0,"")))) -> $100.00 | G58: =IF(scheduled_no_payments=1,"",IF(Sched_Pay+Extra_Pay<Beg_Bal,Sched_Pay+Extra_Pay,IF(Pay_Num<>"",Beg_Bal,""))) -> $502.44 | H58: $208.15 | I58: =IF(Pay_Num<>"",Beg_Bal*(Interest_Rate/VLOOKUP(Interval,LoanLookup[],5,FALSE)),"") -> $294.29 | J58: =IF(scheduled_no_payments=1,"",IF(AND(Pay_Num<>"",Sched_Pay+Extra_Pay<Beg_Bal),Beg_Bal-Princ,IF(Pay_Num<>"",0,""))) -> $141,049.19 | K58: =IF(scheduled_no_payments=1,"",SUM($I$14:$I58)) -> $13,658.80
B59: =IF(AND(Values_Entered,scheduled_no_payments<>1),B58+1,"") -> 46 | C59: =IF(Pay_Num<>"",DATE(YEAR(C58)+VLOOKUP(Interval,LoanLookup[],4,FALSE),MONTH(C58)+VLOOKUP(Interval,LoanLookup[],2,FALSE),DAY(C58)+VLOOKUP(Interval,LoanLookup[],3,FALSE)),"") -> 2024-12-08 | D59: $141,049.19 | E59: $402.44 | F59: =IF(scheduled_no_payments=1,"",IF(Sched_Pay+Scheduled_Extra_Payments<Beg_Bal,Scheduled_Extra_Payments,IF(AND(Pay_Num<>"",Beg_Bal-Sched_Pay>0),Beg_Bal-Sched_Pay,IF(Pay_Num<>"",0,"")))) -> $100.00 | G59: =IF(scheduled_no_payments=1,"",IF(Sched_Pay+Extra_Pay<Beg_Bal,Sched_Pay+Extra_Pay,IF(Pay_Num<>"",Beg_Bal,""))) -> $502.44 | H59: $208.58 | I59: =IF(Pay_Num<>"",Beg_Bal*(Interest_Rate/VLOOKUP(Interval,LoanLookup[],5,FALSE)),"") -> $293.85 | J59: =IF(scheduled_no_payments=1,"",IF(AND(Pay_Num<>"",Sched_Pay+Extra_Pay<Beg_Bal),Beg_Bal-Princ,IF(Pay_Num<>"",0,""))) -> $140,840.61 | K59: =IF(scheduled_no_payments=1,"",SUM($I$14:$I59)) -> $13,952.65
B60: =IF(AND(Values_Entered,scheduled_no_payments<>1),B59+1,"") -> 47 | C60: =IF(Pay_Num<>"",DATE(YEAR(C59)+VLOOKUP(Interval,LoanLookup[],4,FALSE),MONTH(C59)+VLOOKUP(Interval,LoanLookup[],2,FALSE),DAY(C59)+VLOOKUP(Interval,LoanLookup[],3,FALSE)),"") -> 2024-12-23 | D60: $140,840.61 | E60: $402.44 | F60: =IF(scheduled_no_payments=1,"",IF(Sched_Pay+Scheduled_Extra_Payments<Beg_Bal,Scheduled_Extra_Payments,IF(AND(Pay_Num<>"",Beg_Bal-Sched_Pay>0),Beg_Bal-Sched_Pay,IF(Pay_Num<>"",0,"")))) -> $100.00 | G60: =IF(scheduled_no_payments=1,"",IF(Sched_Pay+Extra_Pay<Beg_Bal,Sched_Pay+Extra_Pay,IF(Pay_Num<>"",Beg_Bal,""))) -> $502.44 | H60: $209.02 | I60: =IF(Pay_Num<>"",Beg_Bal*(Interest_Rate/VLOOKUP(Interval,LoanLookup[],5,FALSE)),"") -> $293.42 | J60: =IF(scheduled_no_payments=1,"",IF(AND(Pay_Num<>"",Sched_Pay+Extra_Pay<Beg_Bal),Beg_Bal-Princ,IF(Pay_Num<>"",0,""))) -> $140,631.59 | K60: =IF(scheduled_no_payments=1,"",SUM($I$14:$I60)) -> $14,246.07
B61: =IF(AND(Values_Entered,scheduled_no_payments<>1),B60+1,"") -> 48 | C61: =IF(Pay_Num<>"",DATE(YEAR(C60)+VLOOKUP(Interval,LoanLookup[],4,FALSE),MONTH(C60)+VLOOKUP(Interval,LoanLookup[],2,FALSE),DAY(C60)+VLOOKUP(Interval,LoanLookup[],3,FALSE)),"") -> 2025-01-07 | D61: $140,631.59 | E61: $402.44 | F61: =IF(scheduled_no_payments=1,"",IF(Sched_Pay+Scheduled_Extra_Payments<Beg_Bal,Scheduled_Extra_Payments,IF(AND(Pay_Num<>"",Beg_Bal-Sched_Pay>0),Beg_Bal-Sched_Pay,IF(Pay_Num<>"",0,"")))) -> $100.00 | G61: =IF(scheduled_no_payments=1,"",IF(Sched_Pay+Extra_Pay<Beg_Bal,Sched_Pay+Extra_Pay,IF(Pay_Num<>"",Beg_Bal,""))) -> $502.44 | H61: $209.45 | I61: =IF(Pay_Num<>"",Beg_Bal*(Interest_Rate/VLOOKUP(Interval,LoanLookup[],5,FALSE)),"") -> $292.98 | J61: =IF(scheduled_no_payments=1,"",IF(AND(Pay_Num<>"",Sched_Pay+Extra_Pay<Beg_Bal),Beg_Bal-Princ,IF(Pay_Num<>"",0,""))) -> $140,422.13 | K61: =IF(scheduled_no_payments=1,"",SUM($I$14:$I61)) -> $14,539.05
B62: =IF(AND(Values_Entered,scheduled_no_payments<>1),B61+1,"") -> 49 | C62: =IF(Pay_Num<>"",DATE(YEAR(C61)+VLOOKUP(Interval,LoanLookup[],4,FALSE),MONTH(C61)+VLOOKUP(Interval,LoanLookup[],2,FALSE),DAY(C61)+VLOOKUP(Interval,LoanLookup[],3,FALSE)),"") -> 2025-01-22 | D62: $140,422.13 | E62: $402.44 | F62: =IF(scheduled_no_payments=1,"",IF(Sched_Pay+Scheduled_Extra_Payments<Beg_Bal,Scheduled_Extra_Payments,IF(AND(Pay_Num<>"",Beg_Bal-Sched_Pay>0),Beg_Bal-Sched_Pay,IF(Pay_Num<>"",0,"")))) -> $100.00 | G62: =IF(scheduled_no_payments=1,"",IF(Sched_Pay+Extra_Pay<Beg_Bal,Sched_Pay+Extra_Pay,IF(Pay_Num<>"",Beg_Bal,""))) -> $502.44 | H62: $209.89 | I62: =IF(Pay_Num<>"",Beg_Bal*(Interest_Rate/VLOOKUP(Interval,LoanLookup[],5,FALSE)),"") -> $292.55 | J62: =IF(scheduled_no_payments=1,"",IF(AND(Pay_Num<>"",Sched_Pay+Extra_Pay<Beg_Bal),Beg_Bal-Princ,IF(Pay_Num<>"",0,""))) -> $140,212.25 | K62: =IF(scheduled_no_payments=1,"",SUM($I$14:$I62)) -> $14,831.60
B63: =IF(AND(Values_Entered,scheduled_no_payments<>1),B62+1,"") -> 50 | C63: =IF(Pay_Num<>"",DATE(YEAR(C62)+VLOOKUP(Interval,LoanLookup[],4,FALSE),MONTH(C62)+VLOOKUP(Interval,LoanLookup[],2,FALSE),DAY(C62)+VLOOKUP(Interval,LoanLookup[],3,FALSE)),"") -> 2025-02-06 | D63: $140,212.25 | E63: $402.44 | F63: =IF(scheduled_no_payments=1,"",IF(Sched_Pay+Scheduled_Extra_Payments<Beg_Bal,Scheduled_Extra_Payments,IF(AND(Pay_Num<>"",Beg_Bal-Sched_Pay>0),Beg_Bal-Sched_Pay,IF(Pay_Num<>"",0,"")))) -> $100.00 | G63: =IF(scheduled_no_payments=1,"",IF(Sched_Pay+Extra_Pay<Beg_Bal,Sched_Pay+Extra_Pay,IF(Pay_Num<>"",Beg_Bal,""))) -> $502.44 | H63: $210.33 | I63: =IF(Pay_Num<>"",Beg_Bal*(Interest_Rate/VLOOKUP(Interval,LoanLookup[],5,FALSE)),"") -> $292.11 | J63: =IF(scheduled_no_payments=1,"",IF(AND(Pay_Num<>"",Sched_Pay+Extra_Pay<Beg_Bal),Beg_Bal-Princ,IF(Pay_Num<>"",0,""))) -> $140,001.92 | K63: =IF(scheduled_no_payments=1,"",SUM($I$14:$I63)) -> $15,123.71
B64: =IF(AND(Values_Entered,scheduled_no_payments<>1),B63+1,"") -> 51 | C64: =IF(Pay_Num<>"",DATE(YEAR(C63)+VLOOKUP(Interval,LoanLookup[],4,FALSE),MONTH(C63)+VLOOKUP(Interval,LoanLookup[],2,FALSE),DAY(C63)+VLOOKUP(Interval,LoanLookup[],3,FALSE)),"") -> 2025-02-21 | D64: $140,001.92 | E64: $402.44 | F64: =IF(scheduled_no_payments=1,"",IF(Sched_Pay+Scheduled_Extra_Payments<Beg_Bal,Scheduled_Extra_Payments,IF(AND(Pay_Num<>"",Beg_Bal-Sched_Pay>0),Beg_Bal-Sched_Pay,IF(Pay_Num<>"",0,"")))) -> $100.00 | G64: =IF(scheduled_no_payments=1,"",IF(Sched_Pay+Extra_Pay<Beg_Bal,Sched_Pay+Extra_Pay,IF(Pay_Num<>"",Beg_Bal,""))) -> $502.44 | H64: $210.77 | I64: =IF(Pay_Num<>"",Beg_Bal*(Interest_Rate/VLOOKUP(Interval,LoanLookup[],5,FALSE)),"") -> $291.67 | J64: =IF(scheduled_no_payments=1,"",IF(AND(Pay_Num<>"",Sched_Pay+Extra_Pay<Beg_Bal),Beg_Bal-Princ,IF(Pay_Num<>"",0,""))) -> $139,791.15 | K64: =IF(scheduled_no_payments=1,"",SUM($I$14:$I64)) -> $15,415.38
B65: =IF(AND(Values_Entered,scheduled_no_payments<>1),B64+1,"") -> 52 | C65: =IF(Pay_Num<>"",DATE(YEAR(C64)+VLOOKUP(Interval,LoanLookup[],4,FALSE),MONTH(C64)+VLOOKUP(Interval,LoanLookup[],2,FALSE),DAY(C64)+VLOOKUP(Interval,LoanLookup[],3,FALSE)),"") -> 2025-03-08 | D65: $139,791.15 | E65: $402.44 | F65: =IF(scheduled_no_payments=1,"",IF(Sched_Pay+Scheduled_Extra_Payments<Beg_Bal,Scheduled_Extra_Payments,IF(AND(Pay_Num<>"",Beg_Bal-Sched_Pay>0),Beg_Bal-Sched_Pay,IF(Pay_Num<>"",0,"")))) -> $100.00 | G65: =IF(scheduled_no_payments=1,"",IF(Sched_Pay+Extra_Pay<Beg_Bal,Sched_Pay+Extra_Pay,IF(Pay_Num<>"",Beg_Bal,""))) -> $502.44 | H65: $211.20 | I65: =IF(Pay_Num<>"",Beg_Bal*(Interest_Rate/VLOOKUP(Interval,LoanLookup[],5,FALSE)),"") -> $291.23 | J65: =IF(scheduled_no_payments=1,"",IF(AND(Pay_Num<>"",Sched_Pay+Extra_Pay<Beg_Bal),Beg_Bal-Princ,IF(Pay_Num<>"",0,""))) -> $139,579.95 | K65: =IF(scheduled_no_payments=1,"",SUM($I$14:$I65)) -> $15,706.61
B66: =IF(AND(Values_Entered,scheduled_no_payments<>1),B65+1,"") -> 53 | C66: =IF(Pay_Num<>"",DATE(YEAR(C65)+VLOOKUP(Interval,LoanLookup[],4,FALSE),MONTH(C65)+VLOOKUP(Interval,LoanLookup[],2,FALSE),DAY(C65)+VLOOKUP(Interval,LoanLookup[],3,FALSE)),"") -> 2025-03-23 | D66: $139,579.95 | E66: $402.44 | F66: =IF(scheduled_no_payments=1,"",IF(Sched_Pay+Scheduled_Extra_Payments<Beg_Bal,Scheduled_Extra_Payments,IF(AND(Pay_Num<>"",Beg_Bal-Sched_Pay>0),Beg_Bal-Sched_Pay,IF(Pay_Num<>"",0,"")))) -> $100.00 | G66: =IF(scheduled_no_payments=1,"",IF(Sched_Pay+Extra_Pay<Beg_Bal,Sched_Pay+Extra_Pay,IF(Pay_Num<>"",Beg_Bal,""))) -> $502.44 | H66: $211.64 | I66: =IF(Pay_Num<>"",Beg_Bal*(Interest_Rate/VLOOKUP(Interval,LoanLookup[],5,FALSE)),"") -> $290.79 | J66: =IF(scheduled_no_payments=1,"",IF(AND(Pay_Num<>"",Sched_Pay+Extra_Pay<Beg_Bal),Beg_Bal-Princ,IF(Pay_Num<>"",0,""))) -> $139,368.30 | K66: =IF(scheduled_no_payments=1,"",SUM($I$14:$I66)) -> $15,997.40
B67: =IF(AND(Values_Entered,scheduled_no_payments<>1),B66+1,"") -> 54 | C67: =IF(Pay_Num<>"",DATE(YEAR(C66)+VLOOKUP(Interval,LoanLookup[],4,FALSE),MONTH(C66)+VLOOKUP(Interval,LoanLookup[],2,FALSE),DAY(C66)+VLOOKUP(Interval,LoanLookup[],3,FALSE)),"") -> 2025-04-07 | D67: $139,368.30 | E67: $402.44 | F67: =IF(scheduled_no_payments=1,"",IF(Sched_Pay+Scheduled_Extra_Payments<Beg_Bal,Scheduled_Extra_Payments,IF(AND(Pay_Num<>"",Beg_Bal-Sched_Pay>0),Beg_Bal-Sched_Pay,IF(Pay_Num<>"",0,"")))) -> $100.00 | G67: =IF(scheduled_no_payments=1,"",IF(Sched_Pay+Extra_Pay<Beg_Bal,Sched_Pay+Extra_Pay,IF(Pay_Num<>"",Beg_Bal,""))) -> $502.44 | H67: $212.09 | I67: =IF(Pay_Num<>"",Beg_Bal*(Interest_Rate/VLOOKUP(Interval,LoanLookup[],5,FALSE)),"") -> $290.35 | J67: =IF(scheduled_no_payments=1,"",IF(AND(Pay_Num<>"",Sched_Pay+Extra_Pay<Beg_Bal),Beg_Bal-Princ,IF(Pay_Num<>"",0,""))) -> $139,156.22 | K67: =IF(scheduled_no_payments=1,"",SUM($I$14:$I67)) -> $16,287.75
B68: =IF(AND(Values_Entered,scheduled_no_payments<>1),B67+1,"") -> 55 | C68: =IF(Pay_Num<>"",DATE(YEAR(C67)+VLOOKUP(Interval,LoanLookup[],4,FALSE),MONTH(C67)+VLOOKUP(Interval,LoanLookup[],2,FALSE),DAY(C67)+VLOOKUP(Interval,LoanLookup[],3,FALSE)),"") -> 2025-04-22 | D68: $139,156.22 | E68: $402.44 | F68: =IF(scheduled_no_payments=1,"",IF(Sched_Pay+Scheduled_Extra_Payments<Beg_Bal,Scheduled_Extra_Payments,IF(AND(Pay_Num<>"",Beg_Bal-Sched_Pay>0),Beg_Bal-Sched_Pay,IF(Pay_Num<>"",0,"")))) -> $100.00 | G68: =IF(scheduled_no_payments=1,"",IF(Sched_Pay+Extra_Pay<Beg_Bal,Sched_Pay+Extra_Pay,IF(Pay_Num<>"",Beg_Bal,""))) -> $502.44 | H68: $212.53 | I68: =IF(Pay_Num<>"",Beg_Bal*(Interest_Rate/VLOOKUP(Interval,LoanLookup[],5,FALSE)),"") -> $289.91 | J68: =IF(scheduled_no_payments=1,"",IF(AND(Pay_Num<>"",Sched_Pay+Extra_Pay<Beg_Bal),Beg_Bal-Princ,IF(Pay_Num<>"",0,""))) -> $138,943.69 | K68: =IF(scheduled_no_payments=1,"",SUM($I$14:$I68)) -> $16,577.66
B69: =IF(AND(Values_Entered,scheduled_no_payments<>1),B68+1,"") -> 56 | C69: =IF(Pay_Num<>"",DATE(YEAR(C68)+VLOOKUP(Interval,LoanLookup[],4,FALSE),MONTH(C68)+VLOOKUP(Interval,LoanLookup[],2,FALSE),DAY(C68)+VLOOKUP(Interval,LoanLookup[],3,FALSE)),"") -> 2025-05-07 | D69: $138,943.69 | E69: $402.44 | F69: =IF(scheduled_no_payments=1,"",IF(Sched_Pay+Scheduled_Extra_Payments<Beg_Bal,Scheduled_Extra_Payments,IF(AND(Pay_Num<>"",Beg_Bal-Sched_Pay>0),Beg_Bal-Sched_Pay,IF(Pay_Num<>"",0,"")))) -> $100.00 | G69: =IF(scheduled_no_payments=1,"",IF(Sched_Pay+Extra_Pay<Beg_Bal,Sched_Pay+Extra_Pay,IF(Pay_Num<>"",Beg_Bal,""))) -> $502.44 | H69: $212.97 | I69: =IF(Pay_Num<>"",Beg_Bal*(Interest_Rate/VLOOKUP(Interval,LoanLookup[],5,FALSE)),"") -> $289.47 | J69: =IF(scheduled_no_payments=1,"",IF(AND(Pay_Num<>"",Sched_Pay+Extra_Pay<Beg_Bal),Beg_Bal-Princ,IF(Pay_Num<>"",0,""))) -> $138,730.72 | K69: =IF(scheduled_no_payments=1,"",SUM($I$14:$I69)) -> $16,867.13
B70: =IF(AND(Values_Entered,scheduled_no_payments<>1),B69+1,"") -> 57 | C70: =IF(Pay_Num<>"",DATE(YEAR(C69)+VLOOKUP(Interval,LoanLookup[],4,FALSE),MONTH(C69)+VLOOKUP(Interval,LoanLookup[],2,FALSE),DAY(C69)+VLOOKUP(Interval,LoanLookup[],3,FALSE)),"") -> 2025-05-22 | D70: $138,730.72 | E70: $402.44 | F70: =IF(scheduled_no_payments=1,"",IF(Sched_Pay+Scheduled_Extra_Payments<Beg_Bal,Scheduled_Extra_Payments,IF(AND(Pay_Num<>"",Beg_Bal-Sched_Pay>0),Beg_Bal-Sched_Pay,IF(Pay_Num<>"",0,"")))) -> $100.00 | G70: =IF(scheduled_no_payments=1,"",IF(Sched_Pay+Extra_Pay<Beg_Bal,Sched_Pay+Extra_Pay,IF(Pay_Num<>"",Beg_Bal,""))) -> $502.44 | H70: $213.41 | I70: =IF(Pay_Num<>"",Beg_Bal*(Interest_Rate/VLOOKUP(Interval,LoanLookup[],5,FALSE)),"") -> $289.02 | J70: =IF(scheduled_no_payments=1,"",IF(AND(Pay_Num<>"",Sched_Pay+Extra_Pay<Beg_Bal),Beg_Bal-Princ,IF(Pay_Num<>"",0,""))) -> $138,517.31 | K70: =IF(scheduled_no_payments=1,"",SUM($I$14:$I70)) -> $17,156.15
B71: =IF(AND(Values_Entered,scheduled_no_payments<>1),B70+1,"") -> 58 | C71: =IF(Pay_Num<>"",DATE(YEAR(C70)+VLOOKUP(Interval,LoanLookup[],4,FALSE),MONTH(C70)+VLOOKUP(Interval,LoanLookup[],2,FALSE),DAY(C70)+VLOOKUP(Interval,LoanLookup[],3,FALSE)),"") -> 2025-06-06 | D71: $138,517.31 | E71: $402.44 | F71: =IF(scheduled_no_payments=1,"",IF(Sched_Pay+Scheduled_Extra_Payments<Beg_Bal,Scheduled_Extra_Payments,IF(AND(Pay_Num<>"",Beg_Bal-Sched_Pay>0),Beg_Bal-Sched_Pay,IF(Pay_Num<>"",0,"")))) -> $100.00 | G71: =IF(scheduled_no_payments=1,"",IF(Sched_Pay+Extra_Pay<Beg_Bal,Sched_Pay+Extra_Pay,IF(Pay_Num<>"",Beg_Bal,""))) -> $502.44 | H71: $213.86 | I71: =IF(Pay_Num<>"",Beg_Bal*(Interest_Rate/VLOOKUP(Interval,LoanLookup[],5,FALSE)),"") -> $288.58 | J71: =IF(scheduled_no_payments=1,"",IF(AND(Pay_Num<>"",Sched_Pay+Extra_Pay<Beg_Bal),Beg_Bal-Princ,IF(Pay_Num<>"",0,""))) -> $138,303.45 | K71: =IF(scheduled_no_payments=1,"",SUM($I$14:$I71)) -> $17,444.73
B72: =IF(AND(Values_Entered,scheduled_no_payments<>1),B71+1,"") -> 59 | C72: =IF(Pay_Num<>"",DATE(YEAR(C71)+VLOOKUP(Interval,LoanLookup[],4,FALSE),MONTH(C71)+VLOOKUP(Interval,LoanLookup[],2,FALSE),DAY(C71)+VLOOKUP(Interval,LoanLookup[],3,FALSE)),"") -> 2025-06-21 | D72: $138,303.45 | E72: $402.44 | F72: =IF(scheduled_no_payments=1,"",IF(Sched_Pay+Scheduled_Extra_Payments<Beg_Bal,Scheduled_Extra_Payments,IF(AND(Pay_Num<>"",Beg_Bal-Sched_Pay>0),Beg_Bal-Sched_Pay,IF(Pay_Num<>"",0,"")))) -> $100.00 | G72: =IF(scheduled_no_payments=1,"",IF(Sched_Pay+Extra_Pay<Beg_Bal,Sched_Pay+Extra_Pay,IF(Pay_Num<>"",Beg_Bal,""))) -> $502.44 | H72: $214.30 | I72: =IF(Pay_Num<>"",Beg_Bal*(Interest_Rate/VLOOKUP(Interval,LoanLookup[],5,FALSE)),"") -> $288.13 | J72: =IF(scheduled_no_payments=1,"",IF(AND(Pay_Num<>"",Sched_Pay+Extra_Pay<Beg_Bal),Beg_Bal-Princ,IF(Pay_Num<>"",0,""))) -> $138,089.15 | K72: =IF(scheduled_no_payments=1,"",SUM($I$14:$I72)) -> $17,732.86
B73: =IF(AND(Values_Entered,scheduled_no_payments<>1),B72+1,"") -> 60 | C73: =IF(Pay_Num<>"",DATE(YEAR(C72)+VLOOKUP(Interval,LoanLookup[],4,FALSE),MONTH(C72)+VLOOKUP(Interval,LoanLookup[],2,FALSE),DAY(C72)+VLOOKUP(Interval,LoanLookup[],3,FALSE)),"") -> 2025-07-06 | D73: $138,089.15 | E73: $402.44 | F73: =IF(scheduled_no_payments=1,"",IF(Sched_Pay+Scheduled_Extra_Payments<Beg_Bal,Scheduled_Extra_Payments,IF(AND(Pay_Num<>"",Beg_Bal-Sched_Pay>0),Beg_Bal-Sched_Pay,IF(Pay_Num<>"",0,"")))) -> $100.00 | G73: =IF(scheduled_no_payments=1,"",IF(Sched_Pay+Extra_Pay<Beg_Bal,Sched_Pay+Extra_Pay,IF(Pay_Num<>"",Beg_Bal,""))) -> $502.44 | H73: $214.75 | I73: =IF(Pay_Num<>"",Beg_Bal*(Interest_Rate/VLOOKUP(Interval,LoanLookup[],5,FALSE)),"") -> $287.69 | J73: =IF(scheduled_no_payments=1,"",IF(AND(Pay_Num<>"",Sched_Pay+Extra_Pay<Beg_Bal),Beg_Bal-Princ,IF(Pay_Num<>"",0,""))) -> $137,874.40 | K73: =IF(scheduled_no_payments=1,"",SUM($I$14:$I73)) -> $18,020.54
B74: =IF(AND(Values_Entered,scheduled_no_payments<>1),B73+1,"") -> 61 | C74: =IF(Pay_Num<>"",DATE(YEAR(C73)+VLOOKUP(Interval,LoanLookup[],4,FALSE),MONTH(C73)+VLOOKUP(Interval,LoanLookup[],2,FALSE),DAY(C73)+VLOOKUP(Interval,LoanLookup[],3,FALSE)),"") -> 2025-07-21 | D74: $137,874.40 | E74: $402.44 | F74: =IF(scheduled_no_payments=1,"",IF(Sched_Pay+Scheduled_Extra_Payments<Beg_Bal,Scheduled_Extra_Payments,IF(AND(Pay_Num<>"",Beg_Bal-Sched_Pay>0),Beg_Bal-Sched_Pay,IF(Pay_Num<>"",0,"")))) -> $100.00 | G74: =IF(scheduled_no_payments=1,"",IF(Sched_Pay+Extra_Pay<Beg_Bal,Sched_Pay+Extra_Pay,IF(Pay_Num<>"",Beg_Bal,""))) -> $502.44 | H74: $215.20 | I74: =IF(Pay_Num<>"",Beg_Bal*(Interest_Rate/VLOOKUP(Interval,LoanLookup[],5,FALSE)),"") -> $287.24 | J74: =IF(scheduled_no_payments=1,"",IF(AND(Pay_Num<>"",Sched_Pay+Extra_Pay<Beg_Bal),Beg_Bal-Princ,IF(Pay_Num<>"",0,""))) -> $137,659.20 | K74: =IF(scheduled_no_payments=1,"",SUM($I$14:$I74)) -> $18,307.78
B75: =IF(AND(Values_Entered,scheduled_no_payments<>1),B74+1,"") -> 62 | C75: =IF(Pay_Num<>"",DATE(YEAR(C74)+VLOOKUP(Interval,LoanLookup[],4,FALSE),MONTH(C74)+VLOOKUP(Interval,LoanLookup[],2,FALSE),DAY(C74)+VLOOKUP(Interval,LoanLookup[],3,FALSE)),"") -> 2025-08-05 | D75: $137,659.20 | E75: $402.44 | F75: =IF(scheduled_no_payments=1,"",IF(Sched_Pay+Scheduled_Extra_Payments<Beg_Bal,Scheduled_Extra_Payments,IF(AND(Pay_Num<>"",Beg_Bal-Sched_Pay>0),Beg_Bal-Sched_Pay,IF(Pay_Num<>"",0,"")))) -> $100.00 | G75: =IF(scheduled_no_payments=1,"",IF(Sched_Pay+Extra_Pay<Beg_Bal,Sched_Pay+Extra_Pay,IF(Pay_Num<>"",Beg_Bal,""))) -> $502.44 | H75: $215.65 | I75: =IF(Pay_Num<>"",Beg_Bal*(Interest_Rate/VLOOKUP(Interval,LoanLookup[],5,FALSE)),"") -> $286.79 | J75: =IF(scheduled_no_payments=1,"",IF(AND(Pay_Num<>"",Sched_Pay+Extra_Pay<Beg_Bal),Beg_Bal-Princ,IF(Pay_Num<>"",0,""))) -> $137,443.55 | K75: =IF(scheduled_no_payments=1,"",SUM($I$14:$I75)) -> $18,594.57
B76: =IF(AND(Values_Entered,scheduled_no_payments<>1),B75+1,"") -> 63 | C76: =IF(Pay_Num<>"",DATE(YEAR(C75)+VLOOKUP(Interval,LoanLookup[],4,FALSE),MONTH(C75)+VLOOKUP(Interval,LoanLookup[],2,FALSE),DAY(C75)+VLOOKUP(Interval,LoanLookup[],3,FALSE)),"") -> 2025-08-20 | D76: $137,443.55 | E76: $402.44 | F76: =IF(scheduled_no_payments=1,"",IF(Sched_Pay+Scheduled_Extra_Payments<Beg_Bal,Scheduled_Extra_Payments,IF(AND(Pay_Num<>"",Beg_Bal-Sched_Pay>0),Beg_Bal-Sched_Pay,IF(Pay_Num<>"",0,"")))) -> $100.00 | G76: =IF(scheduled_no_payments=1,"",IF(Sched_Pay+Extra_Pay<Beg_Bal,Sched_Pay+Extra_Pay,IF(Pay_Num<>"",Beg_Bal,""))) -> $502.44 | H76: $216.10 | I76: =IF(Pay_Num<>"",Beg_Bal*(Interest_Rate/VLOOKUP(Interval,LoanLookup[],5,FALSE)),"") -> $286.34 | J76: =IF(scheduled_no_payments=1,"",IF(AND(Pay_Num<>"",Sched_Pay+Extra_Pay<Beg_Bal),Beg_Bal-Princ,IF(Pay_Num<>"",0,""))) -> $137,227.46 | K76: =IF(scheduled_no_payments=1,"",SUM($I$14:$I76)) -> $18,880.91
B77: =IF(AND(Values_Entered,scheduled_no_payments<>1),B76+1,"") -> 64 | C77: =IF(Pay_Num<>"",DATE(YEAR(C76)+VLOOKUP(Interval,LoanLookup[],4,FALSE),MONTH(C76)+VLOOKUP(Interval,LoanLookup[],2,FALSE),DAY(C76)+VLOOKUP(Interval,LoanLookup[],3,FALSE)),"") -> 2025-09-04 | D77: $137,227.46 | E77: $402.44 | F77: =IF(scheduled_no_payments=1,"",IF(Sched_Pay+Scheduled_Extra_Payments<Beg_Bal,Scheduled_Extra_Payments,IF(AND(Pay_Num<>"",Beg_Bal-Sched_Pay>0),Beg_Bal-Sched_Pay,IF(Pay_Num<>"",0,"")))) -> $100.00 | G77: =IF(scheduled_no_payments=1,"",IF(Sched_Pay+Extra_Pay<Beg_Bal,Sched_Pay+Extra_Pay,IF(Pay_Num<>"",Beg_Bal,""))) -> $502.44 | H77: $216.55 | I77: =IF(Pay_Num<>"",Beg_Bal*(Interest_Rate/VLOOKUP(Interval,LoanLookup[],5,FALSE)),"") -> $285.89 | J77: =IF(scheduled_no_payments=1,"",IF(AND(Pay_Num<>"",Sched_Pay+Extra_Pay<Beg_Bal),Beg_Bal-Princ,IF(Pay_Num<>"",0,""))) -> $137,010.91 | K77: =IF(scheduled_no_payments=1,"",SUM($I$14:$I77)) -> $19,166.80
B78: =IF(AND(Values_Entered,scheduled_no_payments<>1),B77+1,"") -> 65 | C78: =IF(Pay_Num<>"",DATE(YEAR(C77)+VLOOKUP(Interval,LoanLookup[],4,FALSE),MONTH(C77)+VLOOKUP(Interval,LoanLookup[],2,FALSE),DAY(C77)+VLOOKUP(Interval,LoanLookup[],3,FALSE)),"") -> 2025-09-19 | D78: $137,010.91 | E78: $402.44 | F78: =IF(scheduled_no_payments=1,"",IF(Sched_Pay+Scheduled_Extra_Payments<Beg_Bal,Scheduled_Extra_Payments,IF(AND(Pay_Num<>"",Beg_Bal-Sched_Pay>0),Beg_Bal-Sched_Pay,IF(Pay_Num<>"",0,"")))) -> $100.00 | G78: =IF(scheduled_no_payments=1,"",IF(Sched_Pay+Extra_Pay<Beg_Bal,Sched_Pay+Extra_Pay,IF(Pay_Num<>"",Beg_Bal,""))) -> $502.44 | H78: $217.00 | I78: =IF(Pay_Num<>"",Beg_Bal*(Interest_Rate/VLOOKUP(Interval,LoanLookup[],5,FALSE)),"") -> $285.44 | J78: =IF(scheduled_no_payments=1,"",IF(AND(Pay_Num<>"",Sched_Pay+Extra_Pay<Beg_Bal),Beg_Bal-Princ,IF(Pay_Num<>"",0,""))) -> $136,793.92 | K78: =IF(scheduled_no_payments=1,"",SUM($I$14:$I78)) -> $19,452.24
B79: =IF(AND(Values_Entered,scheduled_no_payments<>1),B78+1,"") -> 66 | C79: =IF(Pay_Num<>"",DATE(YEAR(C78)+VLOOKUP(Interval,LoanLookup[],4,FALSE),MONTH(C78)+VLOOKUP(Interval,LoanLookup[],2,FALSE),DAY(C78)+VLOOKUP(Interval,LoanLookup[],3,FALSE)),"") -> 2025-10-04 | D79: =IF(Pay_Num<>"",J78,"") -> $136,793.92 | E79: $402.44 | F79: =IF(scheduled_no_payments=1,"",IF(Sched_Pay+Scheduled_Extra_Payments<Beg_Bal,Scheduled_Extra_Payments,IF(AND(Pay_Num<>"",Beg_Bal-Sched_Pay>0),Beg_Bal-Sched_Pay,IF(Pay_Num<>"",0,"")))) -> $100.00 | G79: =IF(scheduled_no_payments=1,"",IF(Sched_Pay+Extra_Pay<Beg_Bal,Sched_Pay+Extra_Pay,IF(Pay_Num<>"",Beg_Bal,""))) -> $502.44 | H79: =IF(Pay_Num<>"",Total_Pay-Int,"") -> $217.45 | I79: =IF(Pay_Num<>"",Beg_Bal*(Interest_Rate/VLOOKUP(Interval,LoanLookup[],5,FALSE)),"") -> $284.99 | J79: =IF(scheduled_no_payments=1,"",IF(AND(Pay_Num<>"",Sched_Pay+Extra_Pay<Beg_Bal),Beg_Bal-Princ,IF(Pay_Num<>"",0,""))) -> $136,576.47 | K79: =IF(scheduled_no_payments=1,"",SUM($I$14:$I79)) -> $19,737.23
B80: =IF(AND(Values_Entered,scheduled_no_payments<>1),B79+1,"") -> 67 | C80: =IF(Pay_Num<>"",DATE(YEAR(C79)+VLOOKUP(Interval,LoanLookup[],4,FALSE),MONTH(C79)+VLOOKUP(Interval,LoanLookup[],2,FALSE),DAY(C79)+VLOOKUP(Interval,LoanLookup[],3,FALSE)),"") -> 2025-10-19 | D80: $136,576.47 | E80: =IF(Pay_Num<>"",Scheduled_Monthly_Payment,"") -> $402.44 | F80: =IF(scheduled_no_payments=1,"",IF(Sched_Pay+Scheduled_Extra_Payments<Beg_Bal,Scheduled_Extra_Payments,IF(AND(Pay_Num<>"",Beg_Bal-Sched_Pay>0),Beg_Bal-Sched_Pay,IF(Pay_Num<>"",0,"")))) -> $100.00 | G80: =IF(scheduled_no_payments=1,"",IF(Sched_Pay+Extra_Pay<Beg_Bal,Sched_Pay+Extra_Pay,IF(Pay_Num<>"",Beg_Bal,""))) -> $502.44 | H80: $217.90 | I80: =IF(Pay_Num<>"",Beg_Bal*(Interest_Rate/VLOOKUP(Interval,LoanLookup[],5,FALSE)),"") -> $284.53 | J80: =IF(scheduled_no_payments=1,"",IF(AND(Pay_Num<>"",Sched_Pay+Extra_Pay<Beg_Bal),Beg_Bal-Princ,IF(Pay_Num<>"",0,""))) -> $136,358.57 | K80: =IF(scheduled_no_payments=1,"",SUM($I$14:$I80)) -> $20,021.76
B81: =IF(AND(Values_Entered,scheduled_no_payments<>1),B80+1,"") -> 68 | C81: =IF(Pay_Num<>"",DATE(YEAR(C80)+VLOOKUP(Interval,LoanLookup[],4,FALSE),MONTH(C80)+VLOOKUP(Interval,LoanLookup[],2,FALSE),DAY(C80)+VLOOKUP(Interval,LoanLookup[],3,FALSE)),"") -> 2025-11-03 | D81: $136,358.57 | E81: $402.44 | F81: =IF(scheduled_no_payments=1,"",IF(Sched_Pay+Scheduled_Extra_Payments<Beg_Bal,Scheduled_Extra_Payments,IF(AND(Pay_Num<>"",Beg_Bal-Sched_Pay>0),Beg_Bal-Sched_Pay,IF(Pay_Num<>"",0,"")))) -> $100.00 | G81: =IF(scheduled_no_payments=1,"",IF(Sched_Pay+Extra_Pay<Beg_Bal,Sched_Pay+Extra_Pay,IF(Pay_Num<>"",Beg_Bal,""))) -> $502.44 | H81: $218.36 | I81: =IF(Pay_Num<>"",Beg_Bal*(Interest_Rate/VLOOKUP(Interval,LoanLookup[],5,FALSE)),"") -> $284.08 | J81: =IF(scheduled_no_payments=1,"",IF(AND(Pay_Num<>"",Sched_Pay+Extra_Pay<Beg_Bal),Beg_Bal-Princ,IF(Pay_Num<>"",0,""))) -> $136,140.21 | K81: =IF(scheduled_no_payments=1,"",SUM($I$14:$I81)) -> $20,305.85
B82: =IF(AND(Values_Entered,scheduled_no_payments<>1),B81+1,"") -> 69 | C82: =IF(Pay_Num<>"",DATE(YEAR(C81)+VLOOKUP(Interval,LoanLookup[],4,FALSE),MONTH(C81)+VLOOKUP(Interval,LoanLookup[],2,FALSE),DAY(C81)+VLOOKUP(Interval,LoanLookup[],3,FALSE)),"") -> 2025-11-18 | D82: $136,140.21 | E82: $402.44 | F82: =IF(scheduled_no_payments=1,"",IF(Sched_Pay+Scheduled_Extra_Payments<Beg_Bal,Scheduled_Extra_Payments,IF(AND(Pay_Num<>"",Beg_Bal-Sched_Pay>0),Beg_Bal-Sched_Pay,IF(Pay_Num<>"",0,"")))) -> $100.00 | G82: =IF(scheduled_no_payments=1,"",IF(Sched_Pay+Extra_Pay<Beg_Bal,Sched_Pay+Extra_Pay,IF(Pay_Num<>"",Beg_Bal,""))) -> $502.44 | H82: $218.81 | I82: =IF(Pay_Num<>"",Beg_Bal*(Interest_Rate/VLOOKUP(Interval,LoanLookup[],5,FALSE)),"") -> $283.63 | J82: =IF(scheduled_no_payments=1,"",IF(AND(Pay_Num<>"",Sched_Pay+Extra_Pay<Beg_Bal),Beg_Bal-Princ,IF(Pay_Num<>"",0,""))) -> $135,921.40 | K82: =IF(scheduled_no_payments=1,"",SUM($I$14:$I82)) -> $20,589.47
B83: =IF(AND(Values_Entered,scheduled_no_payments<>1),B82+1,"") -> 70 | C83: =IF(Pay_Num<>"",DATE(YEAR(C82)+VLOOKUP(Interval,LoanLookup[],4,FALSE),MONTH(C82)+VLOOKUP(Interval,LoanLookup[],2,FALSE),DAY(C82)+VLOOKUP(Interval,LoanLookup[],3,FALSE)),"") -> 2025-12-03 | D83: $135,921.40 | E83: $402.44 | F83: =IF(scheduled_no_payments=1,"",IF(Sched_Pay+Scheduled_Extra_Payments<Beg_Bal,Scheduled_Extra_Payments,IF(AND(Pay_Num<>"",Beg_Bal-Sched_Pay>0),Beg_Bal-Sched_Pay,IF(Pay_Num<>"",0,"")))) -> $100.00 | G83: =IF(scheduled_no_payments=1,"",IF(Sched_Pay+Extra_Pay<Beg_Bal,Sched_Pay+Extra_Pay,IF(Pay_Num<>"",Beg_Bal,""))) -> $502.44 | H83: $219.27 | I83: =IF(Pay_Num<>"",Beg_Bal*(Interest_Rate/VLOOKUP(Interval,LoanLookup[],5,FALSE)),"") -> $283.17 | J83: =IF(scheduled_no_payments=1,"",IF(AND(Pay_Num<>"",Sched_Pay+Extra_Pay<Beg_Bal),Beg_Bal-Princ,IF(Pay_Num<>"",0,""))) -> $135,702.14 | K83: =IF(scheduled_no_payments=1,"",SUM($I$14:$I83)) -> $20,872.64
B84: =IF(AND(Values_Entered,scheduled_no_payments<>1),B83+1,"") -> 71 | C84: =IF(Pay_Num<>"",DATE(YEAR(C83)+VLOOKUP(Interval,LoanLookup[],4,FALSE),MONTH(C83)+VLOOKUP(Interval,LoanLookup[],2,FALSE),DAY(C83)+VLOOKUP(Interval,LoanLookup[],3,FALSE)),"") -> 2025-12-18 | D84: $135,702.14 | E84: $402.44 | F84: =IF(scheduled_no_payments=1,"",IF(Sched_Pay+Scheduled_Extra_Payments<Beg_Bal,Scheduled_Extra_Payments,IF(AND(Pay_Num<>"",Beg_Bal-Sched_Pay>0),Beg_Bal-Sched_Pay,IF(Pay_Num<>"",0,"")))) -> $100.00 | G84: =IF(scheduled_no_payments=1,"",IF(Sched_Pay+Extra_Pay<Beg_Bal,Sched_Pay+Extra_Pay,IF(Pay_Num<>"",Beg_Bal,""))) -> $502.44 | H84: $219.72 | I84: =IF(Pay_Num<>"",Beg_Bal*(Interest_Rate/VLOOKUP(Interval,LoanLookup[],5,FALSE)),"") -> $282.71 | J84: =IF(scheduled_no_payments=1,"",IF(AND(Pay_Num<>"",Sched_Pay+Extra_Pay<Beg_Bal),Beg_Bal-Princ,IF(Pay_Num<>"",0,""))) -> $135,482.41 | K84: =IF(scheduled_no_payments=1,"",SUM($I$14:$I84)) -> $21,155.35
B85: =IF(AND(Values_Entered,scheduled_no_payments<>1),B84+1,"") -> 72 | C85: =IF(Pay_Num<>"",DATE(YEAR(C84)+VLOOKUP(Interval,LoanLookup[],4,FALSE),MONTH(C84)+VLOOKUP(Interval,LoanLookup[],2,FALSE),DAY(C84)+VLOOKUP(Interval,LoanLookup[],3,FALSE)),"") -> 2026-01-02 | D85: $135,482.41 | E85: $402.44 | F85: =IF(scheduled_no_payments=1,"",IF(Sched_Pay+Scheduled_Extra_Payments<Beg_Bal,Scheduled_Extra_Payments,IF(AND(Pay_Num<>"",Beg_Bal-Sched_Pay>0),Beg_Bal-Sched_Pay,IF(Pay_Num<>"",0,"")))) -> $100.00 | G85: =IF(scheduled_no_payments=1,"",IF(Sched_Pay+Extra_Pay<Beg_Bal,Sched_Pay+Extra_Pay,IF(Pay_Num<>"",Beg_Bal,""))) -> $502.44 | H85: $220.18 | I85: =IF(Pay_Num<>"",Beg_Bal*(Interest_Rate/VLOOKUP(Interval,LoanLookup[],5,FALSE)),"") -> $282.26 | J85: =IF(scheduled_no_payments=1,"",IF(AND(Pay_Num<>"",Sched_Pay+Extra_Pay<Beg_Bal),Beg_Bal-Princ,IF(Pay_Num<>"",0,""))) -> $135,262.23 | K85: =IF(scheduled_no_payments=1,"",SUM($I$14:$I85)) -> $21,437.61
B86: =IF(AND(Values_Entered,scheduled_no_payments<>1),B85+1,"") -> 73 | C86: =IF(Pay_Num<>"",DATE(YEAR(C85)+VLOOKUP(Interval,LoanLookup[],4,FALSE),MONTH(C85)+VLOOKUP(Interval,LoanLookup[],2,FALSE),DAY(C85)+VLOOKUP(Interval,LoanLookup[],3,FALSE)),"") -> 2026-01-17 | D86: $135,262.23 | E86: $402.44 | F86: =IF(scheduled_no_payments=1,"",IF(Sched_Pay+Scheduled_Extra_Payments<Beg_Bal,Scheduled_Extra_Payments,IF(AND(Pay_Num<>"",Beg_Bal-Sched_Pay>0),Beg_Bal-Sched_Pay,IF(Pay_Num<>"",0,"")))) -> $100.00 | G86: =IF(scheduled_no_payments=1,"",IF(Sched_Pay+Extra_Pay<Beg_Bal,Sched_Pay+Extra_Pay,IF(Pay_Num<>"",Beg_Bal,""))) -> $502.44 | H86: $220.64 | I86: =IF(Pay_Num<>"",Beg_Bal*(Interest_Rate/VLOOKUP(Interval,LoanLookup[],5,FALSE)),"") -> $281.80 | J86: =IF(scheduled_no_payments=1,"",IF(AND(Pay_Num<>"",Sched_Pay+Extra_Pay<Beg_Bal),Beg_Bal-Princ,IF(Pay_Num<>"",0,""))) -> $135,041.59 | K86: =IF(scheduled_no_payments=1,"",SUM($I$14:$I86)) -> $21,719.40
B87: =IF(AND(Values_Entered,scheduled_no_payments<>1),B86+1,"") -> 74 | C87: =IF(Pay_Num<>"",DATE(YEAR(C86)+VLOOKUP(Interval,LoanLookup[],4,FALSE),MONTH(C86)+VLOOKUP(Interval,LoanLookup[],2,FALSE),DAY(C86)+VLOOKUP(Interval,LoanLookup[],3,FALSE)),"") -> 2026-02-01 | D87: $135,041.59 | E87: $402.44 | F87: =IF(scheduled_no_payments=1,"",IF(Sched_Pay+Scheduled_Extra_Payments<Beg_Bal,Scheduled_Extra_Payments,IF(AND(Pay_Num<>"",Beg_Bal-Sched_Pay>0),Beg_Bal-Sched_Pay,IF(Pay_Num<>"",0,"")))) -> $100.00 | G87: =IF(scheduled_no_payments=1,"",IF(Sched_Pay+Extra_Pay<Beg_Bal,Sched_Pay+Extra_Pay,IF(Pay_Num<>"",Beg_Bal,""))) -> $502.44 | H87: $221.10 | I87: =IF(Pay_Num<>"",Beg_Bal*(Interest_Rate/VLOOKUP(Interval,LoanLookup[],5,FALSE)),"") -> $281.34 | J87: =IF(scheduled_no_payments=1,"",IF(AND(Pay_Num<>"",Sched_Pay+Extra_Pay<Beg_Bal),Beg_Bal-Princ,IF(Pay_Num<>"",0,""))) -> $134,820.49 | K87: =IF(scheduled_no_payments=1,"",SUM($I$14:$I87)) -> $22,000.74
B88: =IF(AND(Values_Entered,scheduled_no_payments<>1),B87+1,"") -> 75 | C88: =IF(Pay_Num<>"",DATE(YEAR(C87)+VLOOKUP(Interval,LoanLookup[],4,FALSE),MONTH(C87)+VLOOKUP(Interval,LoanLookup[],2,FALSE),DAY(C87)+VLOOKUP(Interval,LoanLookup[],3,FALSE)),"") -> 2026-02-16 | D88: $134,820.49 | E88: $402.44 | F88: =IF(scheduled_no_payments=1,"",IF(Sched_Pay+Scheduled_Extra_Payments<Beg_Bal,Scheduled_Extra_Payments,IF(AND(Pay_Num<>"",Beg_Bal-Sched_Pay>0),Beg_Bal-Sched_Pay,IF(Pay_Num<>"",0,"")))) -> $100.00 | G88: =IF(scheduled_no_payments=1,"",IF(Sched_Pay+Extra_Pay<Beg_Bal,Sched_Pay+Extra_Pay,IF(Pay_Num<>"",Beg_Bal,""))) -> $502.44 | H88: $221.56 | I88: =IF(Pay_Num<>"",Beg_Bal*(Interest_Rate/VLOOKUP(Interval,LoanLookup[],5,FALSE)),"") -> $280.88 | J88: =IF(scheduled_no_payments=1,"",IF(AND(Pay_Num<>"",Sched_Pay+Extra_Pay<Beg_Bal),Beg_Bal-Princ,IF(Pay_Num<>"",0,""))) -> $134,598.93 | K88: =IF(scheduled_no_payments=1,"",SUM($I$14:$I88)) -> $22,281.62
B89: =IF(AND(Values_Entered,scheduled_no_payments<>1),B88+1,"") -> 76 | C89: =IF(Pay_Num<>"",DATE(YEAR(C88)+VLOOKUP(Interval,LoanLookup[],4,FALSE),MONTH(C88)+VLOOKUP(Interval,LoanLookup[],2,FALSE),DAY(C88)+VLOOKUP(Interval,LoanLookup[],3,FALSE)),"") -> 2026-03-03 | D89: $134,598.93 | E89: $402.44 | F89: =IF(scheduled_no_payments=1,"",IF(Sched_Pay+Scheduled_Extra_Payments<Beg_Bal,Scheduled_Extra_Payments,IF(AND(Pay_Num<>"",Beg_Bal-Sched_Pay>0),Beg_Bal-Sched_Pay,IF(Pay_Num<>"",0,"")))) -> $100.00 | G89: =IF(scheduled_no_payments=1,"",IF(Sched_Pay+Extra_Pay<Beg_Bal,Sched_Pay+Extra_Pay,IF(Pay_Num<>"",Beg_Bal,""))) -> $502.44 | H89: $222.02 | I89: =IF(Pay_Num<>"",Beg_Bal*(Interest_Rate/VLOOKUP(Interval,LoanLookup[],5,FALSE)),"") -> $280.41 | J89: =IF(scheduled_no_payments=1,"",IF(AND(Pay_Num<>"",Sched_Pay+Extra_Pay<Beg_Bal),Beg_Bal-Princ,IF(Pay_Num<>"",0,""))) -> $134,376.91 | K89: =IF(scheduled_no_payments=1,"",SUM($I$14:$I89)) -> $22,562.03
B90: =IF(AND(Values_Entered,scheduled_no_payments<>1),B89+1,"") -> 77 | C90: =IF(Pay_Num<>"",DATE(YEAR(C89)+VLOOKUP(Interval,LoanLookup[],4,FALSE),MONTH(C89)+VLOOKUP(Interval,LoanLookup[],2,FALSE),DAY(C89)+VLOOKUP(Interval,LoanLookup[],3,FALSE)),"") -> 2026-03-18 | D90: $134,376.91 | E90: $402.44 | F90: =IF(scheduled_no_payments=1,"",IF(Sched_Pay+Scheduled_Extra_Payments<Beg_Bal,Scheduled_Extra_Payments,IF(AND(Pay_Num<>"",Beg_Bal-Sched_Pay>0),Beg_Bal-Sched_Pay,IF(Pay_Num<>"",0,"")))) -> $100.00 | G90: =IF(scheduled_no_payments=1,"",IF(Sched_Pay+Extra_Pay<Beg_Bal,Sched_Pay+Extra_Pay,IF(Pay_Num<>"",Beg_Bal,""))) -> $502.44 | H90: $222.48 | I90: =IF(Pay_Num<>"",Beg_Bal*(Interest_Rate/VLOOKUP(Interval,LoanLookup[],5,FALSE)),"") -> $279.95 | J90: =IF(scheduled_no_payments=1,"",IF(AND(Pay_Num<>"",Sched_Pay+Extra_Pay<Beg_Bal),Beg_Bal-Princ,IF(Pay_Num<>"",0,""))) -> $134,154.43 | K90: =IF(scheduled_no_payments=1,"",SUM($I$14:$I90)) -> $22,841.98
B91: =IF(AND(Values_Entered,scheduled_no_payments<>1),B90+1,"") -> 78 | C91: =IF(Pay_Num<>"",DATE(YEAR(C90)+VLOOKUP(Interval,LoanLookup[],4,FALSE),MONTH(C90)+VLOOKUP(Interval,LoanLookup[],2,FALSE),DAY(C90)+VLOOKUP(Interval,LoanLookup[],3,FALSE)),"") -> 2026-04-02 | D91: $134,154.43 | E91: $402.44 | F91: =IF(scheduled_no_payments=1,"",IF(Sched_Pay+Scheduled_Extra_Payments<Beg_Bal,Scheduled_Extra_Payments,IF(AND(Pay_Num<>"",Beg_Bal-Sched_Pay>0),Beg_Bal-Sched_Pay,IF(Pay_Num<>"",0,"")))) -> $100.00 | G91: =IF(scheduled_no_payments=1,"",IF(Sched_Pay+Extra_Pay<Beg_Bal,Sched_Pay+Extra_Pay,IF(Pay_Num<>"",Beg_Bal,""))) -> $502.44 | H91: $222.95 | I91: =IF(Pay_Num<>"",Beg_Bal*(Interest_Rate/VLOOKUP(Interval,LoanLookup[],5,FALSE)),"") -> $279.49 | J91: =IF(scheduled_no_payments=1,"",IF(AND(Pay_Num<>"",Sched_Pay+Extra_Pay<Beg_Bal),Beg_Bal-Princ,IF(Pay_Num<>"",0,""))) -> $133,931.48 | K91: =IF(scheduled_no_payments=1,"",SUM($I$14:$I91)) -> $23,121.47
B92: =IF(AND(Values_Entered,scheduled_no_payments<>1),B91+1,"") -> 79 | C92: =IF(Pay_Num<>"",DATE(YEAR(C91)+VLOOKUP(Interval,LoanLookup[],4,FALSE),MONTH(C91)+VLOOKUP(Interval,LoanLookup[],2,FALSE),DAY(C91)+VLOOKUP(Interval,LoanLookup[],3,FALSE)),"") -> 2026-04-17 | D92: $133,931.48 | E92: $402.44 | F92: =IF(scheduled_no_payments=1,"",IF(Sched_Pay+Scheduled_Extra_Payments<Beg_Bal,Scheduled_Extra_Payments,IF(AND(Pay_Num<>"",Beg_Bal-Sched_Pay>0),Beg_Bal-Sched_Pay,IF(Pay_Num<>"",0,"")))) -> $100.00 | G92: =IF(scheduled_no_payments=1,"",IF(Sched_Pay+Extra_Pay<Beg_Bal,Sched_Pay+Extra_Pay,IF(Pay_Num<>"",Beg_Bal,""))) -> $502.44 | H92: $223.41 | I92: =IF(Pay_Num<>"",Beg_Bal*(Interest_Rate/VLOOKUP(Interval,LoanLookup[],5,FALSE)),"") -> $279.02 | J92: =IF(scheduled_no_payments=1,"",IF(AND(Pay_Num<>"",Sched_Pay+Extra_Pay<Beg_Bal),Beg_Bal-Princ,IF(Pay_Num<>"",0,""))) -> $133,708.07 | K92: =IF(scheduled_no_payments=1,"",SUM($I$14:$I92)) -> $23,400.50
B93: =IF(AND(Values_Entered,scheduled_no_payments<>1),B92+1,"") -> 80 | C93: =IF(Pay_Num<>"",DATE(YEAR(C92)+VLOOKUP(Interval,LoanLookup[],4,FALSE),MONTH(C92)+VLOOKUP(Interval,LoanLookup[],2,FALSE),DAY(C92)+VLOOKUP(Interval,LoanLookup[],3,FALSE)),"") -> 2026-05-02 | D93: $133,708.07 | E93: $402.44 | F93: =IF(scheduled_no_payments=1,"",IF(Sched_Pay+Scheduled_Extra_Payments<Beg_Bal,Scheduled_Extra_Payments,IF(AND(Pay_Num<>"",Beg_Bal-Sched_Pay>0),Beg_Bal-Sched_Pay,IF(Pay_Num<>"",0,"")))) -> $100.00 | G93: =IF(scheduled_no_payments=1,"",IF(Sched_Pay+Extra_Pay<Beg_Bal,Sched_Pay+Extra_Pay,IF(Pay_Num<>"",Beg_Bal,""))) -> $502.44 | H93: $223.88 | I93: =IF(Pay_Num<>"",Beg_Bal*(Interest_Rate/VLOOKUP(Interval,LoanLookup[],5,FALSE)),"") -> $278.56 | J93: =IF(scheduled_no_payments=1,"",IF(AND(Pay_Num<>"",Sched_Pay+Extra_Pay<Beg_Bal),Beg_Bal-Princ,IF(Pay_Num<>"",0,""))) -> $133,484.19 | K93: =IF(scheduled_no_payments=1,"",SUM($I$14:$I93)) -> $23,679.05
B94: =IF(AND(Values_Entered,scheduled_no_payments<>1),B93+1,"") -> 81 | C94: =IF(Pay_Num<>"",DATE(YEAR(C93)+VLOOKUP(Interval,LoanLookup[],4,FALSE),MONTH(C93)+VLOOKUP(Interval,LoanLookup[],2,FALSE),DAY(C93)+VLOOKUP(Interval,LoanLookup[],3,FALSE)),"") -> 2026-05-17 | D94: $133,484.19 | E94: $402.44 | F94: =IF(scheduled_no_payments=1,"",IF(Sched_Pay+Scheduled_Extra_Payments<Beg_Bal,Scheduled_Extra_Payments,IF(AND(Pay_Num<>"",Beg_Bal-Sched_Pay>0),Beg_Bal-Sched_Pay,IF(Pay_Num<>"",0,"")))) -> $100.00 | G94: =IF(scheduled_no_payments=1,"",IF(Sched_Pay+Extra_Pay<Beg_Bal,Sched_Pay+Extra_Pay,IF(Pay_Num<>"",Beg_Bal,""))) -> $502.44 | H94: $224.34 | I94: =IF(Pay_Num<>"",Beg_Bal*(Interest_Rate/VLOOKUP(Interval,LoanLookup[],5,FALSE)),"") -> $278.09 | J94: =IF(scheduled_no_payments=1,"",IF(AND(Pay_Num<>"",Sched_Pay+Extra_Pay<Beg_Bal),Beg_Bal-Princ,IF(Pay_Num<>"",0,""))) -> $133,259.85 | K94: =IF(scheduled_no_payments=1,"",SUM($I$14:$I94)) -> $23,957.15
B95: =IF(AND(Values_Entered,scheduled_no_payments<>1),B94+1,"") -> 82 | C95: =IF(Pay_Num<>"",DATE(YEAR(C94)+VLOOKUP(Interval,LoanLookup[],4,FALSE),MONTH(C94)+VLOOKUP(Interval,LoanLookup[],2,FALSE),DAY(C94)+VLOOKUP(Interval,LoanLookup[],3,FALSE)),"") -> 2026-06-01 | D95: $133,259.85 | E95: $402.44 | F95: =IF(scheduled_no_payments=1,"",IF(Sched_Pay+Scheduled_Extra_Payments<Beg_Bal,Scheduled_Extra_Payments,IF(AND(Pay_Num<>"",Beg_Bal-Sched_Pay>0),Beg_Bal-Sched_Pay,IF(Pay_Num<>"",0,"")))) -> $100.00 | G95: =IF(scheduled_no_payments=1,"",IF(Sched_Pay+Extra_Pay<Beg_Bal,Sched_Pay+Extra_Pay,IF(Pay_Num<>"",Beg_Bal,""))) -> $502.44 | H95: $224.81 | I95: =IF(Pay_Num<>"",Beg_Bal*(Interest_Rate/VLOOKUP(Interval,LoanLookup[],5,FALSE)),"") -> $277.62 | J95: =IF(scheduled_no_payments=1,"",IF(AND(Pay_Num<>"",Sched_Pay+Extra_Pay<Beg_Bal),Beg_Bal-Princ,IF(Pay_Num<>"",0,""))) -> $133,035.04 | K95: =IF(scheduled_no_payments=1,"",SUM($I$14:$I95)) -> $24,234.77
B96: =IF(AND(Values_Entered,scheduled_no_payments<>1),B95+1,"") -> 83 | C96: =IF(Pay_Num<>"",DATE(YEAR(C95)+VLOOKUP(Interval,LoanLookup[],4,FALSE),MONTH(C95)+VLOOKUP(Interval,LoanLookup[],2,FALSE),DAY(C95)+VLOOKUP(Interval,LoanLookup[],3,FALSE)),"") -> 2026-06-16 | D96: $133,035.04 | E96: $402.44 | F96: =IF(scheduled_no_payments=1,"",IF(Sched_Pay+Scheduled_Extra_Payments<Beg_Bal,Scheduled_Extra_Payments,IF(AND(Pay_Num<>"",Beg_Bal-Sched_Pay>0),Beg_Bal-Sched_Pay,IF(Pay_Num<>"",0,"")))) -> $100.00 | G96: =IF(scheduled_no_payments=1,"",IF(Sched_Pay+Extra_Pay<Beg_Bal,Sched_Pay+Extra_Pay,IF(Pay_Num<>"",Beg_Bal,""))) -> $502.44 | H96: $225.28 | I96: =IF(Pay_Num<>"",Beg_Bal*(Interest_Rate/VLOOKUP(Interval,LoanLookup[],5,FALSE)),"") -> $277.16 | J96: =IF(scheduled_no_payments=1,"",IF(AND(Pay_Num<>"",Sched_Pay+Extra_Pay<Beg_Bal),Beg_Bal-Princ,IF(Pay_Num<>"",0,""))) -> $132,809.76 | K96: =IF(scheduled_no_payments=1,"",SUM($I$14:$I96)) -> $24,511.93
B97: =IF(AND(Values_Entered,scheduled_no_payments<>1),B96+1,"") -> 84 | C97: =IF(Pay_Num<>"",DATE(YEAR(C96)+VLOOKUP(Interval,LoanLookup[],4,FALSE),MONTH(C96)+VLOOKUP(Interval,LoanLookup[],2,FALSE),DAY(C96)+VLOOKUP(Interval,LoanLookup[],3,FALSE)),"") -> 2026-07-01 | D97: $132,809.76 | E97: $402.44 | F97: =IF(scheduled_no_payments=1,"",IF(Sched_Pay+Scheduled_Extra_Payments<Beg_Bal,Scheduled_Extra_Payments,IF(AND(Pay_Num<>"",Beg_Bal-Sched_Pay>0),Beg_Bal-Sched_Pay,IF(Pay_Num<>"",0,"")))) -> $100.00 | G97: =IF(scheduled_no_payments=1,"",IF(Sched_Pay+Extra_Pay<Beg_Bal,Sched_Pay+Extra_Pay,IF(Pay_Num<>"",Beg_Bal,""))) -> $502.44 | H97: $225.75 | I97: =IF(Pay_Num<>"",Beg_Bal*(Interest_Rate/VLOOKUP(Interval,LoanLookup[],5,FALSE)),"") -> $276.69 | J97: =IF(scheduled_no_payments=1,"",IF(AND(Pay_Num<>"",Sched_Pay+Extra_Pay<Beg_Bal),Beg_Bal-Princ,IF(Pay_Num<>"",0,""))) -> $132,584.01 | K97: =IF(scheduled_no_payments=1,"",SUM($I$14:$I97)) -> $24,788.61
B98: =IF(AND(Values_Entered,scheduled_no_payments<>1),B97+1,"") -> 85 | C98: =IF(Pay_Num<>"",DATE(YEAR(C97)+VLOOKUP(Interval,LoanLookup[],4,FALSE),MONTH(C97)+VLOOKUP(Interval,LoanLookup[],2,FALSE),DAY(C97)+VLOOKUP(Interval,LoanLookup[],3,FALSE)),"") -> 2026-07-16 | D98: $132,584.01 | E98: $402.44 | F98: =IF(scheduled_no_payments=1,"",IF(Sched_Pay+Scheduled_Extra_Payments<Beg_Bal,Scheduled_Extra_Payments,IF(AND(Pay_Num<>"",Beg_Bal-Sched_Pay>0),Beg_Bal-Sched_Pay,IF(Pay_Num<>"",0,"")))) -> $100.00 | G98: =IF(scheduled_no_payments=1,"",IF(Sched_Pay+Extra_Pay<Beg_Bal,Sched_Pay+Extra_Pay,IF(Pay_Num<>"",Beg_Bal,""))) -> $502.44 | H98: $226.22 | I98: =IF(Pay_Num<>"",Beg_Bal*(Interest_Rate/VLOOKUP(Interval,LoanLookup[],5,FALSE)),"") -> $276.22 | J98: =IF(scheduled_no_payments=1,"",IF(AND(Pay_Num<>"",Sched_Pay+Extra_Pay<Beg_Bal),Beg_Bal-Princ,IF(Pay_Num<>"",0,""))) -> $132,357.79 | K98: =IF(scheduled_no_payments=1,"",SUM($I$14:$I98)) -> $25,064.83
B99: =IF(AND(Values_Entered,scheduled_no_payments<>1),B98+1,"") -> 86 | C99: =IF(Pay_Num<>"",DATE(YEAR(C98)+VLOOKUP(Interval,LoanLookup[],4,FALSE),MONTH(C98)+VLOOKUP(Interval,LoanLookup[],2,FALSE),DAY(C98)+VLOOKUP(Interval,LoanLookup[],3,FALSE)),"") -> 2026-07-31 | D99: $132,357.79 | E99: $402.44 | F99: =IF(scheduled_no_payments=1,"",IF(Sched_Pay+Scheduled_Extra_Payments<Beg_Bal,Scheduled_Extra_Payments,IF(AND(Pay_Num<>"",Beg_Bal-Sched_Pay>0),Beg_Bal-Sched_Pay,IF(Pay_Num<>"",0,"")))) -> $100.00 | G99: =IF(scheduled_no_payments=1,"",IF(Sched_Pay+Extra_Pay<Beg_Bal,Sched_Pay+Extra_Pay,IF(Pay_Num<>"",Beg_Bal,""))) -> $502.44 | H99: $226.69 | I99: =IF(Pay_Num<>"",Beg_Bal*(Interest_Rate/VLOOKUP(Interval,LoanLookup[],5,FALSE)),"") -> $275.75 | J99: =IF(scheduled_no_payments=1,"",IF(AND(Pay_Num<>"",Sched_Pay+Extra_Pay<Beg_Bal),Beg_Bal-Princ,IF(Pay_Num<>"",0,""))) -> $132,131.10 | K99: =IF(scheduled_no_payments=1,"",SUM($I$14:$I99)) -> $25,340.58
B100: =IF(AND(Values_Entered,scheduled_no_payments<>1),B99+1,"") -> 87 | C100: =IF(Pay_Num<>"",DATE(YEAR(C99)+VLOOKUP(Interval,LoanLookup[],4,FALSE),MONTH(C99)+VLOOKUP(Interval,LoanLookup[],2,FALSE),DAY(C99)+VLOOKUP(Interval,LoanLookup[],3,FALSE)),"") -> 2026-08-15 | D100: $132,131.10 | E100: $402.44 | F100: =IF(scheduled_no_payments=1,"",IF(Sched_Pay+Scheduled_Extra_Payments<Beg_Bal,Scheduled_Extra_Payments,IF(AND(Pay_Num<>"",Beg_Bal-Sched_Pay>0),Beg_Bal-Sched_Pay,IF(Pay_Num<>"",0,"")))) -> $100.00 | G100: =IF(scheduled_no_payments=1,"",IF(Sched_Pay+Extra_Pay<Beg_Bal,Sched_Pay+Extra_Pay,IF(Pay_Num<>"",Beg_Bal,""))) -> $502.44 | H100: $227.16 | I100: =IF(Pay_Num<>"",Beg_Bal*(Interest_Rate/VLOOKUP(Interval,LoanLookup[],5,FALSE)),"") -> $275.27 | J100: =IF(scheduled_no_payments=1,"",IF(AND(Pay_Num<>"",Sched_Pay+Extra_Pay<Beg_Bal),Beg_Bal-Princ,IF(Pay_Num<>"",0,""))) -> $131,903.94 | K100: =IF(scheduled_no_payments=1,"",SUM($I$14:$I100)) -> $25,615.85
B101: =IF(AND(Values_Entered,scheduled_no_payments<>1),B100+1,"") -> 88 | C101: =IF(Pay_Num<>"",DATE(YEAR(C100)+VLOOKUP(Interval,LoanLookup[],4,FALSE),MONTH(C100)+VLOOKUP(Interval,LoanLookup[],2,FALSE),DAY(C100)+VLOOKUP(Interval,LoanLookup[],3,FALSE)),"") -> 2026-08-30 | D101: $131,903.94 | E101: $402.44 | F101: =IF(scheduled_no_payments=1,"",IF(Sched_Pay+Scheduled_Extra_Payments<Beg_Bal,Scheduled_Extra_Payments,IF(AND(Pay_Num<>"",Beg_Bal-Sched_Pay>0),Beg_Bal-Sched_Pay,IF(Pay_Num<>"",0,"")))) -> $100.00 | G101: =IF(scheduled_no_payments=1,"",IF(Sched_Pay+Extra_Pay<Beg_Bal,Sched_Pay+Extra_Pay,IF(Pay_Num<>"",Beg_Bal,""))) -> $502.44 | H101: $227.64 | I101: =IF(Pay_Num<>"",Beg_Bal*(Interest_Rate/VLOOKUP(Interval,LoanLookup[],5,FALSE)),"") -> $274.80 | J101: =IF(scheduled_no_payments=1,"",IF(AND(Pay_Num<>"",Sched_Pay+Extra_Pay<Beg_Bal),Beg_Bal-Princ,IF(Pay_Num<>"",0,""))) -> $131,676.30 | K101: =IF(scheduled_no_payments=1,"",SUM($I$14:$I101)) -> $25,890.65
B102: =IF(AND(Values_Entered,scheduled_no_payments<>1),B101+1,"") -> 89 | C102: =IF(Pay_Num<>"",DATE(YEAR(C101)+VLOOKUP(Interval,LoanLookup[],4,FALSE),MONTH(C101)+VLOOKUP(Interval,LoanLookup[],2,FALSE),DAY(C101)+VLOOKUP(Interval,LoanLookup[],3,FALSE)),"") -> 2026-09-14 | D102: $131,676.30 | E102: $402.44 | F102: =IF(scheduled_no_payments=1,"",IF(Sched_Pay+Scheduled_Extra_Payments<Beg_Bal,Scheduled_Extra_Payments,IF(AND(Pay_Num<>"",Beg_Bal-Sched_Pay>0),Beg_Bal-Sched_Pay,IF(Pay_Num<>"",0,"")))) -> $100.00 | G102: =IF(scheduled_no_payments=1,"",IF(Sched_Pay+Extra_Pay<Beg_Bal,Sched_Pay+Extra_Pay,IF(Pay_Num<>"",Beg_Bal,""))) -> $502.44 | H102: $228.11 | I102: =IF(Pay_Num<>"",Beg_Bal*(Interest_Rate/VLOOKUP(Interval,LoanLookup[],5,FALSE)),"") -> $274.33 | J102: =IF(scheduled_no_payments=1,"",IF(AND(Pay_Num<>"",Sched_Pay+Extra_Pay<Beg_Bal),Beg_Bal-Princ,IF(Pay_Num<>"",0,""))) -> $131,448.19 | K102: =IF(scheduled_no_payments=1,"",SUM($I$14:$I102)) -> $26,164.98
B103: =IF(AND(Values_Entered,scheduled_no_payments<>1),B102+1,"") -> 90 | C103: =IF(Pay_Num<>"",DATE(YEAR(C102)+VLOOKUP(Interval,LoanLookup[],4,FALSE),MONTH(C102)+VLOOKUP(Interval,LoanLookup[],2,FALSE),DAY(C102)+VLOOKUP(Interval,LoanLookup[],3,FALSE)),"") -> 2026-09-29 | D103: $131,448.19 | E103: $402.44 | F103: =IF(scheduled_no_payments=1,"",IF(Sched_Pay+Scheduled_Extra_Payments<Beg_Bal,Scheduled_Extra_Payments,IF(AND(Pay_Num<>"",Beg_Bal-Sched_Pay>0),Beg_Bal-Sched_Pay,IF(Pay_Num<>"",0,"")))) -> $100.00 | G103: =IF(scheduled_no_payments=1,"",IF(Sched_Pay+Extra_Pay<Beg_Bal,Sched_Pay+Extra_Pay,IF(Pay_Num<>"",Beg_Bal,""))) -> $502.44 | H103: $228.59 | I103: =IF(Pay_Num<>"",Beg_Bal*(Interest_Rate/VLOOKUP(Interval,LoanLookup[],5,FALSE)),"") -> $273.85 | J103: =IF(scheduled_no_payments=1,"",IF(AND(Pay_Num<>"",Sched_Pay+Extra_Pay<Beg_Bal),Beg_Bal-Princ,IF(Pay_Num<>"",0,""))) -> $131,219.61 | K103: =IF(scheduled_no_payments=1,"",SUM($I$14:$I103)) -> $26,438.83
B104: =IF(AND(Values_Entered,scheduled_no_payments<>1),B103+1,"") -> 91 | C104: =IF(Pay_Num<>"",DATE(YEAR(C103)+VLOOKUP(Interval,LoanLookup[],4,FALSE),MONTH(C103)+VLOOKUP(Interval,LoanLookup[],2,FALSE),DAY(C103)+VLOOKUP(Interval,LoanLookup[],3,FALSE)),"") -> 2026-10-14 | D104: $131,219.61 | E104: $402.44 | F104: =IF(scheduled_no_payments=1,"",IF(Sched_Pay+Scheduled_Extra_Payments<Beg_Bal,Scheduled_Extra_Payments,IF(AND(Pay_Num<>"",Beg_Bal-Sched_Pay>0),Beg_Bal-Sched_Pay,IF(Pay_Num<>"",0,"")))) -> $100.00 | G104: =IF(scheduled_no_payments=1,"",IF(Sched_Pay+Extra_Pay<Beg_Bal,Sched_Pay+Extra_Pay,IF(Pay_Num<>"",Beg_Bal,""))) -> $502.44 | H104: $229.06 | I104: =IF(Pay_Num<>"",Beg_Bal*(Interest_Rate/VLOOKUP(Interval,LoanLookup[],5,FALSE)),"") -> $273.37 | J104: =IF(scheduled_no_payments=1,"",IF(AND(Pay_Num<>"",Sched_Pay+Extra_Pay<Beg_Bal),Beg_Bal-Princ,IF(Pay_Num<>"",0,""))) -> $130,990.54 | K104: =IF(scheduled_no_payments=1,"",SUM($I$14:$I104)) -> $26,712.20
B105: =IF(AND(Values_Entered,scheduled_no_payments<>1),B104+1,"") -> 92 | C105: =IF(Pay_Num<>"",DATE(YEAR(C104)+VLOOKUP(Interval,LoanLookup[],4,FALSE),MONTH(C104)+VLOOKUP(Interval,LoanLookup[],2,FALSE),DAY(C104)+VLOOKUP(Interval,LoanLookup[],3,FALSE)),"") -> 2026-10-29 | D105: $130,990.54 | E105: $402.44 | F105: =IF(scheduled_no_payments=1,"",IF(Sched_Pay+Scheduled_Extra_Payments<Beg_Bal,Scheduled_Extra_Payments,IF(AND(Pay_Num<>"",Beg_Bal-Sched_Pay>0),Beg_Bal-Sched_Pay,IF(Pay_Num<>"",0,"")))) -> $100.00 | G105: =IF(scheduled_no_payments=1,"",IF(Sched_Pay+Extra_Pay<Beg_Bal,Sched_Pay+Extra_Pay,IF(Pay_Num<>"",Beg_Bal,""))) -> $502.44 | H105: $229.54 | I105: =IF(Pay_Num<>"",Beg_Bal*(Interest_Rate/VLOOKUP(Interval,LoanLookup[],5,FALSE)),"") -> $272.90 | J105: =IF(scheduled_no_payments=1,"",IF(AND(Pay_Num<>"",Sched_Pay+Extra_Pay<Beg_Bal),Beg_Bal-Princ,IF(Pay_Num<>"",0,""))) -> $130,761.00 | K105: =IF(scheduled_no_payments=1,"",SUM($I$14:$I105)) -> $26,985.10
B106: =IF(AND(Values_Entered,scheduled_no_payments<>1),B105+1,"") -> 93 | C106: =IF(Pay_Num<>"",DATE(YEAR(C105)+VLOOKUP(Interval,LoanLookup[],4,FALSE),MONTH(C105)+VLOOKUP(Interval,LoanLookup[],2,FALSE),DAY(C105)+VLOOKUP(Interval,LoanLookup[],3,FALSE)),"") -> 2026-11-13 | D106: $130,761.00 | E106: $402.44 | F106: =IF(scheduled_no_payments=1,"",IF(Sched_Pay+Scheduled_Extra_Payments<Beg_Bal,Scheduled_Extra_Payments,IF(AND(Pay_Num<>"",Beg_Bal-Sched_Pay>0),Beg_Bal-Sched_Pay,IF(Pay_Num<>"",0,"")))) -> $100.00 | G106: =IF(scheduled_no_payments=1,"",IF(Sched_Pay+Extra_Pay<Beg_Bal,Sched_Pay+Extra_Pay,IF(Pay_Num<>"",Beg_Bal,""))) -> $502.44 | H106: $230.02 | I106: =IF(Pay_Num<>"",Beg_Bal*(Interest_Rate/VLOOKUP(Interval,LoanLookup[],5,FALSE)),"") -> $272.42 | J106: =IF(scheduled_no_payments=1,"",IF(AND(Pay_Num<>"",Sched_Pay+Extra_Pay<Beg_Bal),Beg_Bal-Princ,IF(Pay_Num<>"",0,""))) -> $130,530.99 | K106: =IF(scheduled_no_payments=1,"",SUM($I$14:$I106)) -> $27,257.52
B107: =IF(AND(Values_Entered,scheduled_no_payments<>1),B106+1,"") -> 94 | C107: =IF(Pay_Num<>"",DATE(YEAR(C106)+VLOOKUP(Interval,LoanLookup[],4,FALSE),MONTH(C106)+VLOOKUP(Interval,LoanLookup[],2,FALSE),DAY(C106)+VLOOKUP(Interval,LoanLookup[],3,FALSE)),"") -> 2026-11-28 | D107: $130,530.99 | E107: $402.44 | F107: =IF(scheduled_no_payments=1,"",IF(Sched_Pay+Scheduled_Extra_Payments<Beg_Bal,Scheduled_Extra_Payments,IF(AND(Pay_Num<>"",Beg_Bal-Sched_Pay>0),Beg_Bal-Sched_Pay,IF(Pay_Num<>"",0,"")))) -> $100.00 | G107: =IF(scheduled_no_payments=1,"",IF(Sched_Pay+Extra_Pay<Beg_Bal,Sched_Pay+Extra_Pay,IF(Pay_Num<>"",Beg_Bal,""))) -> $502.44 | H107: $230.50 | I107: =IF(Pay_Num<>"",Beg_Bal*(Interest_Rate/VLOOKUP(Interval,LoanLookup[],5,FALSE)),"") -> $271.94 | J107: =IF(scheduled_no_payments=1,"",IF(AND(Pay_Num<>"",Sched_Pay+Extra_Pay<Beg_Bal),Beg_Bal-Princ,IF(Pay_Num<>"",0,""))) -> $130,300.49 | K107: =IF(scheduled_no_payments=1,"",SUM($I$14:$I107)) -> $27,529.45
B108: =IF(AND(Values_Entered,scheduled_no_payments<>1),B107+1,"") -> 95 | C108: =IF(Pay_Num<>"",DATE(YEAR(C107)+VLOOKUP(Interval,LoanLookup[],4,FALSE),MONTH(C107)+VLOOKUP(Interval,LoanLookup[],2,FALSE),DAY(C107)+VLOOKUP(Interval,LoanLookup[],3,FALSE)),"") -> 2026-12-13 | D108: $130,300.49 | E108: $402.44 | F108: =IF(scheduled_no_payments=1,"",IF(Sched_Pay+Scheduled_Extra_Payments<Beg_Bal,Scheduled_Extra_Payments,IF(AND(Pay_Num<>"",Beg_Bal-Sched_Pay>0),Beg_Bal-Sched_Pay,IF(Pay_Num<>"",0,"")))) -> $100.00 | G108: =IF(scheduled_no_payments=1,"",IF(Sched_Pay+Extra_Pay<Beg_Bal,Sched_Pay+Extra_Pay,IF(Pay_Num<>"",Beg_Bal,""))) -> $502.44 | H108: $230.98 | I108: =IF(Pay_Num<>"",Beg_Bal*(Interest_Rate/VLOOKUP(Interval,LoanLookup[],5,FALSE)),"") -> $271.46 | J108: =IF(scheduled_no_payments=1,"",IF(AND(Pay_Num<>"",Sched_Pay+Extra_Pay<Beg_Bal),Beg_Bal-Princ,IF(Pay_Num<>"",0,""))) -> $130,069.52 | K108: =IF(scheduled_no_payments=1,"",SUM($I$14:$I108)) -> $27,800.91
B109: =IF(AND(Values_Entered,scheduled_no_payments<>1),B108+1,"") -> 96 | C109: =IF(Pay_Num<>"",DATE(YEAR(C108)+VLOOKUP(Interval,LoanLookup[],4,FALSE),MONTH(C108)+VLOOKUP(Interval,LoanLookup[],2,FALSE),DAY(C108)+VLOOKUP(Interval,LoanLookup[],3,FALSE)),"") -> 2026-12-28 | D109: $130,069.52 | E109: $402.44 | F109: =IF(scheduled_no_payments=1,"",IF(Sched_Pay+Scheduled_Extra_Payments<Beg_Bal,Scheduled_Extra_Payments,IF(AND(Pay_Num<>"",Beg_Bal-Sched_Pay>0),Beg_Bal-Sched_Pay,IF(Pay_Num<>"",0,"")))) -> $100.00 | G109: =IF(scheduled_no_payments=1,"",IF(Sched_Pay+Extra_Pay<Beg_Bal,Sched_Pay+Extra_Pay,IF(Pay_Num<>"",Beg_Bal,""))) -> $502.44 | H109: $231.46 | I109: =IF(Pay_Num<>"",Beg_Bal*(Interest_Rate/VLOOKUP(Interval,LoanLookup[],5,FALSE)),"") -> $270.98 | J109: =IF(scheduled_no_payments=1,"",IF(AND(Pay_Num<>"",Sched_Pay+Extra_Pay<Beg_Bal),Beg_Bal-Princ,IF(Pay_Num<>"",0,""))) -> $129,838.06 | K109: =IF(scheduled_no_payments=1,"",SUM($I$14:$I109)) -> $28,071.89
B110: =IF(AND(Values_Entered,scheduled_no_payments<>1),B109+1,"") -> 97 | C110: =IF(Pay_Num<>"",DATE(YEAR(C109)+VLOOKUP(Interval,LoanLookup[],4,FALSE),MONTH(C109)+VLOOKUP(Interval,LoanLookup[],2,FALSE),DAY(C109)+VLOOKUP(Interval,LoanLookup[],3,FALSE)),"") -> 2027-01-12 | D110: $129,838.06 | E110: $402.44 | F110: =IF(scheduled_no_payments=1,"",IF(Sched_Pay+Scheduled_Extra_Payments<Beg_Bal,Scheduled_Extra_Payments,IF(AND(Pay_Num<>"",Beg_Bal-Sched_Pay>0),Beg_Bal-Sched_Pay,IF(Pay_Num<>"",0,"")))) -> $100.00 | G110: =IF(scheduled_no_payments=1,"",IF(Sched_Pay+Extra_Pay<Beg_Bal,Sched_Pay+Extra_Pay,IF(Pay_Num<>"",Beg_Bal,""))) -> $502.44 | H110: $231.94 | I110: =IF(Pay_Num<>"",Beg_Bal*(Interest_Rate/VLOOKUP(Interval,LoanLookup[],5,FALSE)),"") -> $270.50 | J110: =IF(scheduled_no_payments=1,"",IF(AND(Pay_Num<>"",Sched_Pay+Extra_Pay<Beg_Bal),Beg_Bal-Princ,IF(Pay_Num<>"",0,""))) -> $129,606.12 | K110: =IF(scheduled_no_payments=1,"",SUM($I$14:$I110)) -> $28,342.39
B111: =IF(AND(Values_Entered,scheduled_no_payments<>1),B110+1,"") -> 98 | C111: =IF(Pay_Num<>"",DATE(YEAR(C110)+VLOOKUP(Interval,LoanLookup[],4,FALSE),MONTH(C110)+VLOOKUP(Interval,LoanLookup[],2,FALSE),DAY(C110)+VLOOKUP(Interval,LoanLookup[],3,FALSE)),"") -> 2027-01-27 | D111: $129,606.12 | E111: $402.44 | F111: =IF(scheduled_no_payments=1,"",IF(Sched_Pay+Scheduled_Extra_Payments<Beg_Bal,Scheduled_Extra_Payments,IF(AND(Pay_Num<>"",Beg_Bal-Sched_Pay>0),Beg_Bal-Sched_Pay,IF(Pay_Num<>"",0,"")))) -> $100.00 | G111: =IF(scheduled_no_payments=1,"",IF(Sched_Pay+Extra_Pay<Beg_Bal,Sched_Pay+Extra_Pay,IF(Pay_Num<>"",Beg_Bal,""))) -> $502.44 | H111: $232.42 | I111: =IF(Pay_Num<>"",Beg_Bal*(Interest_Rate/VLOOKUP(Interval,LoanLookup[],5,FALSE)),"") -> $270.01 | J111: =IF(scheduled_no_payments=1,"",IF(AND(Pay_Num<>"",Sched_Pay+Extra_Pay<Beg_Bal),Beg_Bal-Princ,IF(Pay_Num<>"",0,""))) -> $129,373.69 | K111: =IF(scheduled_no_payments=1,"",SUM($I$14:$I111)) -> $28,612.40
B112: =IF(AND(Values_Entered,scheduled_no_payments<>1),B111+1,"") -> 99 | C112: =IF(Pay_Num<>"",DATE(YEAR(C111)+VLOOKUP(Interval,LoanLookup[],4,FALSE),MONTH(C111)+VLOOKUP(Interval,LoanLookup[],2,FALSE),DAY(C111)+VLOOKUP(Interval,LoanLookup[],3,FALSE)),"") -> 2027-02-11 | D112: $129,373.69 | E112: $402.44 | F112: =IF(scheduled_no_payments=1,"",IF(Sched_Pay+Scheduled_Extra_Payments<Beg_Bal,Scheduled_Extra_Payments,IF(AND(Pay_Num<>"",Beg_Bal-Sched_Pay>0),Beg_Bal-Sched_Pay,IF(Pay_Num<>"",0,"")))) -> $100.00 | G112: =IF(scheduled_no_payments=1,"",IF(Sched_Pay+Extra_Pay<Beg_Bal,Sched_Pay+Extra_Pay,IF(Pay_Num<>"",Beg_Bal,""))) -> $502.44 | H112: $232.91 | I112: =IF(Pay_Num<>"",Beg_Bal*(Interest_Rate/VLOOKUP(Interval,LoanLookup[],5,FALSE)),"") -> $269.53 | J112: =IF(scheduled_no_payments=1,"",IF(AND(Pay_Num<>"",Sched_Pay+Extra_Pay<Beg_Bal),Beg_Bal-Princ,IF(Pay_Num<>"",0,""))) -> $129,140.79 | K112: =IF(scheduled_no_payments=1,"",SUM($I$14:$I112)) -> $28,881.93
B113: =IF(AND(Values_Entered,scheduled_no_payments<>1),B112+1,"") -> 100 | C113: =IF(Pay_Num<>"",DATE(YEAR(C112)+VLOOKUP(Interval,LoanLookup[],4,FALSE),MONTH(C112)+VLOOKUP(Interval,LoanLookup[],2,FALSE),DAY(C112)+VLOOKUP(Interval,LoanLookup[],3,FALSE)),"") -> 2027-02-26 | D113: $129,140.79 | E113: $402.44 | F113: =IF(scheduled_no_payments=1,"",IF(Sched_Pay+Scheduled_Extra_Payments<Beg_Bal,Scheduled_Extra_Payments,IF(AND(Pay_Num<>"",Beg_Bal-Sched_Pay>0),Beg_Bal-Sched_Pay,IF(Pay_Num<>"",0,"")))) -> $100.00 | G113: =IF(scheduled_no_payments=1,"",IF(Sched_Pay+Extra_Pay<Beg_Bal,Sched_Pay+Extra_Pay,IF(Pay_Num<>"",Beg_Bal,""))) -> $502.44 | H113: $233.39 | I113: =IF(Pay_Num<>"",Beg_Bal*(Interest_Rate/VLOOKUP(Interval,LoanLookup[],5,FALSE)),"") -> $269.04 | J113: =IF(scheduled_no_payments=1,"",IF(AND(Pay_Num<>"",Sched_Pay+Extra_Pay<Beg_Bal),Beg_Bal-Princ,IF(Pay_Num<>"",0,""))) -> $128,907.39 | K113: =IF(scheduled_no_payments=1,"",SUM($I$14:$I113)) -> $29,150.97
B114: =IF(AND(Values_Entered,scheduled_no_payments<>1),B113+1,"") -> 101 | C114: =IF(Pay_Num<>"",DATE(YEAR(C113)+VLOOKUP(Interval,LoanLookup[],4,FALSE),MONTH(C113)+VLOOKUP(Interval,LoanLookup[],2,FALSE),DAY(C113)+VLOOKUP(Interval,LoanLookup[],3,FALSE)),"") -> 2027-03-13 | D114: $128,907.39 | E114: $402.44 | F114: =IF(scheduled_no_payments=1,"",IF(Sched_Pay+Scheduled_Extra_Payments<Beg_Bal,Scheduled_Extra_Payments,IF(AND(Pay_Num<>"",Beg_Bal-Sched_Pay>0),Beg_Bal-Sched_Pay,IF(Pay_Num<>"",0,"")))) -> $100.00 | G114: =IF(scheduled_no_payments=1,"",IF(Sched_Pay+Extra_Pay<Beg_Bal,Sched_Pay+Extra_Pay,IF(Pay_Num<>"",Beg_Bal,""))) -> $502.44 | H114: $233.88 | I114: =IF(Pay_Num<>"",Beg_Bal*(Interest_Rate/VLOOKUP(Interval,LoanLookup[],5,FALSE)),"") -> $268.56 | J114: =IF(scheduled_no_payments=1,"",IF(AND(Pay_Num<>"",Sched_Pay+Extra_Pay<Beg_Bal),Beg_Bal-Princ,IF(Pay_Num<>"",0,""))) -> $128,673.52 | K114: =IF(scheduled_no_payments=1,"",SUM($I$14:$I114)) -> $29,419.53
B115: =IF(AND(Values_Entered,scheduled_no_payments<>1),B114+1,"") -> 102 | C115: =IF(Pay_Num<>"",DATE(YEAR(C114)+VLOOKUP(Interval,LoanLookup[],4,FALSE),MONTH(C114)+VLOOKUP(Interval,LoanLookup[],2,FALSE),DAY(C114)+VLOOKUP(Interval,LoanLookup[],3,FALSE)),"") -> 2027-03-28 | D115: $128,673.52 | E115: $402.44 | F115: =IF(scheduled_no_payments=1,"",IF(Sched_Pay+Scheduled_Extra_Payments<Beg_Bal,Scheduled_Extra_Payments,IF(AND(Pay_Num<>"",Beg_Bal-Sched_Pay>0),Beg_Bal-Sched_Pay,IF(Pay_Num<>"",0,"")))) -> $100.00 | G115: =IF(scheduled_no_payments=1,"",IF(Sched_Pay+Extra_Pay<Beg_Bal,Sched_Pay+Extra_Pay,IF(Pay_Num<>"",Beg_Bal,""))) -> $502.44 | H115: $234.37 | I115: =IF(Pay_Num<>"",Beg_Bal*(Interest_Rate/VLOOKUP(Interval,LoanLookup[],5,FALSE)),"") -> $268.07 | J115: =IF(scheduled_no_payments=1,"",IF(AND(Pay_Num<>"",Sched_Pay+Extra_Pay<Beg_Bal),Beg_Bal-Princ,IF(Pay_Num<>"",0,""))) -> $128,439.15 | K115: =IF(scheduled_no_payments=1,"",SUM($I$14:$I115)) -> $29,687.60
B116: =IF(AND(Values_Entered,scheduled_no_payments<>1),B115+1,"") -> 103 | C116: =IF(Pay_Num<>"",DATE(YEAR(C115)+VLOOKUP(Interval,LoanLookup[],4,FALSE),MONTH(C115)+VLOOKUP(Interval,LoanLookup[],2,FALSE),DAY(C115)+VLOOKUP(Interval,LoanLookup[],3,FALSE)),"") -> 2027-04-12 | D116: $128,439.15 | E116: $402.44 | F116: =IF(scheduled_no_payments=1,"",IF(Sched_Pay+Scheduled_Extra_Payments<Beg_Bal,Scheduled_Extra_Payments,IF(AND(Pay_Num<>"",Beg_Bal-Sched_Pay>0),Beg_Bal-Sched_Pay,IF(Pay_Num<>"",0,"")))) -> $100.00 | G116: =IF(scheduled_no_payments=1,"",IF(Sched_Pay+Extra_Pay<Beg_Bal,Sched_Pay+Extra_Pay,IF(Pay_Num<>"",Beg_Bal,""))) -> $502.44 | H116: $234.85 | I116: =IF(Pay_Num<>"",Beg_Bal*(Interest_Rate/VLOOKUP(Interval,LoanLookup[],5,FALSE)),"") -> $267.58 | J116: =IF(scheduled_no_payments=1,"",IF(AND(Pay_Num<>"",Sched_Pay+Extra_Pay<Beg_Bal),Beg_Bal-Princ,IF(Pay_Num<>"",0,""))) -> $128,204.30 | K116: =IF(scheduled_no_payments=1,"",SUM($I$14:$I116)) -> $29,955.18
B117: =IF(AND(Values_Entered,scheduled_no_payments<>1),B116+1,"") -> 104 | C117: =IF(Pay_Num<>"",DATE(YEAR(C116)+VLOOKUP(Interval,LoanLookup[],4,FALSE),MONTH(C116)+VLOOKUP(Interval,LoanLookup[],2,FALSE),DAY(C116)+VLOOKUP(Interval,LoanLookup[],3,FALSE)),"") -> 2027-04-27 | D117: $128,204.30 | E117: $402.44 | F117: =IF(scheduled_no_payments=1,"",IF(Sched_Pay+Scheduled_Extra_Payments<Beg_Bal,Scheduled_Extra_Payments,IF(AND(Pay_Num<>"",Beg_Bal-Sched_Pay>0),Beg_Bal-Sched_Pay,IF(Pay_Num<>"",0,"")))) -> $100.00 | G117: =IF(scheduled_no_payments=1,"",IF(Sched_Pay+Extra_Pay<Beg_Bal,Sched_Pay+Extra_Pay,IF(Pay_Num<>"",Beg_Bal,""))) -> $502.44 | H117: $235.34 | I117: =IF(Pay_Num<>"",Beg_Bal*(Interest_Rate/VLOOKUP(Interval,LoanLookup[],5,FALSE)),"") -> $267.09 | J117: =IF(scheduled_no_payments=1,"",IF(AND(Pay_Num<>"",Sched_Pay+Extra_Pay<Beg_Bal),Beg_Bal-Princ,IF(Pay_Num<>"",0,""))) -> $127,968.95 | K117: =IF(scheduled_no_payments=1,"",SUM($I$14:$I117)) -> $30,222.27
B118: =IF(AND(Values_Entered,scheduled_no_payments<>1),B117+1,"") -> 105 | C118: =IF(Pay_Num<>"",DATE(YEAR(C117)+VLOOKUP(Interval,LoanLookup[],4,FALSE),MONTH(C117)+VLOOKUP(Interval,LoanLookup[],2,FALSE),DAY(C117)+VLOOKUP(Interval,LoanLookup[],3,FALSE)),"") -> 2027-05-12 | D118: $127,968.95 | E118: $402.44 | F118: =IF(scheduled_no_payments=1,"",IF(Sched_Pay+Scheduled_Extra_Payments<Beg_Bal,Scheduled_Extra_Payments,IF(AND(Pay_Num<>"",Beg_Bal-Sched_Pay>0),Beg_Bal-Sched_Pay,IF(Pay_Num<>"",0,"")))) -> $100.00 | G118: =IF(scheduled_no_payments=1,"",IF(Sched_Pay+Extra_Pay<Beg_Bal,Sched_Pay+Extra_Pay,IF(Pay_Num<>"",Beg_Bal,""))) -> $502.44 | H118: $235.83 | I118: =IF(Pay_Num<>"",Beg_Bal*(Interest_Rate/VLOOKUP(Interval,LoanLookup[],5,FALSE)),"") -> $266.60 | J118: =IF(scheduled_no_payments=1,"",IF(AND(Pay_Num<>"",Sched_Pay+Extra_Pay<Beg_Bal),Beg_Bal-Princ,IF(Pay_Num<>"",0,""))) -> $127,733.12 | K118: =IF(scheduled_no_payments=1,"",SUM($I$14:$I118)) -> $30,488.88
B119: =IF(AND(Values_Entered,scheduled_no_payments<>1),B118+1,"") -> 106 | C119: =IF(Pay_Num<>"",DATE(YEAR(C118)+VLOOKUP(Interval,LoanLookup[],4,FALSE),MONTH(C118)+VLOOKUP(Interval,LoanLookup[],2,FALSE),DAY(C118)+VLOOKUP(Interval,LoanLookup[],3,FALSE)),"") -> 2027-05-27 | D119: $127,733.12 | E119: $402.44 | F119: =IF(scheduled_no_payments=1,"",IF(Sched_Pay+Scheduled_Extra_Payments<Beg_Bal,Scheduled_Extra_Payments,IF(AND(Pay_Num<>"",Beg_Bal-Sched_Pay>0),Beg_Bal-Sched_Pay,IF(Pay_Num<>"",0,"")))) -> $100.00 | G119: =IF(scheduled_no_payments=1,"",IF(Sched_Pay+Extra_Pay<Beg_Bal,Sched_Pay+Extra_Pay,IF(Pay_Num<>"",Beg_Bal,""))) -> $502.44 | H119: $236.33 | I119: =IF(Pay_Num<>"",Beg_Bal*(Interest_Rate/VLOOKUP(Interval,LoanLookup[],5,FALSE)),"") -> $266.11 | J119: =IF(scheduled_no_payments=1,"",IF(AND(Pay_Num<>"",Sched_Pay+Extra_Pay<Beg_Bal),Beg_Bal-Princ,IF(Pay_Num<>"",0,""))) -> $127,496.79 | K119: =IF(scheduled_no_payments=1,"",SUM($I$14:$I119)) -> $30,754.99
B120: =IF(AND(Values_Entered,scheduled_no_payments<>1),B119+1,"") -> 107 | C120: =IF(Pay_Num<>"",DATE(YEAR(C119)+VLOOKUP(Interval,LoanLookup[],4,FALSE),MONTH(C119)+VLOOKUP(Interval,LoanLookup[],2,FALSE),DAY(C119)+VLOOKUP(Interval,LoanLookup[],3,FALSE)),"") -> 2027-06-11 | D120: $127,496.79 | E120: $402.44 | F120: =IF(scheduled_no_payments=1,"",IF(Sched_Pay+Scheduled_Extra_Payments<Beg_Bal,Scheduled_Extra_Payments,IF(AND(Pay_Num<>"",Beg_Bal-Sched_Pay>0),Beg_Bal-Sched_Pay,IF(Pay_Num<>"",0,"")))) -> $100.00 | G120: =IF(scheduled_no_payments=1,"",IF(Sched_Pay+Extra_Pay<Beg_Bal,Sched_Pay+Extra_Pay,IF(Pay_Num<>"",Beg_Bal,""))) -> $502.44 | H120: $236.82 | I120: =IF(Pay_Num<>"",Beg_Bal*(Interest_Rate/VLOOKUP(Interval,LoanLookup[],5,FALSE)),"") -> $265.62 | J120: =IF(scheduled_no_payments=1,"",IF(AND(Pay_Num<>"",Sched_Pay+Extra_Pay<Beg_Bal),Beg_Bal-Princ,IF(Pay_Num<>"",0,""))) -> $127,259.98 | K120: =IF(scheduled_no_payments=1,"",SUM($I$14:$I120)) -> $31,020.60
B121: =IF(AND(Values_Entered,scheduled_no_payments<>1),B120+1,"") -> 108 | C121: =IF(Pay_Num<>"",DATE(YEAR(C120)+VLOOKUP(Interval,LoanLookup[],4,FALSE),MONTH(C120)+VLOOKUP(Interval,LoanLookup[],2,FALSE),DAY(C120)+VLOOKUP(Interval,LoanLookup[],3,FALSE)),"") -> 2027-06-26 | D121: $127,259.98 | E121: $402.44 | F121: =IF(scheduled_no_payments=1,"",IF(Sched_Pay+Scheduled_Extra_Payments<Beg_Bal,Scheduled_Extra_Payments,IF(AND(Pay_Num<>"",Beg_Bal-Sched_Pay>0),Beg_Bal-Sched_Pay,IF(Pay_Num<>"",0,"")))) -> $100.00 | G121: =IF(scheduled_no_payments=1,"",IF(Sched_Pay+Extra_Pay<Beg_Bal,Sched_Pay+Extra_Pay,IF(Pay_Num<>"",Beg_Bal,""))) -> $502.44 | H121: $237.31 | I121: =IF(Pay_Num<>"",Beg_Bal*(Interest_Rate/VLOOKUP(Interval,LoanLookup[],5,FALSE)),"") -> $265.12 | J121: =IF(scheduled_no_payments=1,"",IF(AND(Pay_Num<>"",Sched_Pay+Extra_Pay<Beg_Bal),Beg_Bal-Princ,IF(Pay_Num<>"",0,""))) -> $127,022.67 | K121: =IF(scheduled_no_payments=1,"",SUM($I$14:$I121)) -> $31,285.73
B122: =IF(AND(Values_Entered,scheduled_no_payments<>1),B121+1,"") -> 109 | C122: =IF(Pay_Num<>"",DATE(YEAR(C121)+VLOOKUP(Interval,LoanLookup[],4,FALSE),MONTH(C121)+VLOOKUP(Interval,LoanLookup[],2,FALSE),DAY(C121)+VLOOKUP(Interval,LoanLookup[],3,FALSE)),"") -> 2027-07-11 | D122: $127,022.67 | E122: $402.44 | F122: =IF(scheduled_no_payments=1,"",IF(Sched_Pay+Scheduled_Extra_Payments<Beg_Bal,Scheduled_Extra_Payments,IF(AND(Pay_Num<>"",Beg_Bal-Sched_Pay>0),Beg_Bal-Sched_Pay,IF(Pay_Num<>"",0,"")))) -> $100.00 | G122: =IF(scheduled_no_payments=1,"",IF(Sched_Pay+Extra_Pay<Beg_Bal,Sched_Pay+Extra_Pay,IF(Pay_Num<>"",Beg_Bal,""))) -> $502.44 | H122: $237.81 | I122: =IF(Pay_Num<>"",Beg_Bal*(Interest_Rate/VLOOKUP(Interval,LoanLookup[],5,FALSE)),"") -> $264.63 | J122: =IF(scheduled_no_payments=1,"",IF(AND(Pay_Num<>"",Sched_Pay+Extra_Pay<Beg_Bal),Beg_Bal-Princ,IF(Pay_Num<>"",0,""))) -> $126,784.86 | K122: =IF(scheduled_no_payments=1,"",SUM($I$14:$I122)) -> $31,550.36
B123: =IF(AND(Values_Entered,scheduled_no_payments<>1),B122+1,"") -> 110 | C123: =IF(Pay_Num<>"",DATE(YEAR(C122)+VLOOKUP(Interval,LoanLookup[],4,FALSE),MONTH(C122)+VLOOKUP(Interval,LoanLookup[],2,FALSE),DAY(C122)+VLOOKUP(Interval,LoanLookup[],3,FALSE)),"") -> 2027-07-26 | D123: $126,784.86 | E123: $402.44 | F123: =IF(scheduled_no_payments=1,"",IF(Sched_Pay+Scheduled_Extra_Payments<Beg_Bal,Scheduled_Extra_Payments,IF(AND(Pay_Num<>"",Beg_Bal-Sched_Pay>0),Beg_Bal-Sched_Pay,IF(Pay_Num<>"",0,"")))) -> $100.00 | G123: =IF(scheduled_no_payments=1,"",IF(Sched_Pay+Extra_Pay<Beg_Bal,Sched_Pay+Extra_Pay,IF(Pay_Num<>"",Beg_Bal,""))) -> $502.44 | H123: $238.30 | I123: =IF(Pay_Num<>"",Beg_Bal*(Interest_Rate/VLOOKUP(Interval,LoanLookup[],5,FALSE)),"") -> $264.14 | J123: =IF(scheduled_no_payments=1,"",IF(AND(Pay_Num<>"",Sched_Pay+Extra_Pay<Beg_Bal),Beg_Bal-Princ,IF(Pay_Num<>"",0,""))) -> $126,546.56 | K123: =IF(scheduled_no_payments=1,"",SUM($I$14:$I123)) -> $31,814.50
B124: =IF(AND(Values_Entered,scheduled_no_payments<>1),B123+1,"") -> 111 | C124: =IF(Pay_Num<>"",DATE(YEAR(C123)+VLOOKUP(Interval,LoanLookup[],4,FALSE),MONTH(C123)+VLOOKUP(Interval,LoanLookup[],2,FALSE),DAY(C123)+VLOOKUP(Interval,LoanLookup[],3,FALSE)),"") -> 2027-08-10 | D124: $126,546.56 | E124: $402.44 | F124: =IF(scheduled_no_payments=1,"",IF(Sched_Pay+Scheduled_Extra_Payments<Beg_Bal,Scheduled_Extra_Payments,IF(AND(Pay_Num<>"",Beg_Bal-Sched_Pay>0),Beg_Bal-Sched_Pay,IF(Pay_Num<>"",0,"")))) -> $100.00 | G124: =IF(scheduled_no_payments=1,"",IF(Sched_Pay+Extra_Pay<Beg_Bal,Sched_Pay+Extra_Pay,IF(Pay_Num<>"",Beg_Bal,""))) -> $502.44 | H124: $238.80 | I124: =IF(Pay_Num<>"",Beg_Bal*(Interest_Rate/VLOOKUP(Interval,LoanLookup[],5,FALSE)),"") -> $263.64 | J124: =IF(scheduled_no_payments=1,"",IF(AND(Pay_Num<>"",Sched_Pay+Extra_Pay<Beg_Bal),Beg_Bal-Princ,IF(Pay_Num<>"",0,""))) -> $126,307.76 | K124: =IF(scheduled_no_payments=1,"",SUM($I$14:$I124)) -> $32,078.13
B125: =IF(AND(Values_Entered,scheduled_no_payments<>1),B124+1,"") -> 112 | C125: =IF(Pay_Num<>"",DATE(YEAR(C124)+VLOOKUP(Interval,LoanLookup[],4,FALSE),MONTH(C124)+VLOOKUP(Interval,LoanLookup[],2,FALSE),DAY(C124)+VLOOKUP(Interval,LoanLookup[],3,FALSE)),"") -> 2027-08-25 | D125: $126,307.76 | E125: $402.44 | F125: =IF(scheduled_no_payments=1,"",IF(Sched_Pay+Scheduled_Extra_Payments<Beg_Bal,Scheduled_Extra_Payments,IF(AND(Pay_Num<>"",Beg_Bal-Sched_Pay>0),Beg_Bal-Sched_Pay,IF(Pay_Num<>"",0,"")))) -> $100.00 | G125: =IF(scheduled_no_payments=1,"",IF(Sched_Pay+Extra_Pay<Beg_Bal,Sched_Pay+Extra_Pay,IF(Pay_Num<>"",Beg_Bal,""))) -> $502.44 | H125: $239.29 | I125: =IF(Pay_Num<>"",Beg_Bal*(Interest_Rate/VLOOKUP(Interval,LoanLookup[],5,FALSE)),"") -> $263.14 | J125: =IF(scheduled_no_payments=1,"",IF(AND(Pay_Num<>"",Sched_Pay+Extra_Pay<Beg_Bal),Beg_Bal-Princ,IF(Pay_Num<>"",0,""))) -> $126,068.47 | K125: =IF(scheduled_no_payments=1,"",SUM($I$14:$I125)) -> $32,341.28
B126: =IF(AND(Values_Entered,scheduled_no_payments<>1),B125+1,"") -> 113 | C126: =IF(Pay_Num<>"",DATE(YEAR(C125)+VLOOKUP(Interval,LoanLookup[],4,FALSE),MONTH(C125)+VLOOKUP(Interval,LoanLookup[],2,FALSE),DAY(C125)+VLOOKUP(Interval,LoanLookup[],3,FALSE)),"") -> 2027-09-09 | D126: $126,068.47 | E126: $402.44 | F126: =IF(scheduled_no_payments=1,"",IF(Sched_Pay+Scheduled_Extra_Payments<Beg_Bal,Scheduled_Extra_Payments,IF(AND(Pay_Num<>"",Beg_Bal-Sched_Pay>0),Beg_Bal-Sched_Pay,IF(Pay_Num<>"",0,"")))) -> $100.00 | G126: =IF(scheduled_no_payments=1,"",IF(Sched_Pay+Extra_Pay<Beg_Bal,Sched_Pay+Extra_Pay,IF(Pay_Num<>"",Beg_Bal,""))) -> $502.44 | H126: $239.79 | I126: =IF(Pay_Num<>"",Beg_Bal*(Interest_Rate/VLOOKUP(Interval,LoanLookup[],5,FALSE)),"") -> $262.64 | J126: =IF(scheduled_no_payments=1,"",IF(AND(Pay_Num<>"",Sched_Pay+Extra_Pay<Beg_Bal),Beg_Bal-Princ,IF(Pay_Num<>"",0,""))) -> $125,828.67 | K126: =IF(scheduled_no_payments=1,"",SUM($I$14:$I126)) -> $32,603.92
B127: =IF(AND(Values_Entered,scheduled_no_payments<>1),B126+1,"") -> 114 | C127: =IF(Pay_Num<>"",DATE(YEAR(C126)+VLOOKUP(Interval,LoanLookup[],4,FALSE),MONTH(C126)+VLOOKUP(Interval,LoanLookup[],2,FALSE),DAY(C126)+VLOOKUP(Interval,LoanLookup[],3,FALSE)),"") -> 2027-09-24 | D127: $125,828.67 | E127: $402.44 | F127: =IF(scheduled_no_payments=1,"",IF(Sched_Pay+Scheduled_Extra_Payments<Beg_Bal,Scheduled_Extra_Payments,IF(AND(Pay_Num<>"",Beg_Bal-Sched_Pay>0),Beg_Bal-Sched_Pay,IF(Pay_Num<>"",0,"")))) -> $100.00 | G127: =IF(scheduled_no_payments=1,"",IF(Sched_Pay+Extra_Pay<Beg_Bal,Sched_Pay+Extra_Pay,IF(Pay_Num<>"",Beg_Bal,""))) -> $502.44 | H127: $240.29 | I127: =IF(Pay_Num<>"",Beg_Bal*(Interest_Rate/VLOOKUP(Interval,LoanLookup[],5,FALSE)),"") -> $262.14 | J127: =IF(scheduled_no_payments=1,"",IF(AND(Pay_Num<>"",Sched_Pay+Extra_Pay<Beg_Bal),Beg_Bal-Princ,IF(Pay_Num<>"",0,""))) -> $125,588.38 | K127: =IF(scheduled_no_payments=1,"",SUM($I$14:$I127)) -> $32,866.06
B128: =IF(AND(Values_Entered,scheduled_no_payments<>1),B127+1,"") -> 115 | C128: =IF(Pay_Num<>"",DATE(YEAR(C127)+VLOOKUP(Interval,LoanLookup[],4,FALSE),MONTH(C127)+VLOOKUP(Interval,LoanLookup[],2,FALSE),DAY(C127)+VLOOKUP(Interval,LoanLookup[],3,FALSE)),"") -> 2027-10-09 | D128: $125,588.38 | E128: $402.44 | F128: =IF(scheduled_no_payments=1,"",IF(Sched_Pay+Scheduled_Extra_Payments<Beg_Bal,Scheduled_Extra_Payments,IF(AND(Pay_Num<>"",Beg_Bal-Sched_Pay>0),Beg_Bal-Sched_Pay,IF(Pay_Num<>"",0,"")))) -> $100.00 | G128: =IF(scheduled_no_payments=1,"",IF(Sched_Pay+Extra_Pay<Beg_Bal,Sched_Pay+Extra_Pay,IF(Pay_Num<>"",Beg_Bal,""))) -> $502.44 | H128: $240.79 | I128: =IF(Pay_Num<>"",Beg_Bal*(Interest_Rate/VLOOKUP(Interval,LoanLookup[],5,FALSE)),"") -> $261.64 | J128: =IF(scheduled_no_payments=1,"",IF(AND(Pay_Num<>"",Sched_Pay+Extra_Pay<Beg_Bal),Beg_Bal-Princ,IF(Pay_Num<>"",0,""))) -> $125,347.59 | K128: =IF(scheduled_no_payments=1,"",SUM($I$14:$I128)) -> $33,127.70
B129: =IF(AND(Values_Entered,scheduled_no_payments<>1),B128+1,"") -> 116 | C129: =IF(Pay_Num<>"",DATE(YEAR(C128)+VLOOKUP(Interval,LoanLookup[],4,FALSE),MONTH(C128)+VLOOKUP(Interval,LoanLookup[],2,FALSE),DAY(C128)+VLOOKUP(Interval,LoanLookup[],3,FALSE)),"") -> 2027-10-24 | D129: $125,347.59 | E129: $402.44 | F129: =IF(scheduled_no_payments=1,"",IF(Sched_Pay+Scheduled_Extra_Payments<Beg_Bal,Scheduled_Extra_Payments,IF(AND(Pay_Num<>"",Beg_Bal-Sched_Pay>0),Beg_Bal-Sched_Pay,IF(Pay_Num<>"",0,"")))) -> $100.00 | G129: =IF(scheduled_no_payments=1,"",IF(Sched_Pay+Extra_Pay<Beg_Bal,Sched_Pay+Extra_Pay,IF(Pay_Num<>"",Beg_Bal,""))) -> $502.44 | H129: $241.29 | I129: =IF(Pay_Num<>"",Beg_Bal*(Interest_Rate/VLOOKUP(Interval,LoanLookup[],5,FALSE)),"") -> $261.14 | J129: =IF(scheduled_no_payments=1,"",IF(AND(Pay_Num<>"",Sched_Pay+Extra_Pay<Beg_Bal),Beg_Bal-Princ,IF(Pay_Num<>"",0,""))) -> $125,106.29 | K129: =IF(scheduled_no_payments=1,"",SUM($I$14:$I129)) -> $33,388.84
B130: =IF(AND(Values_Entered,scheduled_no_payments<>1),B129+1,"") -> 117 | C130: =IF(Pay_Num<>"",DATE(YEAR(C129)+VLOOKUP(Interval,LoanLookup[],4,FALSE),MONTH(C129)+VLOOKUP(Interval,LoanLookup[],2,FALSE),DAY(C129)+VLOOKUP(Interval,LoanLookup[],3,FALSE)),"") -> 2027-11-08 | D130: $125,106.29 | E130: $402.44 | F130: =IF(scheduled_no_payments=1,"",IF(Sched_Pay+Scheduled_Extra_Payments<Beg_Bal,Scheduled_Extra_Payments,IF(AND(Pay_Num<>"",Beg_Bal-Sched_Pay>0),Beg_Bal-Sched_Pay,IF(Pay_Num<>"",0,"")))) -> $100.00 | G130: =IF(scheduled_no_payments=1,"",IF(Sched_Pay+Extra_Pay<Beg_Bal,Sched_Pay+Extra_Pay,IF(Pay_Num<>"",Beg_Bal,""))) -> $502.44 | H130: $241.80 | I130: =IF(Pay_Num<>"",Beg_Bal*(Interest_Rate/VLOOKUP(Interval,LoanLookup[],5,FALSE)),"") -> $260.64 | J130: =IF(scheduled_no_payments=1,"",IF(AND(Pay_Num<>"",Sched_Pay+Extra_Pay<Beg_Bal),Beg_Bal-Princ,IF(Pay_Num<>"",0,""))) -> $124,864.50 | K130: =IF(scheduled_no_payments=1,"",SUM($I$14:$I130)) -> $33,649.48
B131: =IF(AND(Values_Entered,scheduled_no_payments<>1),B130+1,"") -> 118 | C131: =IF(Pay_Num<>"",DATE(YEAR(C130)+VLOOKUP(Interval,LoanLookup[],4,FALSE),MONTH(C130)+VLOOKUP(Interval,LoanLookup[],2,FALSE),DAY(C130)+VLOOKUP(Interval,LoanLookup[],3,FALSE)),"") -> 2027-11-23 | D131: $124,864.50 | E131: $402.44 | F131: =IF(scheduled_no_payments=1,"",IF(Sched_Pay+Scheduled_Extra_Payments<Beg_Bal,Scheduled_Extra_Payments,IF(AND(Pay_Num<>"",Beg_Bal-Sched_Pay>0),Beg_Bal-Sched_Pay,IF(Pay_Num<>"",0,"")))) -> $100.00 | G131: =IF(scheduled_no_payments=1,"",IF(Sched_Pay+Extra_Pay<Beg_Bal,Sched_Pay+Extra_Pay,IF(Pay_Num<>"",Beg_Bal,""))) -> $502.44 | H131: $242.30 | I131: =IF(Pay_Num<>"",Beg_Bal*(Interest_Rate/VLOOKUP(Interval,LoanLookup[],5,FALSE)),"") -> $260.13 | J131: =IF(scheduled_no_payments=1,"",IF(AND(Pay_Num<>"",Sched_Pay+Extra_Pay<Beg_Bal),Beg_Bal-Princ,IF(Pay_Num<>"",0,""))) -> $124,622.19 | K131: =IF(scheduled_no_payments=1,"",SUM($I$14:$I131)) -> $33,909.62
B132: =IF(AND(Values_Entered,scheduled_no_payments<>1),B131+1,"") -> 119 | C132: =IF(Pay_Num<>"",DATE(YEAR(C131)+VLOOKUP(Interval,LoanLookup[],4,FALSE),MONTH(C131)+VLOOKUP(Interval,LoanLookup[],2,FALSE),DAY(C131)+VLOOKUP(Interval,LoanLookup[],3,FALSE)),"") -> 2027-12-08 | D132: $124,622.19 | E132: $402.44 | F132: =IF(scheduled_no_payments=1,"",IF(Sched_Pay+Scheduled_Extra_Payments<Beg_Bal,Scheduled_Extra_Payments,IF(AND(Pay_Num<>"",Beg_Bal-Sched_Pay>0),Beg_Bal-Sched_Pay,IF(Pay_Num<>"",0,"")))) -> $100.00 | G132: =IF(scheduled_no_payments=1,"",IF(Sched_Pay+Extra_Pay<Beg_Bal,Sched_Pay+Extra_Pay,IF(Pay_Num<>"",Beg_Bal,""))) -> $502.44 | H132: $242.81 | I132: =IF(Pay_Num<>"",Beg_Bal*(Interest_Rate/VLOOKUP(Interval,LoanLookup[],5,FALSE)),"") -> $259.63 | J132: =IF(scheduled_no_payments=1,"",IF(AND(Pay_Num<>"",Sched_Pay+Extra_Pay<Beg_Bal),Beg_Bal-Princ,IF(Pay_Num<>"",0,""))) -> $124,379.39 | K132: =IF(scheduled_no_payments=1,"",SUM($I$14:$I132)) -> $34,169.25
B133: =IF(AND(Values_Entered,scheduled_no_payments<>1),B132+1,"") -> 120 | C133: =IF(Pay_Num<>"",DATE(YEAR(C132)+VLOOKUP(Interval,LoanLookup[],4,FALSE),MONTH(C132)+VLOOKUP(Interval,LoanLookup[],2,FALSE),DAY(C132)+VLOOKUP(Interval,LoanLookup[],3,FALSE)),"") -> 2027-12-23 | D133: $124,379.39 | E133: $402.44 | F133: =IF(scheduled_no_payments=1,"",IF(Sched_Pay+Scheduled_Extra_Payments<Beg_Bal,Scheduled_Extra_Payments,IF(AND(Pay_Num<>"",Beg_Bal-Sched_Pay>0),Beg_Bal-Sched_Pay,IF(Pay_Num<>"",0,"")))) -> $100.00 | G133: =IF(scheduled_no_payments=1,"",IF(Sched_Pay+Extra_Pay<Beg_Bal,Sched_Pay+Extra_Pay,IF(Pay_Num<>"",Beg_Bal,""))) -> $502.44 | H133: $243.31 | I133: =IF(Pay_Num<>"",Beg_Bal*(Interest_Rate/VLOOKUP(Interval,LoanLookup[],5,FALSE)),"") -> $259.12 | J133: =IF(scheduled_no_payments=1,"",IF(AND(Pay_Num<>"",Sched_Pay+Extra_Pay<Beg_Bal),Beg_Bal-Princ,IF(Pay_Num<>"",0,""))) -> $124,136.08 | K133: =IF(scheduled_no_payments=1,"",SUM($I$14:$I133)) -> $34,428.37
B134: =IF(AND(Values_Entered,scheduled_no_payments<>1),B133+1,"") -> 121 | C134: =IF(Pay_Num<>"",DATE(YEAR(C133)+VLOOKUP(Interval,LoanLookup[],4,FALSE),MONTH(C133)+VLOOKUP(Interval,LoanLookup[],2,FALSE),DAY(C133)+VLOOKUP(Interval,LoanLookup[],3,FALSE)),"") -> 2028-01-07 | D134: $124,136.08 | E134: $402.44 | F134: =IF(scheduled_no_payments=1,"",IF(Sched_Pay+Scheduled_Extra_Payments<Beg_Bal,Scheduled_Extra_Payments,IF(AND(Pay_Num<>"",Beg_Bal-Sched_Pay>0),Beg_Bal-Sched_Pay,IF(Pay_Num<>"",0,"")))) -> $100.00 | G134: =IF(scheduled_no_payments=1,"",IF(Sched_Pay+Extra_Pay<Beg_Bal,Sched_Pay+Extra_Pay,IF(Pay_Num<>"",Beg_Bal,""))) -> $502.44 | H134: $243.82 | I134: =IF(Pay_Num<>"",Beg_Bal*(Interest_Rate/VLOOKUP(Interval,LoanLookup[],5,FALSE)),"") -> $258.62 | J134: =IF(scheduled_no_payments=1,"",IF(AND(Pay_Num<>"",Sched_Pay+Extra_Pay<Beg_Bal),Beg_Bal-Princ,IF(Pay_Num<>"",0,""))) -> $123,892.26 | K134: =IF(scheduled_no_payments=1,"",SUM($I$14:$I134)) -> $34,686.99
B135: =IF(AND(Values_Entered,scheduled_no_payments<>1),B134+1,"") -> 122 | C135: =IF(Pay_Num<>"",DATE(YEAR(C134)+VLOOKUP(Interval,LoanLookup[],4,FALSE),MONTH(C134)+VLOOKUP(Interval,LoanLookup[],2,FALSE),DAY(C134)+VLOOKUP(Interval,LoanLookup[],3,FALSE)),"") -> 2028-01-22 | D135: $123,892.26 | E135: $402.44 | F135: =IF(scheduled_no_payments=1,"",IF(Sched_Pay+Scheduled_Extra_Payments<Beg_Bal,Scheduled_Extra_Payments,IF(AND(Pay_Num<>"",Beg_Bal-Sched_Pay>0),Beg_Bal-Sched_Pay,IF(Pay_Num<>"",0,"")))) -> $100.00 | G135: =IF(scheduled_no_payments=1,"",IF(Sched_Pay+Extra_Pay<Beg_Bal,Sched_Pay+Extra_Pay,IF(Pay_Num<>"",Beg_Bal,""))) -> $502.44 | H135: $244.33 | I135: =IF(Pay_Num<>"",Beg_Bal*(Interest_Rate/VLOOKUP(Interval,LoanLookup[],5,FALSE)),"") -> $258.11 | J135: =IF(scheduled_no_payments=1,"",IF(AND(Pay_Num<>"",Sched_Pay+Extra_Pay<Beg_Bal),Beg_Bal-Princ,IF(Pay_Num<>"",0,""))) -> $123,647.93 | K135: =IF(scheduled_no_payments=1,"",SUM($I$14:$I135)) -> $34,945.10
B136: =IF(AND(Values_Entered,scheduled_no_payments<>1),B135+1,"") -> 123 | C136: =IF(Pay_Num<>"",DATE(YEAR(C135)+VLOOKUP(Interval,LoanLookup[],4,FALSE),MONTH(C135)+VLOOKUP(Interval,LoanLookup[],2,FALSE),DAY(C135)+VLOOKUP(Interval,LoanLookup[],3,FALSE)),"") -> 2028-02-06 | D136: $123,647.93 | E136: $402.44 | F136: =IF(scheduled_no_payments=1,"",IF(Sched_Pay+Scheduled_Extra_Payments<Beg_Bal,Scheduled_Extra_Payments,IF(AND(Pay_Num<>"",Beg_Bal-Sched_Pay>0),Beg_Bal-Sched_Pay,IF(Pay_Num<>"",0,"")))) -> $100.00 | G136: =IF(scheduled_no_payments=1,"",IF(Sched_Pay+Extra_Pay<Beg_Bal,Sched_Pay+Extra_Pay,IF(Pay_Num<>"",Beg_Bal,""))) -> $502.44 | H136: $244.84 | I136: =IF(Pay_Num<>"",Beg_Bal*(Interest_Rate/VLOOKUP(Interval,LoanLookup[],5,FALSE)),"") -> $257.60 | J136: =IF(scheduled_no_payments=1,"",IF(AND(Pay_Num<>"",Sched_Pay+Extra_Pay<Beg_Bal),Beg_Bal-Princ,IF(Pay_Num<>"",0,""))) -> $123,403.09 | K136: =IF(scheduled_no_payments=1,"",SUM($I$14:$I136)) -> $35,202.70
B137: =IF(AND(Values_Entered,scheduled_no_payments<>1),B136+1,"") -> 124 | C137: =IF(Pay_Num<>"",DATE(YEAR(C136)+VLOOKUP(Interval,LoanLookup[],4,FALSE),MONTH(C136)+VLOOKUP(Interval,LoanLookup[],2,FALSE),DAY(C136)+VLOOKUP(Interval,LoanLookup[],3,FALSE)),"") -> 2028-02-21 | D137: $123,403.09 | E137: $402.44 | F137: =IF(scheduled_no_payments=1,"",IF(Sched_Pay+Scheduled_Extra_Payments<Beg_Bal,Scheduled_Extra_Payments,IF(AND(Pay_Num<>"",Beg_Bal-Sched_Pay>0),Beg_Bal-Sched_Pay,IF(Pay_Num<>"",0,"")))) -> $100.00 | G137: =IF(scheduled_no_payments=1,"",IF(Sched_Pay+Extra_Pay<Beg_Bal,Sched_Pay+Extra_Pay,IF(Pay_Num<>"",Beg_Bal,""))) -> $502.44 | H137: $245.35 | I137: =IF(Pay_Num<>"",Beg_Bal*(Interest_Rate/VLOOKUP(Interval,LoanLookup[],5,FALSE)),"") -> $257.09 | J137: =IF(scheduled_no_payments=1,"",IF(AND(Pay_Num<>"",Sched_Pay+Extra_Pay<Beg_Bal),Beg_Bal-Princ,IF(Pay_Num<>"",0,""))) -> $123,157.75 | K137: =IF(scheduled_no_payments=1,"",SUM($I$14:$I137)) -> $35,459.79
B138: =IF(AND(Values_Entered,scheduled_no_payments<>1),B137+1,"") -> 125 | C138: =IF(Pay_Num<>"",DATE(YEAR(C137)+VLOOKUP(Interval,LoanLookup[],4,FALSE),MONTH(C137)+VLOOKUP(Interval,LoanLookup[],2,FALSE),DAY(C137)+VLOOKUP(Interval,LoanLookup[],3,FALSE)),"") -> 2028-03-07 | D138: $123,157.75 | E138: $402.44 | F138: =IF(scheduled_no_payments=1,"",IF(Sched_Pay+Scheduled_Extra_Payments<Beg_Bal,Scheduled_Extra_Payments,IF(AND(Pay_Num<>"",Beg_Bal-Sched_Pay>0),Beg_Bal-Sched_Pay,IF(Pay_Num<>"",0,"")))) -> $100.00 | G138: =IF(scheduled_no_payments=1,"",IF(Sched_Pay+Extra_Pay<Beg_Bal,Sched_Pay+Extra_Pay,IF(Pay_Num<>"",Beg_Bal,""))) -> $502.44 | H138: $245.86 | I138: =IF(Pay_Num<>"",Beg_Bal*(Interest_Rate/VLOOKUP(Interval,LoanLookup[],5,FALSE)),"") -> $256.58 | J138: =IF(scheduled_no_payments=1,"",IF(AND(Pay_Num<>"",Sched_Pay+Extra_Pay<Beg_Bal),Beg_Bal-Princ,IF(Pay_Num<>"",0,""))) -> $122,911.89 | K138: =IF(scheduled_no_payments=1,"",SUM($I$14:$I138)) -> $35,716.36
B139: =IF(AND(Values_Entered,scheduled_no_payments<>1),B138+1,"") -> 126 | C139: =IF(Pay_Num<>"",DATE(YEAR(C138)+VLOOKUP(Interval,LoanLookup[],4,FALSE),MONTH(C138)+VLOOKUP(Interval,LoanLookup[],2,FALSE),DAY(C138)+VLOOKUP(Interval,LoanLookup[],3,FALSE)),"") -> 2028-03-22 | D139: $122,911.89 | E139: $402.44 | F139: =IF(scheduled_no_payments=1,"",IF(Sched_Pay+Scheduled_Extra_Payments<Beg_Bal,Scheduled_Extra_Payments,IF(AND(Pay_Num<>"",Beg_Bal-Sched_Pay>0),Beg_Bal-Sched_Pay,IF(Pay_Num<>"",0,"")))) -> $100.00 | G139: =IF(scheduled_no_payments=1,"",IF(Sched_Pay+Extra_Pay<Beg_Bal,Sched_Pay+Extra_Pay,IF(Pay_Num<>"",Beg_Bal,""))) -> $502.44 | H139: $246.37 | I139: =IF(Pay_Num<>"",Beg_Bal*(Interest_Rate/VLOOKUP(Interval,LoanLookup[],5,FALSE)),"") -> $256.07 | J139: =IF(scheduled_no_payments=1,"",IF(AND(Pay_Num<>"",Sched_Pay+Extra_Pay<Beg_Bal),Beg_Bal-Princ,IF(Pay_Num<>"",0,""))) -> $122,665.52 | K139: =IF(scheduled_no_payments=1,"",SUM($I$14:$I139)) -> $35,972.43
B140: =IF(AND(Values_Entered,scheduled_no_payments<>1),B139+1,"") -> 127 | C140: =IF(Pay_Num<>"",DATE(YEAR(C139)+VLOOKUP(Interval,LoanLookup[],4,FALSE),MONTH(C139)+VLOOKUP(Interval,LoanLookup[],2,FALSE),DAY(C139)+VLOOKUP(Interval,LoanLookup[],3,FALSE)),"") -> 2028-04-06 | D140: $122,665.52 | E140: $402.44 | F140: =IF(scheduled_no_payments=1,"",IF(Sched_Pay+Scheduled_Extra_Payments<Beg_Bal,Scheduled_Extra_Payments,IF(AND(Pay_Num<>"",Beg_Bal-Sched_Pay>0),Beg_Bal-Sched_Pay,IF(Pay_Num<>"",0,"")))) -> $100.00 | G140: =IF(scheduled_no_payments=1,"",IF(Sched_Pay+Extra_Pay<Beg_Bal,Sched_Pay+Extra_Pay,IF(Pay_Num<>"",Beg_Bal,""))) -> $502.44 | H140: $246.88 | I140: =IF(Pay_Num<>"",Beg_Bal*(Interest_Rate/VLOOKUP(Interval,LoanLookup[],5,FALSE)),"") -> $255.55 | J140: =IF(scheduled_no_payments=1,"",IF(AND(Pay_Num<>"",Sched_Pay+Extra_Pay<Beg_Bal),Beg_Bal-Princ,IF(Pay_Num<>"",0,""))) -> $122,418.64 | K140: =IF(scheduled_no_payments=1,"",SUM($I$14:$I140)) -> $36,227.98
B141: =IF(AND(Values_Entered,scheduled_no_payments<>1),B140+1,"") -> 128 | C141: =IF(Pay_Num<>"",DATE(YEAR(C140)+VLOOKUP(Interval,LoanLookup[],4,FALSE),MONTH(C140)+VLOOKUP(Interval,LoanLookup[],2,FALSE),DAY(C140)+VLOOKUP(Interval,LoanLookup[],3,FALSE)),"") -> 2028-04-21 | D141: $122,418.64 | E141: $402.44 | F141: =IF(scheduled_no_payments=1,"",IF(Sched_Pay+Scheduled_Extra_Payments<Beg_Bal,Scheduled_Extra_Payments,IF(AND(Pay_Num<>"",Beg_Bal-Sched_Pay>0),Beg_Bal-Sched_Pay,IF(Pay_Num<>"",0,"")))) -> $100.00 | G141: =IF(scheduled_no_payments=1,"",IF(Sched_Pay+Extra_Pay<Beg_Bal,Sched_Pay+Extra_Pay,IF(Pay_Num<>"",Beg_Bal,""))) -> $502.44 | H141: $247.40 | I141: =IF(Pay_Num<>"",Beg_Bal*(Interest_Rate/VLOOKUP(Interval,LoanLookup[],5,FALSE)),"") -> $255.04 | J141: =IF(scheduled_no_payments=1,"",IF(AND(Pay_Num<>"",Sched_Pay+Extra_Pay<Beg_Bal),Beg_Bal-Princ,IF(Pay_Num<>"",0,""))) -> $122,171.24 | K141: =IF(scheduled_no_payments=1,"",SUM($I$14:$I141)) -> $36,483.02
B142: =IF(AND(Values_Entered,scheduled_no_payments<>1),B141+1,"") -> 129 | C142: =IF(Pay_Num<>"",DATE(YEAR(C141)+VLOOKUP(Interval,LoanLookup[],4,FALSE),MONTH(C141)+VLOOKUP(Interval,LoanLookup[],2,FALSE),DAY(C141)+VLOOKUP(Interval,LoanLookup[],3,FALSE)),"") -> 2028-05-06 | D142: $122,171.24 | E142: $402.44 | F142: =IF(scheduled_no_payments=1,"",IF(Sched_Pay+Scheduled_Extra_Payments<Beg_Bal,Scheduled_Extra_Payments,IF(AND(Pay_Num<>"",Beg_Bal-Sched_Pay>0),Beg_Bal-Sched_Pay,IF(Pay_Num<>"",0,"")))) -> $100.00 | G142: =IF(scheduled_no_payments=1,"",IF(Sched_Pay+Extra_Pay<Beg_Bal,Sched_Pay+Extra_Pay,IF(Pay_Num<>"",Beg_Bal,""))) -> $502.44 | H142: $247.91 | I142: =IF(Pay_Num<>"",Beg_Bal*(Interest_Rate/VLOOKUP(Interval,LoanLookup[],5,FALSE)),"") -> $254.52 | J142: =IF(scheduled_no_payments=1,"",IF(AND(Pay_Num<>"",Sched_Pay+Extra_Pay<Beg_Bal),Beg_Bal-Princ,IF(Pay_Num<>"",0,""))) -> $121,923.33 | K142: =IF(scheduled_no_payments=1,"",SUM($I$14:$I142)) -> $36,737.55
B143: =IF(AND(Values_Entered,scheduled_no_payments<>1),B142+1,"") -> 130 | C143: =IF(Pay_Num<>"",DATE(YEAR(C142)+VLOOKUP(Interval,LoanLookup[],4,FALSE),MONTH(C142)+VLOOKUP(Interval,LoanLookup[],2,FALSE),DAY(C142)+VLOOKUP(Interval,LoanLookup[],3,FALSE)),"") -> 2028-05-21 | D143: =IF(Pay_Num<>"",J142,"") -> $121,923.33 | E143: $402.44 | F143: =IF(scheduled_no_payments=1,"",IF(Sched_Pay+Scheduled_Extra_Payments<Beg_Bal,Scheduled_Extra_Payments,IF(AND(Pay_Num<>"",Beg_Bal-Sched_Pay>0),Beg_Bal-Sched_Pay,IF(Pay_Num<>"",0,"")))) -> $100.00 | G143: =IF(scheduled_no_payments=1,"",IF(Sched_Pay+Extra_Pay<Beg_Bal,Sched_Pay+Extra_Pay,IF(Pay_Num<>"",Beg_Bal,""))) -> $502.44 | H143: =IF(Pay_Num<>"",Total_Pay-Int,"") -> $248.43 | I143: =IF(Pay_Num<>"",Beg_Bal*(Interest_Rate/VLOOKUP(Interval,LoanLookup[],5,FALSE)),"") -> $254.01 | J143: =IF(scheduled_no_payments=1,"",IF(AND(Pay_Num<>"",Sched_Pay+Extra_Pay<Beg_Bal),Beg_Bal-Princ,IF(Pay_Num<>"",0,""))) -> $121,674.90 | K143: =IF(scheduled_no_payments=1,"",SUM($I$14:$I143)) -> $36,991.55
B144: =IF(AND(Values_Entered,scheduled_no_payments<>1),B143+1,"") -> 131 | C144: =IF(Pay_Num<>"",DATE(YEAR(C143)+VLOOKUP(Interval,LoanLookup[],4,FALSE),MONTH(C143)+VLOOKUP(Interval,LoanLookup[],2,FALSE),DAY(C143)+VLOOKUP(Interval,LoanLookup[],3,FALSE)),"") -> 2028-06-05 | D144: $121,674.90 | E144: =IF(Pay_Num<>"",Scheduled_Monthly_Payment,"") -> $402.44 | F144: =IF(scheduled_no_payments=1,"",IF(Sched_Pay+Scheduled_Extra_Payments<Beg_Bal,Scheduled_Extra_Payments,IF(AND(Pay_Num<>"",Beg_Bal-Sched_Pay>0),Beg_Bal-Sched_Pay,IF(Pay_Num<>"",0,"")))) -> $100.00 | G144: =IF(scheduled_no_payments=1,"",IF(Sched_Pay+Extra_Pay<Beg_Bal,Sched_Pay+Extra_Pay,IF(Pay_Num<>"",Beg_Bal,""))) -> $502.44 | H144: $248.95 | I144: =IF(Pay_Num<>"",Beg_Bal*(Interest_Rate/VLOOKUP(Interval,LoanLookup[],5,FALSE)),"") -> $253.49 | J144: =IF(scheduled_no_payments=1,"",IF(AND(Pay_Num<>"",Sched_Pay+Extra_Pay<Beg_Bal),Beg_Bal-Princ,IF(Pay_Num<>"",0,""))) -> $121,425.95 | K144: =IF(scheduled_no_payments=1,"",SUM($I$14:$I144)) -> $37,245.04
B145: =IF(AND(Values_Entered,scheduled_no_payments<>1),B144+1,"") -> 132 | C145: =IF(Pay_Num<>"",DATE(YEAR(C144)+VLOOKUP(Interval,LoanLookup[],4,FALSE),MONTH(C144)+VLOOKUP(Interval,LoanLookup[],2,FALSE),DAY(C144)+VLOOKUP(Interval,LoanLookup[],3,FALSE)),"") -> 2028-06-20 | D145: $121,425.95 | E145: $402.44 | F145: =IF(scheduled_no_payments=1,"",IF(Sched_Pay+Scheduled_Extra_Payments<Beg_Bal,Scheduled_Extra_Payments,IF(AND(Pay_Num<>"",Beg_Bal-Sched_Pay>0),Beg_Bal-Sched_Pay,IF(Pay_Num<>"",0,"")))) -> $100.00 | G145: =IF(scheduled_no_payments=1,"",IF(Sched_Pay+Extra_Pay<Beg_Bal,Sched_Pay+Extra_Pay,IF(Pay_Num<>"",Beg_Bal,""))) -> $502.44 | H145: $249.47 | I145: =IF(Pay_Num<>"",Beg_Bal*(Interest_Rate/VLOOKUP(Interval,LoanLookup[],5,FALSE)),"") -> $252.97 | J145: =IF(scheduled_no_payments=1,"",IF(AND(Pay_Num<>"",Sched_Pay+Extra_Pay<Beg_Bal),Beg_Bal-Princ,IF(Pay_Num<>"",0,""))) -> $121,176.49 | K145: =IF(scheduled_no_payments=1,"",SUM($I$14:$I145)) -> $37,498.01
B146: =IF(AND(Values_Entered,scheduled_no_payments<>1),B145+1,"") -> 133 | C146: =IF(Pay_Num<>"",DATE(YEAR(C145)+VLOOKUP(Interval,LoanLookup[],4,FALSE),MONTH(C145)+VLOOKUP(Interval,LoanLookup[],2,FALSE),DAY(C145)+VLOOKUP(Interval,LoanLookup[],3,FALSE)),"") -> 2028-07-05 | D146: $121,176.49 | E146: $402.44 | F146: =IF(scheduled_no_payments=1,"",IF(Sched_Pay+Scheduled_Extra_Payments<Beg_Bal,Scheduled_Extra_Payments,IF(AND(Pay_Num<>"",Beg_Bal-Sched_Pay>0),Beg_Bal-Sched_Pay,IF(Pay_Num<>"",0,"")))) -> $100.00 | G146: =IF(scheduled_no_payments=1,"",IF(Sched_Pay+Extra_Pay<Beg_Bal,Sched_Pay+Extra_Pay,IF(Pay_Num<>"",Beg_Bal,""))) -> $502.44 | H146: $249.98 | I146: =IF(Pay_Num<>"",Beg_Bal*(Interest_Rate/VLOOKUP(Interval,LoanLookup[],5,FALSE)),"") -> $252.45 | J146: =IF(scheduled_no_payments=1,"",IF(AND(Pay_Num<>"",Sched_Pay+Extra_Pay<Beg_Bal),Beg_Bal-Princ,IF(Pay_Num<>"",0,""))) -> $120,926.51 | K146: =IF(scheduled_no_payments=1,"",SUM($I$14:$I146)) -> $37,750.46
B147: =IF(AND(Values_Entered,scheduled_no_payments<>1),B146+1,"") -> 134 | C147: =IF(Pay_Num<>"",DATE(YEAR(C146)+VLOOKUP(Interval,LoanLookup[],4,FALSE),MONTH(C146)+VLOOKUP(Interval,LoanLookup[],2,FALSE),DAY(C146)+VLOOKUP(Interval,LoanLookup[],3,FALSE)),"") -> 2028-07-20 | D147: $120,926.51 | E147: $402.44 | F147: =IF(scheduled_no_payments=1,"",IF(Sched_Pay+Scheduled_Extra_Payments<Beg_Bal,Scheduled_Extra_Payments,IF(AND(Pay_Num<>"",Beg_Bal-Sched_Pay>0),Beg_Bal-Sched_Pay,IF(Pay_Num<>"",0,"")))) -> $100.00 | G147: =IF(scheduled_no_payments=1,"",IF(Sched_Pay+Extra_Pay<Beg_Bal,Sched_Pay+Extra_Pay,IF(Pay_Num<>"",Beg_Bal,""))) -> $502.44 | H147: $250.51 | I147: =IF(Pay_Num<>"",Beg_Bal*(Interest_Rate/VLOOKUP(Interval,LoanLookup[],5,FALSE)),"") -> $251.93 | J147: =IF(scheduled_no_payments=1,"",IF(AND(Pay_Num<>"",Sched_Pay+Extra_Pay<Beg_Bal),Beg_Bal-Princ,IF(Pay_Num<>"",0,""))) -> $120,676.00 | K147: =IF(scheduled_no_payments=1,"",SUM($I$14:$I147)) -> $38,002.39
B148: =IF(AND(Values_Entered,scheduled_no_payments<>1),B147+1,"") -> 135 | C148: =IF(Pay_Num<>"",DATE(YEAR(C147)+VLOOKUP(Interval,LoanLookup[],4,FALSE),MONTH(C147)+VLOOKUP(Interval,LoanLookup[],2,FALSE),DAY(C147)+VLOOKUP(Interval,LoanLookup[],3,FALSE)),"") -> 2028-08-04 | D148: $120,676.00 | E148: $402.44 | F148: =IF(scheduled_no_payments=1,"",IF(Sched_Pay+Scheduled_Extra_Payments<Beg_Bal,Scheduled_Extra_Payments,IF(AND(Pay_Num<>"",Beg_Bal-Sched_Pay>0),Beg_Bal-Sched_Pay,IF(Pay_Num<>"",0,"")))) -> $100.00 | G148: =IF(scheduled_no_payments=1,"",IF(Sched_Pay+Extra_Pay<Beg_Bal,Sched_Pay+Extra_Pay,IF(Pay_Num<>"",Beg_Bal,""))) -> $502.44 | H148: $251.03 | I148: =IF(Pay_Num<>"",Beg_Bal*(Interest_Rate/VLOOKUP(Interval,LoanLookup[],5,FALSE)),"") -> $251.41 | J148: =IF(scheduled_no_payments=1,"",IF(AND(Pay_Num<>"",Sched_Pay+Extra_Pay<Beg_Bal),Beg_Bal-Princ,IF(Pay_Num<>"",0,""))) -> $120,424.97 | K148: =IF(scheduled_no_payments=1,"",SUM($I$14:$I148)) -> $38,253.80
B149: =IF(AND(Values_Entered,scheduled_no_payments<>1),B148+1,"") -> 136 | C149: =IF(Pay_Num<>"",DATE(YEAR(C148)+VLOOKUP(Interval,LoanLookup[],4,FALSE),MONTH(C148)+VLOOKUP(Interval,LoanLookup[],2,FALSE),DAY(C148)+VLOOKUP(Interval,LoanLookup[],3,FALSE)),"") -> 2028-08-19 | D149: $120,424.97 | E149: $402.44 | F149: =IF(scheduled_no_payments=1,"",IF(Sched_Pay+Scheduled_Extra_Payments<Beg_Bal,Scheduled_Extra_Payments,IF(AND(Pay_Num<>"",Beg_Bal-Sched_Pay>0),Beg_Bal-Sched_Pay,IF(Pay_Num<>"",0,"")))) -> $100.00 | G149: =IF(scheduled_no_payments=1,"",IF(Sched_Pay+Extra_Pay<Beg_Bal,Sched_Pay+Extra_Pay,IF(Pay_Num<>"",Beg_Bal,""))) -> $502.44 | H149: $251.55 | I149: =IF(Pay_Num<>"",Beg_Bal*(Interest_Rate/VLOOKUP(Interval,LoanLookup[],5,FALSE)),"") -> $250.89 | J149: =IF(scheduled_no_payments=1,"",IF(AND(Pay_Num<>"",Sched_Pay+Extra_Pay<Beg_Bal),Beg_Bal-Princ,IF(Pay_Num<>"",0,""))) -> $120,173.42 | K149: =IF(scheduled_no_payments=1,"",SUM($I$14:$I149)) -> $38,504.69
B150: =IF(AND(Values_Entered,scheduled_no_payments<>1),B149+1,"") -> 137 | C150: =IF(Pay_Num<>"",DATE(YEAR(C149)+VLOOKUP(Interval,LoanLookup[],4,FALSE),MONTH(C149)+VLOOKUP(Interval,LoanLookup[],2,FALSE),DAY(C149)+VLOOKUP(Interval,LoanLookup[],3,FALSE)),"") -> 2028-09-03 | D150: $120,173.42 | E150: $402.44 | F150: =IF(scheduled_no_payments=1,"",IF(Sched_Pay+Scheduled_Extra_Payments<Beg_Bal,Scheduled_Extra_Payments,IF(AND(Pay_Num<>"",Beg_Bal-Sched_Pay>0),Beg_Bal-Sched_Pay,IF(Pay_Num<>"",0,"")))) -> $100.00 | G150: =IF(scheduled_no_payments=1,"",IF(Sched_Pay+Extra_Pay<Beg_Bal,Sched_Pay+Extra_Pay,IF(Pay_Num<>"",Beg_Bal,""))) -> $502.44 | H150: $252.07 | I150: =IF(Pay_Num<>"",Beg_Bal*(Interest_Rate/VLOOKUP(Interval,LoanLookup[],5,FALSE)),"") -> $250.36 | J150: =IF(scheduled_no_payments=1,"",IF(AND(Pay_Num<>"",Sched_Pay+Extra_Pay<Beg_Bal),Beg_Bal-Princ,IF(Pay_Num<>"",0,""))) -> $119,921.35 | K150: =IF(scheduled_no_payments=1,"",SUM($I$14:$I150)) -> $38,755.05
B151: =IF(AND(Values_Entered,scheduled_no_payments<>1),B150+1,"") -> 138 | C151: =IF(Pay_Num<>"",DATE(YEAR(C150)+VLOOKUP(Interval,LoanLookup[],4,FALSE),MONTH(C150)+VLOOKUP(Interval,LoanLookup[],2,FALSE),DAY(C150)+VLOOKUP(Interval,LoanLookup[],3,FALSE)),"") -> 2028-09-18 | D151: $119,921.35 | E151: $402.44 | F151: =IF(scheduled_no_payments=1,"",IF(Sched_Pay+Scheduled_Extra_Payments<Beg_Bal,Scheduled_Extra_Payments,IF(AND(Pay_Num<>"",Beg_Bal-Sched_Pay>0),Beg_Bal-Sched_Pay,IF(Pay_Num<>"",0,"")))) -> $100.00 | G151: =IF(scheduled_no_payments=1,"",IF(Sched_Pay+Extra_Pay<Beg_Bal,Sched_Pay+Extra_Pay,IF(Pay_Num<>"",Beg_Bal,""))) -> $502.44 | H151: $252.60 | I151: =IF(Pay_Num<>"",Beg_Bal*(Interest_Rate/VLOOKUP(Interval,LoanLookup[],5,FALSE)),"") -> $249.84 | J151: =IF(scheduled_no_payments=1,"",IF(AND(Pay_Num<>"",Sched_Pay+Extra_Pay<Beg_Bal),Beg_Bal-Princ,IF(Pay_Num<>"",0,""))) -> $119,668.75 | K151: =IF(scheduled_no_payments=1,"",SUM($I$14:$I151)) -> $39,004.89
B152: =IF(AND(Values_Entered,scheduled_no_payments<>1),B151+1,"") -> 139 | C152: =IF(Pay_Num<>"",DATE(YEAR(C151)+VLOOKUP(Interval,LoanLookup[],4,FALSE),MONTH(C151)+VLOOKUP(Interval,LoanLookup[],2,FALSE),DAY(C151)+VLOOKUP(Interval,LoanLookup[],3,FALSE)),"") -> 2028-10-03 | D152: $119,668.75 | E152: $402.44 | F152: =IF(scheduled_no_payments=1,"",IF(Sched_Pay+Scheduled_Extra_Payments<Beg_Bal,Scheduled_Extra_Payments,IF(AND(Pay_Num<>"",Beg_Bal-Sched_Pay>0),Beg_Bal-Sched_Pay,IF(Pay_Num<>"",0,"")))) -> $100.00 | G152: =IF(scheduled_no_payments=1,"",IF(Sched_Pay+Extra_Pay<Beg_Bal,Sched_Pay+Extra_Pay,IF(Pay_Num<>"",Beg_Bal,""))) -> $502.44 | H152: $253.13 | I152: =IF(Pay_Num<>"",Beg_Bal*(Interest_Rate/VLOOKUP(Interval,LoanLookup[],5,FALSE)),"") -> $249.31 | J152: =IF(scheduled_no_payments=1,"",IF(AND(Pay_Num<>"",Sched_Pay+Extra_Pay<Beg_Bal),Beg_Bal-Princ,IF(Pay_Num<>"",0,""))) -> $119,415.62 | K152: =IF(scheduled_no_payments=1,"",SUM($I$14:$I152)) -> $39,254.20
B153: =IF(AND(Values_Entered,scheduled_no_payments<>1),B152+1,"") -> 140 | C153: =IF(Pay_Num<>"",DATE(YEAR(C152)+VLOOKUP(Interval,LoanLookup[],4,FALSE),MONTH(C152)+VLOOKUP(Interval,LoanLookup[],2,FALSE),DAY(C152)+VLOOKUP(Interval,LoanLookup[],3,FALSE)),"") -> 2028-10-18 | D153: $119,415.62 | E153: $402.44 | F153: =IF(scheduled_no_payments=1,"",IF(Sched_Pay+Scheduled_Extra_Payments<Beg_Bal,Scheduled_Extra_Payments,IF(AND(Pay_Num<>"",Beg_Bal-Sched_Pay>0),Beg_Bal-Sched_Pay,IF(Pay_Num<>"",0,"")))) -> $100.00 | G153: =IF(scheduled_no_payments=1,"",IF(Sched_Pay+Extra_Pay<Beg_Bal,Sched_Pay+Extra_Pay,IF(Pay_Num<>"",Beg_Bal,""))) -> $502.44 | H153: $253.65 | I153: =IF(Pay_Num<>"",Beg_Bal*(Interest_Rate/VLOOKUP(Interval,LoanLookup[],5,FALSE)),"") -> $248.78 | J153: =IF(scheduled_no_payments=1,"",IF(AND(Pay_Num<>"",Sched_Pay+Extra_Pay<Beg_Bal),Beg_Bal-Princ,IF(Pay_Num<>"",0,""))) -> $119,161.97 | K153: =IF(scheduled_no_payments=1,"",SUM($I$14:$I153)) -> $39,502.98
B154: =IF(AND(Values_Entered,scheduled_no_payments<>1),B153+1,"") -> 141 | C154: =IF(Pay_Num<>"",DATE(YEAR(C153)+VLOOKUP(Interval,LoanLookup[],4,FALSE),MONTH(C153)+VLOOKUP(Interval,LoanLookup[],2,FALSE),DAY(C153)+VLOOKUP(Interval,LoanLookup[],3,FALSE)),"") -> 2028-11-02 | D154: $119,161.97 | E154: $402.44 | F154: =IF(scheduled_no_payments=1,"",IF(Sched_Pay+Scheduled_Extra_Payments<Beg_Bal,Scheduled_Extra_Payments,IF(AND(Pay_Num<>"",Beg_Bal-Sched_Pay>0),Beg_Bal-Sched_Pay,IF(Pay_Num<>"",0,"")))) -> $100.00 | G154: =IF(scheduled_no_payments=1,"",IF(Sched_Pay+Extra_Pay<Beg_Bal,Sched_Pay+Extra_Pay,IF(Pay_Num<>"",Beg_Bal,""))) -> $502.44 | H154: $254.18 | I154: =IF(Pay_Num<>"",Beg_Bal*(Interest_Rate/VLOOKUP(Interval,LoanLookup[],5,FALSE)),"") -> $248.25 | J154: =IF(scheduled_no_payments=1,"",IF(AND(Pay_Num<>"",Sched_Pay+Extra_Pay<Beg_Bal),Beg_Bal-Princ,IF(Pay_Num<>"",0,""))) -> $118,907.79 | K154: =IF(scheduled_no_payments=1,"",SUM($I$14:$I154)) -> $39,751.23
B155: =IF(AND(Values_Entered,scheduled_no_payments<>1),B154+1,"") -> 142 | C155: =IF(Pay_Num<>"",DATE(YEAR(C154)+VLOOKUP(Interval,LoanLookup[],4,FALSE),MONTH(C154)+VLOOKUP(Interval,LoanLookup[],2,FALSE),DAY(C154)+VLOOKUP(Interval,LoanLookup[],3,FALSE)),"") -> 2028-11-17 | D155: $118,907.79 | E155: $402.44 | F155: =IF(scheduled_no_payments=1,"",IF(Sched_Pay+Scheduled_Extra_Payments<Beg_Bal,Scheduled_Extra_Payments,IF(AND(Pay_Num<>"",Beg_Bal-Sched_Pay>0),Beg_Bal-Sched_Pay,IF(Pay_Num<>"",0,"")))) -> $100.00 | G155: =IF(scheduled_no_payments=1,"",IF(Sched_Pay+Extra_Pay<Beg_Bal,Sched_Pay+Extra_Pay,IF(Pay_Num<>"",Beg_Bal,""))) -> $502.44 | H155: $254.71 | I155: =IF(Pay_Num<>"",Beg_Bal*(Interest_Rate/VLOOKUP(Interval,LoanLookup[],5,FALSE)),"") -> $247.72 | J155: =IF(scheduled_no_payments=1,"",IF(AND(Pay_Num<>"",Sched_Pay+Extra_Pay<Beg_Bal),Beg_Bal-Princ,IF(Pay_Num<>"",0,""))) -> $118,653.08 | K155: =IF(scheduled_no_payments=1,"",SUM($I$14:$I155)) -> $39,998.96
B156: =IF(AND(Values_Entered,scheduled_no_payments<>1),B155+1,"") -> 143 | C156: =IF(Pay_Num<>"",DATE(YEAR(C155)+VLOOKUP(Interval,LoanLookup[],4,FALSE),MONTH(C155)+VLOOKUP(Interval,LoanLookup[],2,FALSE),DAY(C155)+VLOOKUP(Interval,LoanLookup[],3,FALSE)),"") -> 2028-12-02 | D156: $118,653.08 | E156: $402.44 | F156: =IF(scheduled_no_payments=1,"",IF(Sched_Pay+Scheduled_Extra_Payments<Beg_Bal,Scheduled_Extra_Payments,IF(AND(Pay_Num<>"",Beg_Bal-Sched_Pay>0),Beg_Bal-Sched_Pay,IF(Pay_Num<>"",0,"")))) -> $100.00 | G156: =IF(scheduled_no_payments=1,"",IF(Sched_Pay+Extra_Pay<Beg_Bal,Sched_Pay+Extra_Pay,IF(Pay_Num<>"",Beg_Bal,""))) -> $502.44 | H156: $255.24 | I156: =IF(Pay_Num<>"",Beg_Bal*(Interest_Rate/VLOOKUP(Interval,LoanLookup[],5,FALSE)),"") -> $247.19 | J156: =IF(scheduled_no_payments=1,"",IF(AND(Pay_Num<>"",Sched_Pay+Extra_Pay<Beg_Bal),Beg_Bal-Princ,IF(Pay_Num<>"",0,""))) -> $118,397.83 | K156: =IF(scheduled_no_payments=1,"",SUM($I$14:$I156)) -> $40,246.15
B157: =IF(AND(Values_Entered,scheduled_no_payments<>1),B156+1,"") -> 144 | C157: =IF(Pay_Num<>"",DATE(YEAR(C156)+VLOOKUP(Interval,LoanLookup[],4,FALSE),MONTH(C156)+VLOOKUP(Interval,LoanLookup[],2,FALSE),DAY(C156)+VLOOKUP(Interval,LoanLookup[],3,FALSE)),"") -> 2028-12-17 | D157: $118,397.83 | E157: $402.44 | F157: =IF(scheduled_no_payments=1,"",IF(Sched_Pay+Scheduled_Extra_Payments<Beg_Bal,Scheduled_Extra_Payments,IF(AND(Pay_Num<>"",Beg_Bal-Sched_Pay>0),Beg_Bal-Sched_Pay,IF(Pay_Num<>"",0,"")))) -> $100.00 | G157: =IF(scheduled_no_payments=1,"",IF(Sched_Pay+Extra_Pay<Beg_Bal,Sched_Pay+Extra_Pay,IF(Pay_Num<>"",Beg_Bal,""))) -> $502.44 | H157: $255.77 | I157: =IF(Pay_Num<>"",Beg_Bal*(Interest_Rate/VLOOKUP(Interval,LoanLookup[],5,FALSE)),"") -> $246.66 | J157: =IF(scheduled_no_payments=1,"",IF(AND(Pay_Num<>"",Sched_Pay+Extra_Pay<Beg_Bal),Beg_Bal-Princ,IF(Pay_Num<>"",0,""))) -> $118,142.06 | K157: =IF(scheduled_no_payments=1,"",SUM($I$14:$I157)) -> $40,492.81
B158: =IF(AND(Values_Entered,scheduled_no_payments<>1),B157+1,"") -> 145 | C158: =IF(Pay_Num<>"",DATE(YEAR(C157)+VLOOKUP(Interval,LoanLookup[],4,FALSE),MONTH(C157)+VLOOKUP(Interval,LoanLookup[],2,FALSE),DAY(C157)+VLOOKUP(Interval,LoanLookup[],3,FALSE)),"") -> 2029-01-01 | D158: $118,142.06 | E158: $402.44 | F158: =IF(scheduled_no_payments=1,"",IF(Sched_Pay+Scheduled_Extra_Payments<Beg_Bal,Scheduled_Extra_Payments,IF(AND(Pay_Num<>"",Beg_Bal-Sched_Pay>0),Beg_Bal-Sched_Pay,IF(Pay_Num<>"",0,"")))) -> $100.00 | G158: =IF(scheduled_no_payments=1,"",IF(Sched_Pay+Extra_Pay<Beg_Bal,Sched_Pay+Extra_Pay,IF(Pay_Num<>"",Beg_Bal,""))) -> $502.44 | H158: $256.31 | I158: =IF(Pay_Num<>"",Beg_Bal*(Interest_Rate/VLOOKUP(Interval,LoanLookup[],5,FALSE)),"") -> $246.13 | J158: =IF(scheduled_no_payments=1,"",IF(AND(Pay_Num<>"",Sched_Pay+Extra_Pay<Beg_Bal),Beg_Bal-Princ,IF(Pay_Num<>"",0,""))) -> $117,885.75 | K158: =IF(scheduled_no_payments=1,"",SUM($I$14:$I158)) -> $40,738.94
B159: =IF(AND(Values_Entered,scheduled_no_payments<>1),B158+1,"") -> 146 | C159: =IF(Pay_Num<>"",DATE(YEAR(C158)+VLOOKUP(Interval,LoanLookup[],4,FALSE),MONTH(C158)+VLOOKUP(Interval,LoanLookup[],2,FALSE),DAY(C158)+VLOOKUP(Interval,LoanLookup[],3,FALSE)),"") -> 2029-01-16 | D159: $117,885.75 | E159: $402.44 | F159: =IF(scheduled_no_payments=1,"",IF(Sched_Pay+Scheduled_Extra_Payments<Beg_Bal,Scheduled_Extra_Payments,IF(AND(Pay_Num<>"",Beg_Bal-Sched_Pay>0),Beg_Bal-Sched_Pay,IF(Pay_Num<>"",0,"")))) -> $100.00 | G159: =IF(scheduled_no_payments=1,"",IF(Sched_Pay+Extra_Pay<Beg_Bal,Sched_Pay+Extra_Pay,IF(Pay_Num<>"",Beg_Bal,""))) -> $502.44 | H159: $256.84 | I159: =IF(Pay_Num<>"",Beg_Bal*(Interest_Rate/VLOOKUP(Interval,LoanLookup[],5,FALSE)),"") -> $245.60 | J159: =IF(scheduled_no_payments=1,"",IF(AND(Pay_Num<>"",Sched_Pay+Extra_Pay<Beg_Bal),Beg_Bal-Princ,IF(Pay_Num<>"",0,""))) -> $117,628.91 | K159: =IF(scheduled_no_payments=1,"",SUM($I$14:$I159)) -> $40,984.54
B160: =IF(AND(Values_Entered,scheduled_no_payments<>1),B159+1,"") -> 147 | C160: =IF(Pay_Num<>"",DATE(YEAR(C159)+VLOOKUP(Interval,LoanLookup[],4,FALSE),MONTH(C159)+VLOOKUP(Interval,LoanLookup[],2,FALSE),DAY(C159)+VLOOKUP(Interval,LoanLookup[],3,FALSE)),"") -> 2029-01-31 | D160: $117,628.91 | E160: $402.44 | F160: =IF(scheduled_no_payments=1,"",IF(Sched_Pay+Scheduled_Extra_Payments<Beg_Bal,Scheduled_Extra_Payments,IF(AND(Pay_Num<>"",Beg_Bal-Sched_Pay>0),Beg_Bal-Sched_Pay,IF(Pay_Num<>"",0,"")))) -> $100.00 | G160: =IF(scheduled_no_payments=1,"",IF(Sched_Pay+Extra_Pay<Beg_Bal,Sched_Pay+Extra_Pay,IF(Pay_Num<>"",Beg_Bal,""))) -> $502.44 | H160: $257.38 | I160: =IF(Pay_Num<>"",Beg_Bal*(Interest_Rate/VLOOKUP(Interval,LoanLookup[],5,FALSE)),"") -> $245.06 | J160: =IF(scheduled_no_payments=1,"",IF(AND(Pay_Num<>"",Sched_Pay+Extra_Pay<Beg_Bal),Beg_Bal-Princ,IF(Pay_Num<>"",0,""))) -> $117,371.54 | K160: =IF(scheduled_no_payments=1,"",SUM($I$14:$I160)) -> $41,229.60
B161: =IF(AND(Values_Entered,scheduled_no_payments<>1),B160+1,"") -> 148 | C161: =IF(Pay_Num<>"",DATE(YEAR(C160)+VLOOKUP(Interval,LoanLookup[],4,FALSE),MONTH(C160)+VLOOKUP(Interval,LoanLookup[],2,FALSE),DAY(C160)+VLOOKUP(Interval,LoanLookup[],3,FALSE)),"") -> 2029-02-15 | D161: $117,371.54 | E161: $402.44 | F161: =IF(scheduled_no_payments=1,"",IF(Sched_Pay+Scheduled_Extra_Payments<Beg_Bal,Scheduled_Extra_Payments,IF(AND(Pay_Num<>"",Beg_Bal-Sched_Pay>0),Beg_Bal-Sched_Pay,IF(Pay_Num<>"",0,"")))) -> $100.00 | G161: =IF(scheduled_no_payments=1,"",IF(Sched_Pay+Extra_Pay<Beg_Bal,Sched_Pay+Extra_Pay,IF(Pay_Num<>"",Beg_Bal,""))) -> $502.44 | H161: $257.91 | I161: =IF(Pay_Num<>"",Beg_Bal*(Interest_Rate/VLOOKUP(Interval,LoanLookup[],5,FALSE)),"") -> $244.52 | J161: =IF(scheduled_no_payments=1,"",IF(AND(Pay_Num<>"",Sched_Pay+Extra_Pay<Beg_Bal),Beg_Bal-Princ,IF(Pay_Num<>"",0,""))) -> $117,113.63 | K161: =IF(scheduled_no_payments=1,"",SUM($I$14:$I161)) -> $41,474.12
B162: =IF(AND(Values_Entered,scheduled_no_payments<>1),B161+1,"") -> 149 | C162: =IF(Pay_Num<>"",DATE(YEAR(C161)+VLOOKUP(Interval,LoanLookup[],4,FALSE),MONTH(C161)+VLOOKUP(Interval,LoanLookup[],2,FALSE),DAY(C161)+VLOOKUP(Interval,LoanLookup[],3,FALSE)),"") -> 2029-03-02 | D162: $117,113.63 | E162: $402.44 | F162: =IF(scheduled_no_payments=1,"",IF(Sched_Pay+Scheduled_Extra_Payments<Beg_Bal,Scheduled_Extra_Payments,IF(AND(Pay_Num<>"",Beg_Bal-Sched_Pay>0),Beg_Bal-Sched_Pay,IF(Pay_Num<>"",0,"")))) -> $100.00 | G162: =IF(scheduled_no_payments=1,"",IF(Sched_Pay+Extra_Pay<Beg_Bal,Sched_Pay+Extra_Pay,IF(Pay_Num<>"",Beg_Bal,""))) -> $502.44 | H162: $258.45 | I162: =IF(Pay_Num<>"",Beg_Bal*(Interest_Rate/VLOOKUP(Interval,LoanLookup[],5,FALSE)),"") -> $243.99 | J162: =IF(scheduled_no_payments=1,"",IF(AND(Pay_Num<>"",Sched_Pay+Extra_Pay<Beg_Bal),Beg_Bal-Princ,IF(Pay_Num<>"",0,""))) -> $116,855.18 | K162: =IF(scheduled_no_payments=1,"",SUM($I$14:$I162)) -> $41,718.11
B163: =IF(AND(Values_Entered,scheduled_no_payments<>1),B162+1,"") -> 150 | C163: =IF(Pay_Num<>"",DATE(YEAR(C162)+VLOOKUP(Interval,LoanLookup[],4,FALSE),MONTH(C162)+VLOOKUP(Interval,LoanLookup[],2,FALSE),DAY(C162)+VLOOKUP(Interval,LoanLookup[],3,FALSE)),"") -> 2029-03-17 | D163: $116,855.18 | E163: $402.44 | F163: =IF(scheduled_no_payments=1,"",IF(Sched_Pay+Scheduled_Extra_Payments<Beg_Bal,Scheduled_Extra_Payments,IF(AND(Pay_Num<>"",Beg_Bal-Sched_Pay>0),Beg_Bal-Sched_Pay,IF(Pay_Num<>"",0,"")))) -> $100.00 | G163: =IF(scheduled_no_payments=1,"",IF(Sched_Pay+Extra_Pay<Beg_Bal,Sched_Pay+Extra_Pay,IF(Pay_Num<>"",Beg_Bal,""))) -> $502.44 | H163: $258.99 | I163: =IF(Pay_Num<>"",Beg_Bal*(Interest_Rate/VLOOKUP(Interval,LoanLookup[],5,FALSE)),"") -> $243.45 | J163: =IF(scheduled_no_payments=1,"",IF(AND(Pay_Num<>"",Sched_Pay+Extra_Pay<Beg_Bal),Beg_Bal-Princ,IF(Pay_Num<>"",0,""))) -> $116,596.19 | K163: =IF(scheduled_no_payments=1,"",SUM($I$14:$I163)) -> $41,961.56
B164: =IF(AND(Values_Entered,scheduled_no_payments<>1),B163+1,"") -> 151 | C164: =IF(Pay_Num<>"",DATE(YEAR(C163)+VLOOKUP(Interval,LoanLookup[],4,FALSE),MONTH(C163)+VLOOKUP(Interval,LoanLookup[],2,FALSE),DAY(C163)+VLOOKUP(Interval,LoanLookup[],3,FALSE)),"") -> 2029-04-01 | D164: $116,596.19 | E164: $402.44 | F164: =IF(scheduled_no_payments=1,"",IF(Sched_Pay+Scheduled_Extra_Payments<Beg_Bal,Scheduled_Extra_Payments,IF(AND(Pay_Num<>"",Beg_Bal-Sched_Pay>0),Beg_Bal-Sched_Pay,IF(Pay_Num<>"",0,"")))) -> $100.00 | G164: =IF(scheduled_no_payments=1,"",IF(Sched_Pay+Extra_Pay<Beg_Bal,Sched_Pay+Extra_Pay,IF(Pay_Num<>"",Beg_Bal,""))) -> $502.44 | H164: $259.53 | I164: =IF(Pay_Num<>"",Beg_Bal*(Interest_Rate/VLOOKUP(Interval,LoanLookup[],5,FALSE)),"") -> $242.91 | J164: =IF(scheduled_no_payments=1,"",IF(AND(Pay_Num<>"",Sched_Pay+Extra_Pay<Beg_Bal),Beg_Bal-Princ,IF(Pay_Num<>"",0,""))) -> $116,336.66 | K164: =IF(scheduled_no_payments=1,"",SUM($I$14:$I164)) -> $42,204.46
B165: =IF(AND(Values_Entered,scheduled_no_payments<>1),B164+1,"") -> 152 | C165: =IF(Pay_Num<>"",DATE(YEAR(C164)+VLOOKUP(Interval,LoanLookup[],4,FALSE),MONTH(C164)+VLOOKUP(Interval,LoanLookup[],2,FALSE),DAY(C164)+VLOOKUP(Interval,LoanLookup[],3,FALSE)),"") -> 2029-04-16 | D165: $116,336.66 | E165: $402.44 | F165: =IF(scheduled_no_payments=1,"",IF(Sched_Pay+Scheduled_Extra_Payments<Beg_Bal,Scheduled_Extra_Payments,IF(AND(Pay_Num<>"",Beg_Bal-Sched_Pay>0),Beg_Bal-Sched_Pay,IF(Pay_Num<>"",0,"")))) -> $100.00 | G165: =IF(scheduled_no_payments=1,"",IF(Sched_Pay+Extra_Pay<Beg_Bal,Sched_Pay+Extra_Pay,IF(Pay_Num<>"",Beg_Bal,""))) -> $502.44 | H165: $260.07 | I165: =IF(Pay_Num<>"",Beg_Bal*(Interest_Rate/VLOOKUP(Interval,LoanLookup[],5,FALSE)),"") -> $242.37 | J165: =IF(scheduled_no_payments=1,"",IF(AND(Pay_Num<>"",Sched_Pay+Extra_Pay<Beg_Bal),Beg_Bal-Princ,IF(Pay_Num<>"",0,""))) -> $116,076.59 | K165: =IF(scheduled_no_payments=1,"",SUM($I$14:$I165)) -> $42,446.83
B166: =IF(AND(Values_Entered,scheduled_no_payments<>1),B165+1,"") -> 153 | C166: =IF(Pay_Num<>"",DATE(YEAR(C165)+VLOOKUP(Interval,LoanLookup[],4,FALSE),MONTH(C165)+VLOOKUP(Interval,LoanLookup[],2,FALSE),DAY(C165)+VLOOKUP(Interval,LoanLookup[],3,FALSE)),"") -> 2029-05-01 | D166: $116,076.59 | E166: $402.44 | F166: =IF(scheduled_no_payments=1,"",IF(Sched_Pay+Scheduled_Extra_Payments<Beg_Bal,Scheduled_Extra_Payments,IF(AND(Pay_Num<>"",Beg_Bal-Sched_Pay>0),Beg_Bal-Sched_Pay,IF(Pay_Num<>"",0,"")))) -> $100.00 | G166: =IF(scheduled_no_payments=1,"",IF(Sched_Pay+Extra_Pay<Beg_Bal,Sched_Pay+Extra_Pay,IF(Pay_Num<>"",Beg_Bal,""))) -> $502.44 | H166: $260.61 | I166: =IF(Pay_Num<>"",Beg_Bal*(Interest_Rate/VLOOKUP(Interval,LoanLookup[],5,FALSE)),"") -> $241.83 | J166: =IF(scheduled_no_payments=1,"",IF(AND(Pay_Num<>"",Sched_Pay+Extra_Pay<Beg_Bal),Beg_Bal-Princ,IF(Pay_Num<>"",0,""))) -> $115,815.98 | K166: =IF(scheduled_no_payments=1,"",SUM($I$14:$I166)) -> $42,688.66
B167: =IF(AND(Values_Entered,scheduled_no_payments<>1),B166+1,"") -> 154 | C167: =IF(Pay_Num<>"",DATE(YEAR(C166)+VLOOKUP(Interval,LoanLookup[],4,FALSE),MONTH(C166)+VLOOKUP(Interval,LoanLookup[],2,FALSE),DAY(C166)+VLOOKUP(Interval,LoanLookup[],3,FALSE)),"") -> 2029-05-16 | D167: $115,815.98 | E167: $402.44 | F167: =IF(scheduled_no_payments=1,"",IF(Sched_Pay+Scheduled_Extra_Payments<Beg_Bal,Scheduled_Extra_Payments,IF(AND(Pay_Num<>"",Beg_Bal-Sched_Pay>0),Beg_Bal-Sched_Pay,IF(Pay_Num<>"",0,"")))) -> $100.00 | G167: =IF(scheduled_no_payments=1,"",IF(Sched_Pay+Extra_Pay<Beg_Bal,Sched_Pay+Extra_Pay,IF(Pay_Num<>"",Beg_Bal,""))) -> $502.44 | H167: $261.15 | I167: =IF(Pay_Num<>"",Beg_Bal*(Interest_Rate/VLOOKUP(Interval,LoanLookup[],5,FALSE)),"") -> $241.28 | J167: =IF(scheduled_no_payments=1,"",IF(AND(Pay_Num<>"",Sched_Pay+Extra_Pay<Beg_Bal),Beg_Bal-Princ,IF(Pay_Num<>"",0,""))) -> $115,554.83 | K167: =IF(scheduled_no_payments=1,"",SUM($I$14:$I167)) -> $42,929.94
B168: =IF(AND(Values_Entered,scheduled_no_payments<>1),B167+1,"") -> 155 | C168: =IF(Pay_Num<>"",DATE(YEAR(C167)+VLOOKUP(Interval,LoanLookup[],4,FALSE),MONTH(C167)+VLOOKUP(Interval,LoanLookup[],2,FALSE),DAY(C167)+VLOOKUP(Interval,LoanLookup[],3,FALSE)),"") -> 2029-05-31 | D168: $115,554.83 | E168: $402.44 | F168: =IF(scheduled_no_payments=1,"",IF(Sched_Pay+Scheduled_Extra_Payments<Beg_Bal,Scheduled_Extra_Payments,IF(AND(Pay_Num<>"",Beg_Bal-Sched_Pay>0),Beg_Bal-Sched_Pay,IF(Pay_Num<>"",0,"")))) -> $100.00 | G168: =IF(scheduled_no_payments=1,"",IF(Sched_Pay+Extra_Pay<Beg_Bal,Sched_Pay+Extra_Pay,IF(Pay_Num<>"",Beg_Bal,""))) -> $502.44 | H168: $261.70 | I168: =IF(Pay_Num<>"",Beg_Bal*(Interest_Rate/VLOOKUP(Interval,LoanLookup[],5,FALSE)),"") -> $240.74 | J168: =IF(scheduled_no_payments=1,"",IF(AND(Pay_Num<>"",Sched_Pay+Extra_Pay<Beg_Bal),Beg_Bal-Princ,IF(Pay_Num<>"",0,""))) -> $115,293.14 | K168: =IF(scheduled_no_payments=1,"",SUM($I$14:$I168)) -> $43,170.68
B169: =IF(AND(Values_Entered,scheduled_no_payments<>1),B168+1,"") -> 156 | C169: =IF(Pay_Num<>"",DATE(YEAR(C168)+VLOOKUP(Interval,LoanLookup[],4,FALSE),MONTH(C168)+VLOOKUP(Interval,LoanLookup[],2,FALSE),DAY(C168)+VLOOKUP(Interval,LoanLookup[],3,FALSE)),"") -> 2029-06-15 | D169: $115,293.14 | E169: $402.44 | F169: =IF(scheduled_no_payments=1,"",IF(Sched_Pay+Scheduled_Extra_Payments<Beg_Bal,Scheduled_Extra_Payments,IF(AND(Pay_Num<>"",Beg_Bal-Sched_Pay>0),Beg_Bal-Sched_Pay,IF(Pay_Num<>"",0,"")))) -> $100.00 | G169: =IF(scheduled_no_payments=1,"",IF(Sched_Pay+Extra_Pay<Beg_Bal,Sched_Pay+Extra_Pay,IF(Pay_Num<>"",Beg_Bal,""))) -> $502.44 | H169: $262.24 | I169: =IF(Pay_Num<>"",Beg_Bal*(Interest_Rate/VLOOKUP(Interval,LoanLookup[],5,FALSE)),"") -> $240.19 | J169: =IF(scheduled_no_payments=1,"",IF(AND(Pay_Num<>"",Sched_Pay+Extra_Pay<Beg_Bal),Beg_Bal-Princ,IF(Pay_Num<>"",0,""))) -> $115,030.89 | K169: =IF(scheduled_no_payments=1,"",SUM($I$14:$I169)) -> $43,410.88
B170: =IF(AND(Values_Entered,scheduled_no_payments<>1),B169+1,"") -> 157 | C170: =IF(Pay_Num<>"",DATE(YEAR(C169)+VLOOKUP(Interval,LoanLookup[],4,FALSE),MONTH(C169)+VLOOKUP(Interval,LoanLookup[],2,FALSE),DAY(C169)+VLOOKUP(Interval,LoanLookup[],3,FALSE)),"") -> 2029-06-30 | D170: $115,030.89 | E170: $402.44 | F170: =IF(scheduled_no_payments=1,"",IF(Sched_Pay+Scheduled_Extra_Payments<Beg_Bal,Scheduled_Extra_Payments,IF(AND(Pay_Num<>"",Beg_Bal-Sched_Pay>0),Beg_Bal-Sched_Pay,IF(Pay_Num<>"",0,"")))) -> $100.00 | G170: =IF(scheduled_no_payments=1,"",IF(Sched_Pay+Extra_Pay<Beg_Bal,Sched_Pay+Extra_Pay,IF(Pay_Num<>"",Beg_Bal,""))) -> $502.44 | H170: $262.79 | I170: =IF(Pay_Num<>"",Beg_Bal*(Interest_Rate/VLOOKUP(Interval,LoanLookup[],5,FALSE)),"") -> $239.65 | J170: =IF(scheduled_no_payments=1,"",IF(AND(Pay_Num<>"",Sched_Pay+Extra_Pay<Beg_Bal),Beg_Bal-Princ,IF(Pay_Num<>"",0,""))) -> $114,768.11 | K170: =IF(scheduled_no_payments=1,"",SUM($I$14:$I170)) -> $43,650.52
B171: =IF(AND(Values_Entered,scheduled_no_payments<>1),B170+1,"") -> 158 | C171: =IF(Pay_Num<>"",DATE(YEAR(C170)+VLOOKUP(Interval,LoanLookup[],4,FALSE),MONTH(C170)+VLOOKUP(Interval,LoanLookup[],2,FALSE),DAY(C170)+VLOOKUP(Interval,LoanLookup[],3,FALSE)),"") -> 2029-07-15 | D171: $114,768.11 | E171: $402.44 | F171: =IF(scheduled_no_payments=1,"",IF(Sched_Pay+Scheduled_Extra_Payments<Beg_Bal,Scheduled_Extra_Payments,IF(AND(Pay_Num<>"",Beg_Bal-Sched_Pay>0),Beg_Bal-Sched_Pay,IF(Pay_Num<>"",0,"")))) -> $100.00 | G171: =IF(scheduled_no_payments=1,"",IF(Sched_Pay+Extra_Pay<Beg_Bal,Sched_Pay+Extra_Pay,IF(Pay_Num<>"",Beg_Bal,""))) -> $502.44 | H171: $263.34 | I171: =IF(Pay_Num<>"",Beg_Bal*(Interest_Rate/VLOOKUP(Interval,LoanLookup[],5,FALSE)),"") -> $239.10 | J171: =IF(scheduled_no_payments=1,"",IF(AND(Pay_Num<>"",Sched_Pay+Extra_Pay<Beg_Bal),Beg_Bal-Princ,IF(Pay_Num<>"",0,""))) -> $114,504.77 | K171: =IF(scheduled_no_payments=1,"",SUM($I$14:$I171)) -> $43,889.62
B172: =IF(AND(Values_Entered,scheduled_no_payments<>1),B171+1,"") -> 159 | C172: =IF(Pay_Num<>"",DATE(YEAR(C171)+VLOOKUP(Interval,LoanLookup[],4,FALSE),MONTH(C171)+VLOOKUP(Interval,LoanLookup[],2,FALSE),DAY(C171)+VLOOKUP(Interval,LoanLookup[],3,FALSE)),"") -> 2029-07-30 | D172: $114,504.77 | E172: $402.44 | F172: =IF(scheduled_no_payments=1,"",IF(Sched_Pay+Scheduled_Extra_Payments<Beg_Bal,Scheduled_Extra_Payments,IF(AND(Pay_Num<>"",Beg_Bal-Sched_Pay>0),Beg_Bal-Sched_Pay,IF(Pay_Num<>"",0,"")))) -> $100.00 | G172: =IF(scheduled_no_payments=1,"",IF(Sched_Pay+Extra_Pay<Beg_Bal,Sched_Pay+Extra_Pay,IF(Pay_Num<>"",Beg_Bal,""))) -> $502.44 | H172: $263.88 | I172: =IF(Pay_Num<>"",Beg_Bal*(Interest_Rate/VLOOKUP(Interval,LoanLookup[],5,FALSE)),"") -> $238.55 | J172: =IF(scheduled_no_payments=1,"",IF(AND(Pay_Num<>"",Sched_Pay+Extra_Pay<Beg_Bal),Beg_Bal-Princ,IF(Pay_Num<>"",0,""))) -> $114,240.89 | K172: =IF(scheduled_no_payments=1,"",SUM($I$14:$I172)) -> $44,128.18
B173: =IF(AND(Values_Entered,scheduled_no_payments<>1),B172+1,"") -> 160 | C173: =IF(Pay_Num<>"",DATE(YEAR(C172)+VLOOKUP(Interval,LoanLookup[],4,FALSE),MONTH(C172)+VLOOKUP(Interval,LoanLookup[],2,FALSE),DAY(C172)+VLOOKUP(Interval,LoanLookup[],3,FALSE)),"") -> 2029-08-14 | D173: $114,240.89 | E173: $402.44 | F173: =IF(scheduled_no_payments=1,"",IF(Sched_Pay+Scheduled_Extra_Payments<Beg_Bal,Scheduled_Extra_Payments,IF(AND(Pay_Num<>"",Beg_Bal-Sched_Pay>0),Beg_Bal-Sched_Pay,IF(Pay_Num<>"",0,"")))) -> $100.00 | G173: =IF(scheduled_no_payments=1,"",IF(Sched_Pay+Extra_Pay<Beg_Bal,Sched_Pay+Extra_Pay,IF(Pay_Num<>"",Beg_Bal,""))) -> $502.44 | H173: $264.43 | I173: =IF(Pay_Num<>"",Beg_Bal*(Interest_Rate/VLOOKUP(Interval,LoanLookup[],5,FALSE)),"") -> $238.00 | J173: =IF(scheduled_no_payments=1,"",IF(AND(Pay_Num<>"",Sched_Pay+Extra_Pay<Beg_Bal),Beg_Bal-Princ,IF(Pay_Num<>"",0,""))) -> $113,976.45 | K173: =IF(scheduled_no_payments=1,"",SUM($I$14:$I173)) -> $44,366.18
B174: =IF(AND(Values_Entered,scheduled_no_payments<>1),B173+1,"") -> 161 | C174: =IF(Pay_Num<>"",DATE(YEAR(C173)+VLOOKUP(Interval,LoanLookup[],4,FALSE),MONTH(C173)+VLOOKUP(Interval,LoanLookup[],2,FALSE),DAY(C173)+VLOOKUP(Interval,LoanLookup[],3,FALSE)),"") -> 2029-08-29 | D174: $113,976.45 | E174: $402.44 | F174: =IF(scheduled_no_payments=1,"",IF(Sched_Pay+Scheduled_Extra_Payments<Beg_Bal,Scheduled_Extra_Payments,IF(AND(Pay_Num<>"",Beg_Bal-Sched_Pay>0),Beg_Bal-Sched_Pay,IF(Pay_Num<>"",0,"")))) -> $100.00 | G174: =IF(scheduled_no_payments=1,"",IF(Sched_Pay+Extra_Pay<Beg_Bal,Sched_Pay+Extra_Pay,IF(Pay_Num<>"",Beg_Bal,""))) -> $502.44 | H174: $264.98 | I174: =IF(Pay_Num<>"",Beg_Bal*(Interest_Rate/VLOOKUP(Interval,LoanLookup[],5,FALSE)),"") -> $237.45 | J174: =IF(scheduled_no_payments=1,"",IF(AND(Pay_Num<>"",Sched_Pay+Extra_Pay<Beg_Bal),Beg_Bal-Princ,IF(Pay_Num<>"",0,""))) -> $113,711.47 | K174: =IF(scheduled_no_payments=1,"",SUM($I$14:$I174)) -> $44,603.63
B175: =IF(AND(Values_Entered,scheduled_no_payments<>1),B174+1,"") -> 162 | C175: =IF(Pay_Num<>"",DATE(YEAR(C174)+VLOOKUP(Interval,LoanLookup[],4,FALSE),MONTH(C174)+VLOOKUP(Interval,LoanLookup[],2,FALSE),DAY(C174)+VLOOKUP(Interval,LoanLookup[],3,FALSE)),"") -> 2029-09-13 | D175: $113,711.47 | E175: $402.44 | F175: =IF(scheduled_no_payments=1,"",IF(Sched_Pay+Scheduled_Extra_Payments<Beg_Bal,Scheduled_Extra_Payments,IF(AND(Pay_Num<>"",Beg_Bal-Sched_Pay>0),Beg_Bal-Sched_Pay,IF(Pay_Num<>"",0,"")))) -> $100.00 | G175: =IF(scheduled_no_payments=1,"",IF(Sched_Pay+Extra_Pay<Beg_Bal,Sched_Pay+Extra_Pay,IF(Pay_Num<>"",Beg_Bal,""))) -> $502.44 | H175: $265.54 | I175: =IF(Pay_Num<>"",Beg_Bal*(Interest_Rate/VLOOKUP(Interval,LoanLookup[],5,FALSE)),"") -> $236.90 | J175: =IF(scheduled_no_payments=1,"",IF(AND(Pay_Num<>"",Sched_Pay+Extra_Pay<Beg_Bal),Beg_Bal-Princ,IF(Pay_Num<>"",0,""))) -> $113,445.93 | K175: =IF(scheduled_no_payments=1,"",SUM($I$14:$I175)) -> $44,840.53
B176: =IF(AND(Values_Entered,scheduled_no_payments<>1),B175+1,"") -> 163 | C176: =IF(Pay_Num<>"",DATE(YEAR(C175)+VLOOKUP(Interval,LoanLookup[],4,FALSE),MONTH(C175)+VLOOKUP(Interval,LoanLookup[],2,FALSE),DAY(C175)+VLOOKUP(Interval,LoanLookup[],3,FALSE)),"") -> 2029-09-28 | D176: $113,445.93 | E176: $402.44 | F176: =IF(scheduled_no_payments=1,"",IF(Sched_Pay+Scheduled_Extra_Payments<Beg_Bal,Scheduled_Extra_Payments,IF(AND(Pay_Num<>"",Beg_Bal-Sched_Pay>0),Beg_Bal-Sched_Pay,IF(Pay_Num<>"",0,"")))) -> $100.00 | G176: =IF(scheduled_no_payments=1,"",IF(Sched_Pay+Extra_Pay<Beg_Bal,Sched_Pay+Extra_Pay,IF(Pay_Num<>"",Beg_Bal,""))) -> $502.44 | H176: $266.09 | I176: =IF(Pay_Num<>"",Beg_Bal*(Interest_Rate/VLOOKUP(Interval,LoanLookup[],5,FALSE)),"") -> $236.35 | J176: =IF(scheduled_no_payments=1,"",IF(AND(Pay_Num<>"",Sched_Pay+Extra_Pay<Beg_Bal),Beg_Bal-Princ,IF(Pay_Num<>"",0,""))) -> $113,179.84 | K176: =IF(scheduled_no_payments=1,"",SUM($I$14:$I176)) -> $45,076.87
B177: =IF(AND(Values_Entered,scheduled_no_payments<>1),B176+1,"") -> 164 | C177: =IF(Pay_Num<>"",DATE(YEAR(C176)+VLOOKUP(Interval,LoanLookup[],4,FALSE),MONTH(C176)+VLOOKUP(Interval,LoanLookup[],2,FALSE),DAY(C176)+VLOOKUP(Interval,LoanLookup[],3,FALSE)),"") -> 2029-10-13 | D177: $113,179.84 | E177: $402.44 | F177: =IF(scheduled_no_payments=1,"",IF(Sched_Pay+Scheduled_Extra_Payments<Beg_Bal,Scheduled_Extra_Payments,IF(AND(Pay_Num<>"",Beg_Bal-Sched_Pay>0),Beg_Bal-Sched_Pay,IF(Pay_Num<>"",0,"")))) -> $100.00 | G177: =IF(scheduled_no_payments=1,"",IF(Sched_Pay+Extra_Pay<Beg_Bal,Sched_Pay+Extra_Pay,IF(Pay_Num<>"",Beg_Bal,""))) -> $502.44 | H177: $266.64 | I177: =IF(Pay_Num<>"",Beg_Bal*(Interest_Rate/VLOOKUP(Interval,LoanLookup[],5,FALSE)),"") -> $235.79 | J177: =IF(scheduled_no_payments=1,"",IF(AND(Pay_Num<>"",Sched_Pay+Extra_Pay<Beg_Bal),Beg_Bal-Princ,IF(Pay_Num<>"",0,""))) -> $112,913.20 | K177: =IF(scheduled_no_payments=1,"",SUM($I$14:$I177)) -> $45,312.66
B178: =IF(AND(Values_Entered,scheduled_no_payments<>1),B177+1,"") -> 165 | C178: =IF(Pay_Num<>"",DATE(YEAR(C177)+VLOOKUP(Interval,LoanLookup[],4,FALSE),MONTH(C177)+VLOOKUP(Interval,LoanLookup[],2,FALSE),DAY(C177)+VLOOKUP(Interval,LoanLookup[],3,FALSE)),"") -> 2029-10-28 | D178: $112,913.20 | E178: $402.44 | F178: =IF(scheduled_no_payments=1,"",IF(Sched_Pay+Scheduled_Extra_Payments<Beg_Bal,Scheduled_Extra_Payments,IF(AND(Pay_Num<>"",Beg_Bal-Sched_Pay>0),Beg_Bal-Sched_Pay,IF(Pay_Num<>"",0,"")))) -> $100.00 | G178: =IF(scheduled_no_payments=1,"",IF(Sched_Pay+Extra_Pay<Beg_Bal,Sched_Pay+Extra_Pay,IF(Pay_Num<>"",Beg_Bal,""))) -> $502.44 | H178: $267.20 | I178: =IF(Pay_Num<>"",Beg_Bal*(Interest_Rate/VLOOKUP(Interval,LoanLookup[],5,FALSE)),"") -> $235.24 | J178: =IF(scheduled_no_payments=1,"",IF(AND(Pay_Num<>"",Sched_Pay+Extra_Pay<Beg_Bal),Beg_Bal-Princ,IF(Pay_Num<>"",0,""))) -> $112,646.00 | K178: =IF(scheduled_no_payments=1,"",SUM($I$14:$I178)) -> $45,547.90
B179: =IF(AND(Values_Entered,scheduled_no_payments<>1),B178+1,"") -> 166 | C179: =IF(Pay_Num<>"",DATE(YEAR(C178)+VLOOKUP(Interval,LoanLookup[],4,FALSE),MONTH(C178)+VLOOKUP(Interval,LoanLookup[],2,FALSE),DAY(C178)+VLOOKUP(Interval,LoanLookup[],3,FALSE)),"") -> 2029-11-12 | D179: $112,646.00 | E179: $402.44 | F179: =IF(scheduled_no_payments=1,"",IF(Sched_Pay+Scheduled_Extra_Payments<Beg_Bal,Scheduled_Extra_Payments,IF(AND(Pay_Num<>"",Beg_Bal-Sched_Pay>0),Beg_Bal-Sched_Pay,IF(Pay_Num<>"",0,"")))) -> $100.00 | G179: =IF(scheduled_no_payments=1,"",IF(Sched_Pay+Extra_Pay<Beg_Bal,Sched_Pay+Extra_Pay,IF(Pay_Num<>"",Beg_Bal,""))) -> $502.44 | H179: $267.76 | I179: =IF(Pay_Num<>"",Beg_Bal*(Interest_Rate/VLOOKUP(Interval,LoanLookup[],5,FALSE)),"") -> $234.68 | J179: =IF(scheduled_no_payments=1,"",IF(AND(Pay_Num<>"",Sched_Pay+Extra_Pay<Beg_Bal),Beg_Bal-Princ,IF(Pay_Num<>"",0,""))) -> $112,378.24 | K179: =IF(scheduled_no_payments=1,"",SUM($I$14:$I179)) -> $45,782.58
B180: =IF(AND(Values_Entered,scheduled_no_payments<>1),B179+1,"") -> 167 | C180: =IF(Pay_Num<>"",DATE(YEAR(C179)+VLOOKUP(Interval,LoanLookup[],4,FALSE),MONTH(C179)+VLOOKUP(Interval,LoanLookup[],2,FALSE),DAY(C179)+VLOOKUP(Interval,LoanLookup[],3,FALSE)),"") -> 2029-11-27 | D180: $112,378.24 | E180: $402.44 | F180: =IF(scheduled_no_payments=1,"",IF(Sched_Pay+Scheduled_Extra_Payments<Beg_Bal,Scheduled_Extra_Payments,IF(AND(Pay_Num<>"",Beg_Bal-Sched_Pay>0),Beg_Bal-Sched_Pay,IF(Pay_Num<>"",0,"")))) -> $100.00 | G180: =IF(scheduled_no_payments=1,"",IF(Sched_Pay+Extra_Pay<Beg_Bal,Sched_Pay+Extra_Pay,IF(Pay_Num<>"",Beg_Bal,""))) -> $502.44 | H180: $268.31 | I180: =IF(Pay_Num<>"",Beg_Bal*(Interest_Rate/VLOOKUP(Interval,LoanLookup[],5,FALSE)),"") -> $234.12 | J180: =IF(scheduled_no_payments=1,"",IF(AND(Pay_Num<>"",Sched_Pay+Extra_Pay<Beg_Bal),Beg_Bal-Princ,IF(Pay_Num<>"",0,""))) -> $112,109.92 | K180: =IF(scheduled_no_payments=1,"",SUM($I$14:$I180)) -> $46,016.70
B181: =IF(AND(Values_Entered,scheduled_no_payments<>1),B180+1,"") -> 168 | C181: =IF(Pay_Num<>"",DATE(YEAR(C180)+VLOOKUP(Interval,LoanLookup[],4,FALSE),MONTH(C180)+VLOOKUP(Interval,LoanLookup[],2,FALSE),DAY(C180)+VLOOKUP(Interval,LoanLookup[],3,FALSE)),"") -> 2029-12-12 | D181: $112,109.92 | E181: $402.44 | F181: =IF(scheduled_no_payments=1,"",IF(Sched_Pay+Scheduled_Extra_Payments<Beg_Bal,Scheduled_Extra_Payments,IF(AND(Pay_Num<>"",Beg_Bal-Sched_Pay>0),Beg_Bal-Sched_Pay,IF(Pay_Num<>"",0,"")))) -> $100.00 | G181: =IF(scheduled_no_payments=1,"",IF(Sched_Pay+Extra_Pay<Beg_Bal,Sched_Pay+Extra_Pay,IF(Pay_Num<>"",Beg_Bal,""))) -> $502.44 | H181: $268.87 | I181: =IF(Pay_Num<>"",Beg_Bal*(Interest_Rate/VLOOKUP(Interval,LoanLookup[],5,FALSE)),"") -> $233.56 | J181: =IF(scheduled_no_payments=1,"",IF(AND(Pay_Num<>"",Sched_Pay+Extra_Pay<Beg_Bal),Beg_Bal-Princ,IF(Pay_Num<>"",0,""))) -> $111,841.05 | K181: =IF(scheduled_no_payments=1,"",SUM($I$14:$I181)) -> $46,250.26
B182: =IF(AND(Values_Entered,scheduled_no_payments<>1),B181+1,"") -> 169 | C182: =IF(Pay_Num<>"",DATE(YEAR(C181)+VLOOKUP(Interval,LoanLookup[],4,FALSE),MONTH(C181)+VLOOKUP(Interval,LoanLookup[],2,FALSE),DAY(C181)+VLOOKUP(Interval,LoanLookup[],3,FALSE)),"") -> 2029-12-27 | D182: $111,841.05 | E182: $402.44 | F182: =IF(scheduled_no_payments=1,"",IF(Sched_Pay+Scheduled_Extra_Payments<Beg_Bal,Scheduled_Extra_Payments,IF(AND(Pay_Num<>"",Beg_Bal-Sched_Pay>0),Beg_Bal-Sched_Pay,IF(Pay_Num<>"",0,"")))) -> $100.00 | G182: =IF(scheduled_no_payments=1,"",IF(Sched_Pay+Extra_Pay<Beg_Bal,Sched_Pay+Extra_Pay,IF(Pay_Num<>"",Beg_Bal,""))) -> $502.44 | H182: $269.43 | I182: =IF(Pay_Num<>"",Beg_Bal*(Interest_Rate/VLOOKUP(Interval,LoanLookup[],5,FALSE)),"") -> $233.00 | J182: =IF(scheduled_no_payments=1,"",IF(AND(Pay_Num<>"",Sched_Pay+Extra_Pay<Beg_Bal),Beg_Bal-Princ,IF(Pay_Num<>"",0,""))) -> $111,571.62 | K182: =IF(scheduled_no_payments=1,"",SUM($I$14:$I182)) -> $46,483.26
B183: =IF(AND(Values_Entered,scheduled_no_payments<>1),B182+1,"") -> 170 | C183: =IF(Pay_Num<>"",DATE(YEAR(C182)+VLOOKUP(Interval,LoanLookup[],4,FALSE),MONTH(C182)+VLOOKUP(Interval,LoanLookup[],2,FALSE),DAY(C182)+VLOOKUP(Interval,LoanLookup[],3,FALSE)),"") -> 2030-01-11 | D183: $111,571.62 | E183: $402.44 | F183: =IF(scheduled_no_payments=1,"",IF(Sched_Pay+Scheduled_Extra_Payments<Beg_Bal,Scheduled_Extra_Payments,IF(AND(Pay_Num<>"",Beg_Bal-Sched_Pay>0),Beg_Bal-Sched_Pay,IF(Pay_Num<>"",0,"")))) -> $100.00 | G183: =IF(scheduled_no_payments=1,"",IF(Sched_Pay+Extra_Pay<Beg_Bal,Sched_Pay+Extra_Pay,IF(Pay_Num<>"",Beg_Bal,""))) -> $502.44 | H183: $269.99 | I183: =IF(Pay_Num<>"",Beg_Bal*(Interest_Rate/VLOOKUP(Interval,LoanLookup[],5,FALSE)),"") -> $232.44 | J183: =IF(scheduled_no_payments=1,"",IF(AND(Pay_Num<>"",Sched_Pay+Extra_Pay<Beg_Bal),Beg_Bal-Princ,IF(Pay_Num<>"",0,""))) -> $111,301.62 | K183: =IF(scheduled_no_payments=1,"",SUM($I$14:$I183)) -> $46,715.71
B184: =IF(AND(Values_Entered,scheduled_no_payments<>1),B183+1,"") -> 171 | C184: =IF(Pay_Num<>"",DATE(YEAR(C183)+VLOOKUP(Interval,LoanLookup[],4,FALSE),MONTH(C183)+VLOOKUP(Interval,LoanLookup[],2,FALSE),DAY(C183)+VLOOKUP(Interval,LoanLookup[],3,FALSE)),"") -> 2030-01-26 | D184: $111,301.62 | E184: $402.44 | F184: =IF(scheduled_no_payments=1,"",IF(Sched_Pay+Scheduled_Extra_Payments<Beg_Bal,Scheduled_Extra_Payments,IF(AND(Pay_Num<>"",Beg_Bal-Sched_Pay>0),Beg_Bal-Sched_Pay,IF(Pay_Num<>"",0,"")))) -> $100.00 | G184: =IF(scheduled_no_payments=1,"",IF(Sched_Pay+Extra_Pay<Beg_Bal,Sched_Pay+Extra_Pay,IF(Pay_Num<>"",Beg_Bal,""))) -> $502.44 | H184: $270.56 | I184: =IF(Pay_Num<>"",Beg_Bal*(Interest_Rate/VLOOKUP(Interval,LoanLookup[],5,FALSE)),"") -> $231.88 | J184: =IF(scheduled_no_payments=1,"",IF(AND(Pay_Num<>"",Sched_Pay+Extra_Pay<Beg_Bal),Beg_Bal-Princ,IF(Pay_Num<>"",0,""))) -> $111,031.07 | K184: =IF(scheduled_no_payments=1,"",SUM($I$14:$I184)) -> $46,947.58
B185: =IF(AND(Values_Entered,scheduled_no_payments<>1),B184+1,"") -> 172 | C185: =IF(Pay_Num<>"",DATE(YEAR(C184)+VLOOKUP(Interval,LoanLookup[],4,FALSE),MONTH(C184)+VLOOKUP(Interval,LoanLookup[],2,FALSE),DAY(C184)+VLOOKUP(Interval,LoanLookup[],3,FALSE)),"") -> 2030-02-10 | D185: $111,031.07 | E185: $402.44 | F185: =IF(scheduled_no_payments=1,"",IF(Sched_Pay+Scheduled_Extra_Payments<Beg_Bal,Scheduled_Extra_Payments,IF(AND(Pay_Num<>"",Beg_Bal-Sched_Pay>0),Beg_Bal-Sched_Pay,IF(Pay_Num<>"",0,"")))) -> $100.00 | G185: =IF(scheduled_no_payments=1,"",IF(Sched_Pay+Extra_Pay<Beg_Bal,Sched_Pay+Extra_Pay,IF(Pay_Num<>"",Beg_Bal,""))) -> $502.44 | H185: $271.12 | I185: =IF(Pay_Num<>"",Beg_Bal*(Interest_Rate/VLOOKUP(Interval,LoanLookup[],5,FALSE)),"") -> $231.31 | J185: =IF(scheduled_no_payments=1,"",IF(AND(Pay_Num<>"",Sched_Pay+Extra_Pay<Beg_Bal),Beg_Bal-Princ,IF(Pay_Num<>"",0,""))) -> $110,759.94 | K185: =IF(scheduled_no_payments=1,"",SUM($I$14:$I185)) -> $47,178.90
B186: =IF(AND(Values_Entered,scheduled_no_payments<>1),B185+1,"") -> 173 | C186: =IF(Pay_Num<>"",DATE(YEAR(C185)+VLOOKUP(Interval,LoanLookup[],4,FALSE),MONTH(C185)+VLOOKUP(Interval,LoanLookup[],2,FALSE),DAY(C185)+VLOOKUP(Interval,LoanLookup[],3,FALSE)),"") -> 2030-02-25 | D186: $110,759.94 | E186: $402.44 | F186: =IF(scheduled_no_payments=1,"",IF(Sched_Pay+Scheduled_Extra_Payments<Beg_Bal,Scheduled_Extra_Payments,IF(AND(Pay_Num<>"",Beg_Bal-Sched_Pay>0),Beg_Bal-Sched_Pay,IF(Pay_Num<>"",0,"")))) -> $100.00 | G186: =IF(scheduled_no_payments=1,"",IF(Sched_Pay+Extra_Pay<Beg_Bal,Sched_Pay+Extra_Pay,IF(Pay_Num<>"",Beg_Bal,""))) -> $502.44 | H186: $271.69 | I186: =IF(Pay_Num<>"",Beg_Bal*(Interest_Rate/VLOOKUP(Interval,LoanLookup[],5,FALSE)),"") -> $230.75 | J186: =IF(scheduled_no_payments=1,"",IF(AND(Pay_Num<>"",Sched_Pay+Extra_Pay<Beg_Bal),Beg_Bal-Princ,IF(Pay_Num<>"",0,""))) -> $110,488.26 | K186: =IF(scheduled_no_payments=1,"",SUM($I$14:$I186)) -> $47,409.65
B187: =IF(AND(Values_Entered,scheduled_no_payments<>1),B186+1,"") -> 174 | C187: =IF(Pay_Num<>"",DATE(YEAR(C186)+VLOOKUP(Interval,LoanLookup[],4,FALSE),MONTH(C186)+VLOOKUP(Interval,LoanLookup[],2,FALSE),DAY(C186)+VLOOKUP(Interval,LoanLookup[],3,FALSE)),"") -> 2030-03-12 | D187: $110,488.26 | E187: $402.44 | F187: =IF(scheduled_no_payments=1,"",IF(Sched_Pay+Scheduled_Extra_Payments<Beg_Bal,Scheduled_Extra_Payments,IF(AND(Pay_Num<>"",Beg_Bal-Sched_Pay>0),Beg_Bal-Sched_Pay,IF(Pay_Num<>"",0,"")))) -> $100.00 | G187: =IF(scheduled_no_payments=1,"",IF(Sched_Pay+Extra_Pay<Beg_Bal,Sched_Pay+Extra_Pay,IF(Pay_Num<>"",Beg_Bal,""))) -> $502.44 | H187: $272.25 | I187: =IF(Pay_Num<>"",Beg_Bal*(Interest_Rate/VLOOKUP(Interval,LoanLookup[],5,FALSE)),"") -> $230.18 | J187: =IF(scheduled_no_payments=1,"",IF(AND(Pay_Num<>"",Sched_Pay+Extra_Pay<Beg_Bal),Beg_Bal-Princ,IF(Pay_Num<>"",0,""))) -> $110,216.01 | K187: =IF(scheduled_no_payments=1,"",SUM($I$14:$I187)) -> $47,639.83
B188: =IF(AND(Values_Entered,scheduled_no_payments<>1),B187+1,"") -> 175 | C188: =IF(Pay_Num<>"",DATE(YEAR(C187)+VLOOKUP(Interval,LoanLookup[],4,FALSE),MONTH(C187)+VLOOKUP(Interval,LoanLookup[],2,FALSE),DAY(C187)+VLOOKUP(Interval,LoanLookup[],3,FALSE)),"") -> 2030-03-27 | D188: $110,216.01 | E188: $402.44 | F188: =IF(scheduled_no_payments=1,"",IF(Sched_Pay+Scheduled_Extra_Payments<Beg_Bal,Scheduled_Extra_Payments,IF(AND(Pay_Num<>"",Beg_Bal-Sched_Pay>0),Beg_Bal-Sched_Pay,IF(Pay_Num<>"",0,"")))) -> $100.00 | G188: =IF(scheduled_no_payments=1,"",IF(Sched_Pay+Extra_Pay<Beg_Bal,Sched_Pay+Extra_Pay,IF(Pay_Num<>"",Beg_Bal,""))) -> $502.44 | H188: $272.82 | I188: =IF(Pay_Num<>"",Beg_Bal*(Interest_Rate/VLOOKUP(Interval,LoanLookup[],5,FALSE)),"") -> $229.62 | J188: =IF(scheduled_no_payments=1,"",IF(AND(Pay_Num<>"",Sched_Pay+Extra_Pay<Beg_Bal),Beg_Bal-Princ,IF(Pay_Num<>"",0,""))) -> $109,943.19 | K188: =IF(scheduled_no_payments=1,"",SUM($I$14:$I188)) -> $47,869.45
B189: =IF(AND(Values_Entered,scheduled_no_payments<>1),B188+1,"") -> 176 | C189: =IF(Pay_Num<>"",DATE(YEAR(C188)+VLOOKUP(Interval,LoanLookup[],4,FALSE),MONTH(C188)+VLOOKUP(Interval,LoanLookup[],2,FALSE),DAY(C188)+VLOOKUP(Interval,LoanLookup[],3,FALSE)),"") -> 2030-04-11 | D189: $109,943.19 | E189: $402.44 | F189: =IF(scheduled_no_payments=1,"",IF(Sched_Pay+Scheduled_Extra_Payments<Beg_Bal,Scheduled_Extra_Payments,IF(AND(Pay_Num<>"",Beg_Bal-Sched_Pay>0),Beg_Bal-Sched_Pay,IF(Pay_Num<>"",0,"")))) -> $100.00 | G189: =IF(scheduled_no_payments=1,"",IF(Sched_Pay+Extra_Pay<Beg_Bal,Sched_Pay+Extra_Pay,IF(Pay_Num<>"",Beg_Bal,""))) -> $502.44 | H189: $273.39 | I189: =IF(Pay_Num<>"",Beg_Bal*(Interest_Rate/VLOOKUP(Interval,LoanLookup[],5,FALSE)),"") -> $229.05 | J189: =IF(scheduled_no_payments=1,"",IF(AND(Pay_Num<>"",Sched_Pay+Extra_Pay<Beg_Bal),Beg_Bal-Princ,IF(Pay_Num<>"",0,""))) -> $109,669.80 | K189: =IF(scheduled_no_payments=1,"",SUM($I$14:$I189)) -> $48,098.50
B190: =IF(AND(Values_Entered,scheduled_no_payments<>1),B189+1,"") -> 177 | C190: =IF(Pay_Num<>"",DATE(YEAR(C189)+VLOOKUP(Interval,LoanLookup[],4,FALSE),MONTH(C189)+VLOOKUP(Interval,LoanLookup[],2,FALSE),DAY(C189)+VLOOKUP(Interval,LoanLookup[],3,FALSE)),"") -> 2030-04-26 | D190: $109,669.80 | E190: $402.44 | F190: =IF(scheduled_no_payments=1,"",IF(Sched_Pay+Scheduled_Extra_Payments<Beg_Bal,Scheduled_Extra_Payments,IF(AND(Pay_Num<>"",Beg_Bal-Sched_Pay>0),Beg_Bal-Sched_Pay,IF(Pay_Num<>"",0,"")))) -> $100.00 | G190: =IF(scheduled_no_payments=1,"",IF(Sched_Pay+Extra_Pay<Beg_Bal,Sched_Pay+Extra_Pay,IF(Pay_Num<>"",Beg_Bal,""))) -> $502.44 | H190: $273.96 | I190: =IF(Pay_Num<>"",Beg_Bal*(Interest_Rate/VLOOKUP(Interval,LoanLookup[],5,FALSE)),"") -> $228.48 | J190: =IF(scheduled_no_payments=1,"",IF(AND(Pay_Num<>"",Sched_Pay+Extra_Pay<Beg_Bal),Beg_Bal-Princ,IF(Pay_Num<>"",0,""))) -> $109,395.84 | K190: =IF(scheduled_no_payments=1,"",SUM($I$14:$I190)) -> $48,326.98
B191: =IF(AND(Values_Entered,scheduled_no_payments<>1),B190+1,"") -> 178 | C191: =IF(Pay_Num<>"",DATE(YEAR(C190)+VLOOKUP(Interval,LoanLookup[],4,FALSE),MONTH(C190)+VLOOKUP(Interval,LoanLookup[],2,FALSE),DAY(C190)+VLOOKUP(Interval,LoanLookup[],3,FALSE)),"") -> 2030-05-11 | D191: $109,395.84 | E191: $402.44 | F191: =IF(scheduled_no_payments=1,"",IF(Sched_Pay+Scheduled_Extra_Payments<Beg_Bal,Scheduled_Extra_Payments,IF(AND(Pay_Num<>"",Beg_Bal-Sched_Pay>0),Beg_Bal-Sched_Pay,IF(Pay_Num<>"",0,"")))) -> $100.00 | G191: =IF(scheduled_no_payments=1,"",IF(Sched_Pay+Extra_Pay<Beg_Bal,Sched_Pay+Extra_Pay,IF(Pay_Num<>"",Beg_Bal,""))) -> $502.44 | H191: $274.53 | I191: =IF(Pay_Num<>"",Beg_Bal*(Interest_Rate/VLOOKUP(Interval,LoanLookup[],5,FALSE)),"") -> $227.91 | J191: =IF(scheduled_no_payments=1,"",IF(AND(Pay_Num<>"",Sched_Pay+Extra_Pay<Beg_Bal),Beg_Bal-Princ,IF(Pay_Num<>"",0,""))) -> $109,121.32 | K191: =IF(scheduled_no_payments=1,"",SUM($I$14:$I191)) -> $48,554.88
B192: =IF(AND(Values_Entered,scheduled_no_payments<>1),B191+1,"") -> 179 | C192: =IF(Pay_Num<>"",DATE(YEAR(C191)+VLOOKUP(Interval,LoanLookup[],4,FALSE),MONTH(C191)+VLOOKUP(Interval,LoanLookup[],2,FALSE),DAY(C191)+VLOOKUP(Interval,LoanLookup[],3,FALSE)),"") -> 2030-05-26 | D192: $109,121.32 | E192: $402.44 | F192: =IF(scheduled_no_payments=1,"",IF(Sched_Pay+Scheduled_Extra_Payments<Beg_Bal,Scheduled_Extra_Payments,IF(AND(Pay_Num<>"",Beg_Bal-Sched_Pay>0),Beg_Bal-Sched_Pay,IF(Pay_Num<>"",0,"")))) -> $100.00 | G192: =IF(scheduled_no_payments=1,"",IF(Sched_Pay+Extra_Pay<Beg_Bal,Sched_Pay+Extra_Pay,IF(Pay_Num<>"",Beg_Bal,""))) -> $502.44 | H192: $275.10 | I192: =IF(Pay_Num<>"",Beg_Bal*(Interest_Rate/VLOOKUP(Interval,LoanLookup[],5,FALSE)),"") -> $227.34 | J192: =IF(scheduled_no_payments=1,"",IF(AND(Pay_Num<>"",Sched_Pay+Extra_Pay<Beg_Bal),Beg_Bal-Princ,IF(Pay_Num<>"",0,""))) -> $108,846.22 | K192: =IF(scheduled_no_payments=1,"",SUM($I$14:$I192)) -> $48,782.22
B193: =IF(AND(Values_Entered,scheduled_no_payments<>1),B192+1,"") -> 180 | C193: =IF(Pay_Num<>"",DATE(YEAR(C192)+VLOOKUP(Interval,LoanLookup[],4,FALSE),MONTH(C192)+VLOOKUP(Interval,LoanLookup[],2,FALSE),DAY(C192)+VLOOKUP(Interval,LoanLookup[],3,FALSE)),"") -> 2030-06-10 | D193: $108,846.22 | E193: $402.44 | F193: =IF(scheduled_no_payments=1,"",IF(Sched_Pay+Scheduled_Extra_Payments<Beg_Bal,Scheduled_Extra_Payments,IF(AND(Pay_Num<>"",Beg_Bal-Sched_Pay>0),Beg_Bal-Sched_Pay,IF(Pay_Num<>"",0,"")))) -> $100.00 | G193: =IF(scheduled_no_payments=1,"",IF(Sched_Pay+Extra_Pay<Beg_Bal,Sched_Pay+Extra_Pay,IF(Pay_Num<>"",Beg_Bal,""))) -> $502.44 | H193: $275.67 | I193: =IF(Pay_Num<>"",Beg_Bal*(Interest_Rate/VLOOKUP(Interval,LoanLookup[],5,FALSE)),"") -> $226.76 | J193: =IF(scheduled_no_payments=1,"",IF(AND(Pay_Num<>"",Sched_Pay+Extra_Pay<Beg_Bal),Beg_Bal-Princ,IF(Pay_Num<>"",0,""))) -> $108,570.54 | K193: =IF(scheduled_no_payments=1,"",SUM($I$14:$I193)) -> $49,008.98
B194: =IF(AND(Values_Entered,scheduled_no_payments<>1),B193+1,"") -> 181 | C194: =IF(Pay_Num<>"",DATE(YEAR(C193)+VLOOKUP(Interval,LoanLookup[],4,FALSE),MONTH(C193)+VLOOKUP(Interval,LoanLookup[],2,FALSE),DAY(C193)+VLOOKUP(Interval,LoanLookup[],3,FALSE)),"") -> 2030-06-25 | D194: $108,570.54 | E194: $402.44 | F194: =IF(scheduled_no_payments=1,"",IF(Sched_Pay+Scheduled_Extra_Payments<Beg_Bal,Scheduled_Extra_Payments,IF(AND(Pay_Num<>"",Beg_Bal-Sched_Pay>0),Beg_Bal-Sched_Pay,IF(Pay_Num<>"",0,"")))) -> $100.00 | G194: =IF(scheduled_no_payments=1,"",IF(Sched_Pay+Extra_Pay<Beg_Bal,Sched_Pay+Extra_Pay,IF(Pay_Num<>"",Beg_Bal,""))) -> $502.44 | H194: $276.25 | I194: =IF(Pay_Num<>"",Beg_Bal*(Interest_Rate/VLOOKUP(Interval,LoanLookup[],5,FALSE)),"") -> $226.19 | J194: =IF(scheduled_no_payments=1,"",IF(AND(Pay_Num<>"",Sched_Pay+Extra_Pay<Beg_Bal),Beg_Bal-Princ,IF(Pay_Num<>"",0,""))) -> $108,294.30 | K194: =IF(scheduled_no_payments=1,"",SUM($I$14:$I194)) -> $49,235.17
B195: =IF(AND(Values_Entered,scheduled_no_payments<>1),B194+1,"") -> 182 | C195: =IF(Pay_Num<>"",DATE(YEAR(C194)+VLOOKUP(Interval,LoanLookup[],4,FALSE),MONTH(C194)+VLOOKUP(Interval,LoanLookup[],2,FALSE),DAY(C194)+VLOOKUP(Interval,LoanLookup[],3,FALSE)),"") -> 2030-07-10 | D195: $108,294.30 | E195: $402.44 | F195: =IF(scheduled_no_payments=1,"",IF(Sched_Pay+Scheduled_Extra_Payments<Beg_Bal,Scheduled_Extra_Payments,IF(AND(Pay_Num<>"",Beg_Bal-Sched_Pay>0),Beg_Bal-Sched_Pay,IF(Pay_Num<>"",0,"")))) -> $100.00 | G195: =IF(scheduled_no_payments=1,"",IF(Sched_Pay+Extra_Pay<Beg_Bal,Sched_Pay+Extra_Pay,IF(Pay_Num<>"",Beg_Bal,""))) -> $502.44 | H195: $276.82 | I195: =IF(Pay_Num<>"",Beg_Bal*(Interest_Rate/VLOOKUP(Interval,LoanLookup[],5,FALSE)),"") -> $225.61 | J195: =IF(scheduled_no_payments=1,"",IF(AND(Pay_Num<>"",Sched_Pay+Extra_Pay<Beg_Bal),Beg_Bal-Princ,IF(Pay_Num<>"",0,""))) -> $108,017.47 | K195: =IF(scheduled_no_payments=1,"",SUM($I$14:$I195)) -> $49,460.79
B196: =IF(AND(Values_Entered,scheduled_no_payments<>1),B195+1,"") -> 183 | C196: =IF(Pay_Num<>"",DATE(YEAR(C195)+VLOOKUP(Interval,LoanLookup[],4,FALSE),MONTH(C195)+VLOOKUP(Interval,LoanLookup[],2,FALSE),DAY(C195)+VLOOKUP(Interval,LoanLookup[],3,FALSE)),"") -> 2030-07-25 | D196: $108,017.47 | E196: $402.44 | F196: =IF(scheduled_no_payments=1,"",IF(Sched_Pay+Scheduled_Extra_Payments<Beg_Bal,Scheduled_Extra_Payments,IF(AND(Pay_Num<>"",Beg_Bal-Sched_Pay>0),Beg_Bal-Sched_Pay,IF(Pay_Num<>"",0,"")))) -> $100.00 | G196: =IF(scheduled_no_payments=1,"",IF(Sched_Pay+Extra_Pay<Beg_Bal,Sched_Pay+Extra_Pay,IF(Pay_Num<>"",Beg_Bal,""))) -> $502.44 | H196: $277.40 | I196: =IF(Pay_Num<>"",Beg_Bal*(Interest_Rate/VLOOKUP(Interval,LoanLookup[],5,FALSE)),"") -> $225.04 | J196: =IF(scheduled_no_payments=1,"",IF(AND(Pay_Num<>"",Sched_Pay+Extra_Pay<Beg_Bal),Beg_Bal-Princ,IF(Pay_Num<>"",0,""))) -> $107,740.07 | K196: =IF(scheduled_no_payments=1,"",SUM($I$14:$I196)) -> $49,685.82
B197: =IF(AND(Values_Entered,scheduled_no_payments<>1),B196+1,"") -> 184 | C197: =IF(Pay_Num<>"",DATE(YEAR(C196)+VLOOKUP(Interval,LoanLookup[],4,FALSE),MONTH(C196)+VLOOKUP(Interval,LoanLookup[],2,FALSE),DAY(C196)+VLOOKUP(Interval,LoanLookup[],3,FALSE)),"") -> 2030-08-09 | D197: $107,740.07 | E197: $402.44 | F197: =IF(scheduled_no_payments=1,"",IF(Sched_Pay+Scheduled_Extra_Payments<Beg_Bal,Scheduled_Extra_Payments,IF(AND(Pay_Num<>"",Beg_Bal-Sched_Pay>0),Beg_Bal-Sched_Pay,IF(Pay_Num<>"",0,"")))) -> $100.00 | G197: =IF(scheduled_no_payments=1,"",IF(Sched_Pay+Extra_Pay<Beg_Bal,Sched_Pay+Extra_Pay,IF(Pay_Num<>"",Beg_Bal,""))) -> $502.44 | H197: $277.98 | I197: =IF(Pay_Num<>"",Beg_Bal*(Interest_Rate/VLOOKUP(Interval,LoanLookup[],5,FALSE)),"") -> $224.46 | J197: =IF(scheduled_no_payments=1,"",IF(AND(Pay_Num<>"",Sched_Pay+Extra_Pay<Beg_Bal),Beg_Bal-Princ,IF(Pay_Num<>"",0,""))) -> $107,462.10 | K197: =IF(scheduled_no_payments=1,"",SUM($I$14:$I197)) -> $49,910.28
B198: =IF(AND(Values_Entered,scheduled_no_payments<>1),B197+1,"") -> 185 | C198: =IF(Pay_Num<>"",DATE(YEAR(C197)+VLOOKUP(Interval,LoanLookup[],4,FALSE),MONTH(C197)+VLOOKUP(Interval,LoanLookup[],2,FALSE),DAY(C197)+VLOOKUP(Interval,LoanLookup[],3,FALSE)),"") -> 2030-08-24 | D198: $107,462.10 | E198: $402.44 | F198: =IF(scheduled_no_payments=1,"",IF(Sched_Pay+Scheduled_Extra_Payments<Beg_Bal,Scheduled_Extra_Payments,IF(AND(Pay_Num<>"",Beg_Bal-Sched_Pay>0),Beg_Bal-Sched_Pay,IF(Pay_Num<>"",0,"")))) -> $100.00 | G198: =IF(scheduled_no_payments=1,"",IF(Sched_Pay+Extra_Pay<Beg_Bal,Sched_Pay+Extra_Pay,IF(Pay_Num<>"",Beg_Bal,""))) -> $502.44 | H198: $278.56 | I198: =IF(Pay_Num<>"",Beg_Bal*(Interest_Rate/VLOOKUP(Interval,LoanLookup[],5,FALSE)),"") -> $223.88 | J198: =IF(scheduled_no_payments=1,"",IF(AND(Pay_Num<>"",Sched_Pay+Extra_Pay<Beg_Bal),Beg_Bal-Princ,IF(Pay_Num<>"",0,""))) -> $107,183.54 | K198: =IF(scheduled_no_payments=1,"",SUM($I$14:$I198)) -> $50,134.16
B199: =IF(AND(Values_Entered,scheduled_no_payments<>1),B198+1,"") -> 186 | C199: =IF(Pay_Num<>"",DATE(YEAR(C198)+VLOOKUP(Interval,LoanLookup[],4,FALSE),MONTH(C198)+VLOOKUP(Interval,LoanLookup[],2,FALSE),DAY(C198)+VLOOKUP(Interval,LoanLookup[],3,FALSE)),"") -> 2030-09-08 | D199: $107,183.54 | E199: $402.44 | F199: =IF(scheduled_no_payments=1,"",IF(Sched_Pay+Scheduled_Extra_Payments<Beg_Bal,Scheduled_Extra_Payments,IF(AND(Pay_Num<>"",Beg_Bal-Sched_Pay>0),Beg_Bal-Sched_Pay,IF(Pay_Num<>"",0,"")))) -> $100.00 | G199: =IF(scheduled_no_payments=1,"",IF(Sched_Pay+Extra_Pay<Beg_Bal,Sched_Pay+Extra_Pay,IF(Pay_Num<>"",Beg_Bal,""))) -> $502.44 | H199: $279.14 | I199: =IF(Pay_Num<>"",Beg_Bal*(Interest_Rate/VLOOKUP(Interval,LoanLookup[],5,FALSE)),"") -> $223.30 | J199: =IF(scheduled_no_payments=1,"",IF(AND(Pay_Num<>"",Sched_Pay+Extra_Pay<Beg_Bal),Beg_Bal-Princ,IF(Pay_Num<>"",0,""))) -> $106,904.40 | K199: =IF(scheduled_no_payments=1,"",SUM($I$14:$I199)) -> $50,357.46
B200: =IF(AND(Values_Entered,scheduled_no_payments<>1),B199+1,"") -> 187 | C200: =IF(Pay_Num<>"",DATE(YEAR(C199)+VLOOKUP(Interval,LoanLookup[],4,FALSE),MONTH(C199)+VLOOKUP(Interval,LoanLookup[],2,FALSE),DAY(C199)+VLOOKUP(Interval,LoanLookup[],3,FALSE)),"") -> 2030-09-23 | D200: $106,904.40 | E200: $402.44 | F200: =IF(scheduled_no_payments=1,"",IF(Sched_Pay+Scheduled_Extra_Payments<Beg_Bal,Scheduled_Extra_Payments,IF(AND(Pay_Num<>"",Beg_Bal-Sched_Pay>0),Beg_Bal-Sched_Pay,IF(Pay_Num<>"",0,"")))) -> $100.00 | G200: =IF(scheduled_no_payments=1,"",IF(Sched_Pay+Extra_Pay<Beg_Bal,Sched_Pay+Extra_Pay,IF(Pay_Num<>"",Beg_Bal,""))) -> $502.44 | H200: $279.72 | I200: =IF(Pay_Num<>"",Beg_Bal*(Interest_Rate/VLOOKUP(Interval,LoanLookup[],5,FALSE)),"") -> $222.72 | J200: =IF(scheduled_no_payments=1,"",IF(AND(Pay_Num<>"",Sched_Pay+Extra_Pay<Beg_Bal),Beg_Bal-Princ,IF(Pay_Num<>"",0,""))) -> $106,624.68 | K200: =IF(scheduled_no_payments=1,"",SUM($I$14:$I200)) -> $50,580.18
B201: =IF(AND(Values_Entered,scheduled_no_payments<>1),B200+1,"") -> 188 | C201: =IF(Pay_Num<>"",DATE(YEAR(C200)+VLOOKUP(Interval,LoanLookup[],4,FALSE),MONTH(C200)+VLOOKUP(Interval,LoanLookup[],2,FALSE),DAY(C200)+VLOOKUP(Interval,LoanLookup[],3,FALSE)),"") -> 2030-10-08 | D201: $106,624.68 | E201: $402.44 | F201: =IF(scheduled_no_payments=1,"",IF(Sched_Pay+Scheduled_Extra_Payments<Beg_Bal,Scheduled_Extra_Payments,IF(AND(Pay_Num<>"",Beg_Bal-Sched_Pay>0),Beg_Bal-Sched_Pay,IF(Pay_Num<>"",0,"")))) -> $100.00 | G201: =IF(scheduled_no_payments=1,"",IF(Sched_Pay+Extra_Pay<Beg_Bal,Sched_Pay+Extra_Pay,IF(Pay_Num<>"",Beg_Bal,""))) -> $502.44 | H201: $280.30 | I201: =IF(Pay_Num<>"",Beg_Bal*(Interest_Rate/VLOOKUP(Interval,LoanLookup[],5,FALSE)),"") -> $222.13 | J201: =IF(scheduled_no_payments=1,"",IF(AND(Pay_Num<>"",Sched_Pay+Extra_Pay<Beg_Bal),Beg_Bal-Princ,IF(Pay_Num<>"",0,""))) -> $106,344.38 | K201: =IF(scheduled_no_payments=1,"",SUM($I$14:$I201)) -> $50,802.31
B202: =IF(AND(Values_Entered,scheduled_no_payments<>1),B201+1,"") -> 189 | C202: =IF(Pay_Num<>"",DATE(YEAR(C201)+VLOOKUP(Interval,LoanLookup[],4,FALSE),MONTH(C201)+VLOOKUP(Interval,LoanLookup[],2,FALSE),DAY(C201)+VLOOKUP(Interval,LoanLookup[],3,FALSE)),"") -> 2030-10-23 | D202: $106,344.38 | E202: $402.44 | F202: =IF(scheduled_no_payments=1,"",IF(Sched_Pay+Scheduled_Extra_Payments<Beg_Bal,Scheduled_Extra_Payments,IF(AND(Pay_Num<>"",Beg_Bal-Sched_Pay>0),Beg_Bal-Sched_Pay,IF(Pay_Num<>"",0,"")))) -> $100.00 | G202: =IF(scheduled_no_payments=1,"",IF(Sched_Pay+Extra_Pay<Beg_Bal,Sched_Pay+Extra_Pay,IF(Pay_Num<>"",Beg_Bal,""))) -> $502.44 | H202: $280.88 | I202: =IF(Pay_Num<>"",Beg_Bal*(Interest_Rate/VLOOKUP(Interval,LoanLookup[],5,FALSE)),"") -> $221.55 | J202: =IF(scheduled_no_payments=1,"",IF(AND(Pay_Num<>"",Sched_Pay+Extra_Pay<Beg_Bal),Beg_Bal-Princ,IF(Pay_Num<>"",0,""))) -> $106,063.50 | K202: =IF(scheduled_no_payments=1,"",SUM($I$14:$I202)) -> $51,023.86
... 531 more rows

Sheet Loan calculator data
B1: LOAN CALCULATOR DATA
B2: This worksheet holds data that is used in loan calculations and to populate drop down lists. Changing information in it may result in incorrect loan payment calculations.
B3: PAYMENT FREQUENCY LOOKUP
B4: FREQUENCY | C4: MONTH INTERVAL | D4: DAY INTERVAL | E4: YEAR INTERVAL | F4: PAYMENTS PER YEAR
B5: Bi-monthly | C5: 0 | D5: 15 | E5: 0 | F5: 24
B6: Monthly | C6: 1 | D6: 0 | E6: 0 | F6: 12
B7: Quarterly | C7: 4 | D7: 0 | E7: 0 | F7: 4
B8: Annually | C8: 0 | D8: 0 | E8: 1 | F8: 1
